Department Family,Entity,Payment Date,Expense Type,Expense Area,Supplier,Transaction Number,Amount,Description
BIS,Skills Funding Agency,01/06/2016,Application for Payment,None,MITCHELL NICHOLLS PARTNERSHIP,SPAYONACCT_345,"183,186.00",Payment on Account
BIS,Skills Funding Agency,01/06/2016,Application for Payment,None,ORBIT PROPERTY MANAGEMENT LTD,SPAYONACCT_344,"300,000.00",Payment on Account
BIS,Skills Funding Agency,01/06/2016,Catering Contracts,HR - Facilities Central,WESTBURY STREET HOLDINGS,SPINVB_31521,471.46,Purchase Invoice
BIS,Skills Funding Agency,01/06/2016,Diesel Car Mileage,Central Delivery Service - European Social Fund - Audit Compliance,Agency Staff Member,SCLAIM_45738,245.7,Staff Expenses Claim
BIS,Skills Funding Agency,01/06/2016,Diesel Car Mileage,Central Delivery Service - Leeds,Agency Staff Member,SCLAIM_45724,189,Staff Expenses Claim
BIS,Skills Funding Agency,01/06/2016,Diesel Car Mileage,Employer & Provider Services North East & Yorkshire,Agency Staff Member,SCLAIM_45754,102.6,Staff Expenses Claim
BIS,Skills Funding Agency,01/06/2016,Diesel Car Mileage,Employer & Provider Services North West,Agency Staff Member,SCLAIM_45751,436.95,Staff Expenses Claim
BIS,Skills Funding Agency,01/06/2016,Diesel Car Mileage,Employer & Provider Services South East,Agency Staff Member,SCLAIM_45727,184.5,Staff Expenses Claim
BIS,Skills Funding Agency,01/06/2016,Diesel Car Mileage,Employer & Provider Services South East,Agency Staff Member,SCLAIM_45749,181.8,Staff Expenses Claim
BIS,Skills Funding Agency,01/06/2016,Diesel Car Mileage,Funding & Programmes - Localism Policy Implementation,Agency Staff Member,SCLAIM_45735,31.5,Staff Expenses Claim
BIS,Skills Funding Agency,01/06/2016,Diesel Car Mileage,Funding & Programmes - Provider Management & Intervention South,Agency Staff Member,SCLAIM_45718,266.4,Staff Expenses Claim
BIS,Skills Funding Agency,01/06/2016,Diesel Car Mileage,Large Companies Unit,Agency Staff Member,SCLAIM_45723,39.6,Staff Expenses Claim
BIS,Skills Funding Agency,01/06/2016,Diesel Car Mileage,National Careers & Learner Services,Agency Staff Member,SCLAIM_45732,5.4,Staff Expenses Claim
BIS,Skills Funding Agency,01/06/2016,Diesel Car Mileage,National Careers & Learner Services,Agency Staff Member,SCLAIM_45741,66.6,Staff Expenses Claim
BIS,Skills Funding Agency,01/06/2016,Diesel Car Mileage,National Careers & Learner Services,Agency Staff Member,SCLAIM_45746,124.65,Staff Expenses Claim
BIS,Skills Funding Agency,01/06/2016,Facilities Management,"Operations Finance - Shared Service, ICT Finance & Capital",DEPARTMENT FOR BUSINESS INNOVATION & SKILLS (NEWPORT),SPINVB_31512,"57,994.82",Purchase Invoice
BIS,Skills Funding Agency,01/06/2016,Landline Telephone Service,Operations ICT - Technical Design Authority,LEVEL 3 COMMUNICATIONS UK LIMITED,SPINVB_31507,"9,452.40",Purchase Invoice
BIS,Skills Funding Agency,01/06/2016,Landline Telephone Service,Operations ICT - Technical Design Authority,UNIFY ENTERPRISE COMMUNICATIONS LTD,SPINVB_31502,"20,707.74",Purchase Invoice
BIS,Skills Funding Agency,01/06/2016,Licences,Operations ICT - Business IT - Agency Services,SERVICENOW NEDERLAND B.V.,SPINVB_31522,"23,104.00",Purchase Invoice
BIS,Skills Funding Agency,01/06/2016,Managed IT Service,Funding & Programmes - Funding Systems and Information,LOCKHEED MARTIN BUSINESS TECHNOLOGY SOLUTIONS LIMITED,SPINVB_31153,"15,000.00",Purchase Invoice
BIS,Skills Funding Agency,01/06/2016,Managed IT Service,Funding & Programmes - Funding Systems and Information,VALTECH LIMITED,SPINVB_31083,864,Purchase Invoice
BIS,Skills Funding Agency,01/06/2016,Managed IT Service,Funding & Programmes - Funding Systems and Information,VALTECH LIMITED,SPINVB_31084,"4,428.00",Purchase Invoice
BIS,Skills Funding Agency,01/06/2016,Managed IT Service,Funding & Programmes - Funding Systems and Information,VALTECH LIMITED,SPINVB_31085,"99,930.00",Purchase Invoice
BIS,Skills Funding Agency,01/06/2016,Managed IT Service,Funding & Programmes - Funding Systems and Information,VALTECH LIMITED,SPINVB_31230,"24,510.00",Purchase Invoice
BIS,Skills Funding Agency,01/06/2016,Managed IT Service,Funding & Programmes - Funding Systems and Information,VALTECH LIMITED,SPINVB_31388,"19,080.00",Purchase Invoice
BIS,Skills Funding Agency,01/06/2016,Managed IT Service,Operations ICT - Projects,CENTRE4 RESOURCES LIMITED,SPINVB_31506,"60,546.00",Purchase Invoice
BIS,Skills Funding Agency,01/06/2016,Managed IT Service,Operations ICT - Projects,CIBER UK LIMITED,SPINVB_31381,"36,900.00",Purchase Invoice
BIS,Skills Funding Agency,01/06/2016,Other Fuel Car Mileage,Central Delivery Service - European Social Fund - Audit Compliance,Agency Staff Member,SCLAIM_45738,-5.5,Staff Expenses Claim
BIS,Skills Funding Agency,01/06/2016,Other Fuel Car Mileage,Central Delivery Service - European Social Fund - Audit Compliance,Agency Staff Member,SCLAIM_45739,-115.2,Staff Expenses Claim
BIS,Skills Funding Agency,01/06/2016,Other Travel,Apprenticeships & Delivery Services - Marketing,Agency Staff Member,SCLAIM_45747,33.6,Staff Expenses Claim
BIS,Skills Funding Agency,01/06/2016,Other Travel,Central Delivery Service - European Social Fund - Audit Compliance,Agency Staff Member,SCLAIM_45721,24.1,Staff Expenses Claim
BIS,Skills Funding Agency,01/06/2016,Other Travel,Central Delivery Service - European Social Fund - Audit Compliance,Agency Staff Member,SCLAIM_45722,45.2,Staff Expenses Claim
BIS,Skills Funding Agency,01/06/2016,Other Travel,Central Delivery Service - European Social Fund - Audit Compliance,Agency Staff Member,SCLAIM_45733,123.98,Staff Expenses Claim
BIS,Skills Funding Agency,01/06/2016,Other Travel,Central Delivery Service - European Social Fund - Audit Compliance,Agency Staff Member,SCLAIM_45734,9,Staff Expenses Claim
BIS,Skills Funding Agency,01/06/2016,Other Travel,Central Delivery Service - European Social Fund - Audit Compliance,Agency Staff Member,SCLAIM_45738,6.1,Staff Expenses Claim
BIS,Skills Funding Agency,01/06/2016,Other Travel,Central Delivery Service - European Social Fund - Audit Compliance,Agency Staff Member,SCLAIM_45739,47.09,Staff Expenses Claim
BIS,Skills Funding Agency,01/06/2016,Other Travel,Central Delivery Service - Leeds,Agency Staff Member,SCLAIM_45724,16.5,Staff Expenses Claim
BIS,Skills Funding Agency,01/06/2016,Other Travel,Employer & Provider Services North East & Yorkshire,Agency Staff Member,SCLAIM_45740,40.6,Staff Expenses Claim
BIS,Skills Funding Agency,01/06/2016,Other Travel,Employer & Provider Services North West,Agency Staff Member,SCLAIM_45751,103.9,Staff Expenses Claim
BIS,Skills Funding Agency,01/06/2016,Other Travel,Employer & Provider Services South East,Agency Staff Member,SCLAIM_45727,13.74,Staff Expenses Claim
BIS,Skills Funding Agency,01/06/2016,Other Travel,Employer & Provider Services South East,Agency Staff Member,SCLAIM_45736,7,Staff Expenses Claim
BIS,Skills Funding Agency,01/06/2016,Other Travel,Employer & Provider Services South East,Agency Staff Member,SCLAIM_45749,9.65,Staff Expenses Claim
BIS,Skills Funding Agency,01/06/2016,Other Travel,Finance Division - Provider Finance,Agency Staff Member,SCLAIM_45752,32.5,Staff Expenses Claim
BIS,Skills Funding Agency,01/06/2016,Other Travel,Finance Division - Provider Financial Assurance Audit,Agency Staff Member,SCLAIM_45742,4,Staff Expenses Claim
BIS,Skills Funding Agency,01/06/2016,Other Travel,Funding & Programmes - Provider Management & Intervention South,Agency Staff Member,SCLAIM_45718,17.45,Staff Expenses Claim
BIS,Skills Funding Agency,01/06/2016,Other Travel,National Careers & Learner Services,Agency Staff Member,SCLAIM_45731,23,Staff Expenses Claim
BIS,Skills Funding Agency,01/06/2016,Other Travel,National Careers & Learner Services,Agency Staff Member,SCLAIM_45732,8,Staff Expenses Claim
BIS,Skills Funding Agency,01/06/2016,Other Travel,National Careers & Learner Services,Agency Staff Member,SCLAIM_45741,5,Staff Expenses Claim
BIS,Skills Funding Agency,01/06/2016,Other Travel,National Careers & Learner Services,Agency Staff Member,SCLAIM_45753,23.5,Staff Expenses Claim
BIS,Skills Funding Agency,01/06/2016,Other Travel,Operations Finance - Executive Office,Agency Staff Member,SCLAIM_45743,13.5,Staff Expenses Claim
BIS,Skills Funding Agency,01/06/2016,Other Travel,Operations Finance - Executive Office,Agency Staff Member,SCLAIM_45744,1,Staff Expenses Claim
BIS,Skills Funding Agency,01/06/2016,Other Travel,Operations Finance - Executive Office,Agency Staff Member,SCLAIM_45750,29,Staff Expenses Claim
BIS,Skills Funding Agency,01/06/2016,Other Travel,Operations ICT - Citizen Digital Service,Agency Staff Member,SCLAIM_45729,135.6,Staff Expenses Claim
BIS,Skills Funding Agency,01/06/2016,Petrol Car Mileage Passenger Supplement,Central Delivery Service - European Social Fund - Audit Compliance,Agency Staff Member,SCLAIM_45734,3.45,Staff Expenses Claim
BIS,Skills Funding Agency,01/06/2016,Petrol Car Mileage,Central Delivery Service - European Social Fund - Audit Compliance,Agency Staff Member,SCLAIM_45721,52.2,Staff Expenses Claim
BIS,Skills Funding Agency,01/06/2016,Petrol Car Mileage,Central Delivery Service - European Social Fund - Audit Compliance,Agency Staff Member,SCLAIM_45722,435.6,Staff Expenses Claim
BIS,Skills Funding Agency,01/06/2016,Petrol Car Mileage,Central Delivery Service - European Social Fund - Audit Compliance,Agency Staff Member,SCLAIM_45733,97.2,Staff Expenses Claim
BIS,Skills Funding Agency,01/06/2016,Petrol Car Mileage,Central Delivery Service - European Social Fund - Audit Compliance,Agency Staff Member,SCLAIM_45734,265.5,Staff Expenses Claim
BIS,Skills Funding Agency,01/06/2016,Petrol Car Mileage,Central Delivery Service - European Social Fund - Audit Compliance,Agency Staff Member,SCLAIM_45739,645.3,Staff Expenses Claim
BIS,Skills Funding Agency,01/06/2016,Petrol Car Mileage,Chief Executive Office - Communications,Agency Staff Member,SCLAIM_45719,14.4,Staff Expenses Claim
BIS,Skills Funding Agency,01/06/2016,Petrol Car Mileage,Employer & Provider Services North East & Yorkshire,Agency Staff Member,SCLAIM_45740,553.05,Staff Expenses Claim
BIS,Skills Funding Agency,01/06/2016,Petrol Car Mileage,Employer & Provider Services North West,Agency Staff Member,SCLAIM_45745,53.1,Staff Expenses Claim
BIS,Skills Funding Agency,01/06/2016,Petrol Car Mileage,Employer & Provider Services South East,Agency Staff Member,SCLAIM_45726,142.2,Staff Expenses Claim
BIS,Skills Funding Agency,01/06/2016,Petrol Car Mileage,Employer & Provider Services South East,Agency Staff Member,SCLAIM_45728,83.7,Staff Expenses Claim
BIS,Skills Funding Agency,01/06/2016,Petrol Car Mileage,Employer & Provider Services South East,Agency Staff Member,SCLAIM_45736,55.8,Staff Expenses Claim
BIS,Skills Funding Agency,01/06/2016,Petrol Car Mileage,Finance Division - Provider Financial Assurance Audit,Agency Staff Member,SCLAIM_45742,78.3,Staff Expenses Claim
BIS,Skills Funding Agency,01/06/2016,Petrol Car Mileage,National Careers & Learner Services,Agency Staff Member,SCLAIM_45753,126.9,Staff Expenses Claim
BIS,Skills Funding Agency,01/06/2016,Petrol Car Mileage,Operations Finance - Executive Office,Agency Staff Member,SCLAIM_45743,60.3,Staff Expenses Claim
BIS,Skills Funding Agency,01/06/2016,Petrol Car Mileage,Operations Finance - Executive Office,Agency Staff Member,SCLAIM_45750,81.45,Staff Expenses Claim
BIS,Skills Funding Agency,01/06/2016,Photocopier Rental,Operations ICT - Business IT - Agency Services,XEROX FINANCE LTD,SPINVB_31511,"1,274.84",Purchase Invoice
BIS,Skills Funding Agency,01/06/2016,Postage,Central Delivery Service - European Social Fund - Audit Compliance,Agency Staff Member,SCLAIM_45738,7.25,Staff Expenses Claim
BIS,Skills Funding Agency,01/06/2016,Professional Services,Operations ICT - Projects,NCC GROUP SECURITY SERVICES LTD,SPINVB_31215,"6,524.88",Purchase Invoice
BIS,Skills Funding Agency,01/06/2016,Professional Services,Operations ICT - Projects,NCC GROUP SECURITY SERVICES LTD,SPINVB_31503,18.61,Purchase Invoice
BIS,Skills Funding Agency,01/06/2016,Professional Subscriptions,Operations Finance - Business Insights & Competency Centre,Agency Staff Member,SCLAIMPRO_949,221,Staff Expenses Claim
BIS,Skills Funding Agency,01/06/2016,Rail Warrants & Tickets,National Careers & Learner Services,Agency Staff Member,SCLAIM_45741,8.3,Staff Expenses Claim
BIS,Skills Funding Agency,01/06/2016,Rail Warrants & Tickets,Operations Finance - Executive Office,Agency Staff Member,SCLAIM_45744,7.8,Staff Expenses Claim
BIS,Skills Funding Agency,01/06/2016,Rail Warrants & Tickets,Operations ICT - Project Delivery,Agency Staff Member,SCLAIM_45720,96.1,Staff Expenses Claim
BIS,Skills Funding Agency,01/06/2016,Rates,Operations Finance - Financial Management,COVENTRY CITY COUNCIL,RATES_1171,"3,181.00",Rates Demand
BIS,Skills Funding Agency,01/06/2016,Rates,Operations Finance - Financial Management,COVENTRY CITY COUNCIL,RATES_1181,"55,664.00",Rates Demand
BIS,Skills Funding Agency,01/06/2016,Rates,Operations Finance - Financial Management,COVENTRY CITY COUNCIL,RATES_1191,"5,566.00",Rates Demand
BIS,Skills Funding Agency,01/06/2016,Rates,Operations Finance - Financial Management,COVENTRY CITY COUNCIL,RATES_1201,"8,499.00",Rates Demand
BIS,Skills Funding Agency,01/06/2016,Recruitment Fees,HR - Human Resources,SF RECRUITMENT LTD,SPINVB_31504,932.4,Purchase Invoice
BIS,Skills Funding Agency,01/06/2016,Self-Drive Car Hire,Central Delivery Service - European Social Fund - Audit Compliance,Agency Staff Member,SCLAIM_45737,67.25,Staff Expenses Claim
BIS,Skills Funding Agency,01/06/2016,Self-Drive Car Hire,Central Delivery Service - European Social Fund - Audit Compliance,Agency Staff Member,SCLAIM_45738,17.07,Staff Expenses Claim
BIS,Skills Funding Agency,01/06/2016,Self-Drive Car Hire,Employer & Provider Services South East,Agency Staff Member,SCLAIM_45749,43.41,Staff Expenses Claim
BIS,Skills Funding Agency,01/06/2016,Self-Drive Car Hire,Funding & Programmes - Funding Systems and Information,Agency Staff Member,SCLAIM_45730,40.77,Staff Expenses Claim
BIS,Skills Funding Agency,01/06/2016,Self-Drive Car Hire,Funding & Programmes - Localism Policy Implementation,Agency Staff Member,SCLAIM_45735,105.5,Staff Expenses Claim
BIS,Skills Funding Agency,01/06/2016,Software Maintenance & Repair,Operations ICT - Technical Design Authority,NCC GROUP SECURITY SERVICES LTD,SPINVB_31481,"8,820.00",Purchase Invoice
BIS,Skills Funding Agency,01/06/2016,Subsistence,Apprenticeships & Delivery Services - Apprenticeships & Employer Policy Implementation,Agency Staff Member,SCLAIM_45725,35,Staff Expenses Claim
BIS,Skills Funding Agency,01/06/2016,Subsistence,Apprenticeships & Delivery Services - Marketing,Agency Staff Member,SCLAIM_45747,20,Staff Expenses Claim
BIS,Skills Funding Agency,01/06/2016,Subsistence,Central Delivery Service - European Social Fund - Audit Compliance,Agency Staff Member,SCLAIM_45721,40,Staff Expenses Claim
BIS,Skills Funding Agency,01/06/2016,Subsistence,Central Delivery Service - European Social Fund - Audit Compliance,Agency Staff Member,SCLAIM_45722,100,Staff Expenses Claim
BIS,Skills Funding Agency,01/06/2016,Subsistence,Central Delivery Service - European Social Fund - Audit Compliance,Agency Staff Member,SCLAIM_45733,175,Staff Expenses Claim
BIS,Skills Funding Agency,01/06/2016,Subsistence,Central Delivery Service - European Social Fund - Audit Compliance,Agency Staff Member,SCLAIM_45734,35,Staff Expenses Claim
BIS,Skills Funding Agency,01/06/2016,Subsistence,Central Delivery Service - European Social Fund - Audit Compliance,Agency Staff Member,SCLAIM_45738,45,Staff Expenses Claim
BIS,Skills Funding Agency,01/06/2016,Subsistence,Central Delivery Service - European Social Fund - Audit Compliance,Agency Staff Member,SCLAIM_45739,10,Staff Expenses Claim
BIS,Skills Funding Agency,01/06/2016,Subsistence,Central Delivery Service - Leeds,Agency Staff Member,SCLAIM_45724,25,Staff Expenses Claim
BIS,Skills Funding Agency,01/06/2016,Subsistence,Employer & Provider Services South East,Agency Staff Member,SCLAIM_45749,10,Staff Expenses Claim
BIS,Skills Funding Agency,01/06/2016,Subsistence,Finance Division - Provider Finance,Agency Staff Member,SCLAIM_45752,125,Staff Expenses Claim
BIS,Skills Funding Agency,01/06/2016,Subsistence,Large Companies Unit,Agency Staff Member,SCLAIM_45723,37,Staff Expenses Claim
BIS,Skills Funding Agency,01/06/2016,Subsistence,National Careers & Learner Services,Agency Staff Member,SCLAIM_45741,25,Staff Expenses Claim
BIS,Skills Funding Agency,01/06/2016,Subsistence,National Careers & Learner Services,Agency Staff Member,SCLAIM_45746,20,Staff Expenses Claim
BIS,Skills Funding Agency,01/06/2016,Subsistence,Operations Finance - Executive Office,Agency Staff Member,SCLAIM_45750,10,Staff Expenses Claim
BIS,Skills Funding Agency,01/06/2016,Taxis,Central Delivery Service - European Social Fund - Audit Compliance,Agency Staff Member,SCLAIM_45733,44,Staff Expenses Claim
BIS,Skills Funding Agency,01/06/2016,Taxis,Central Delivery Service - European Social Fund - Audit Compliance,Agency Staff Member,SCLAIM_45748,24,Staff Expenses Claim
BIS,Skills Funding Agency,01/06/2016,Taxis,Finance Division - Provider Finance,Agency Staff Member,SCLAIM_45752,31.8,Staff Expenses Claim
BIS,Skills Funding Agency,01/06/2016,Taxis,Large Companies Unit,Agency Staff Member,SCLAIM_45723,16,Staff Expenses Claim
BIS,Skills Funding Agency,01/06/2016,Taxis,Operations Finance - Executive Office,Agency Staff Member,SCLAIM_45744,15,Staff Expenses Claim
BIS,Skills Funding Agency,01/06/2016,Taxis,Operations Finance - Executive Office,Agency Staff Member,SCLAIM_45750,14,Staff Expenses Claim
BIS,Skills Funding Agency,01/06/2016,Temporary Staff,Apprenticeships & Delivery Services - Executive Office,CAPITA BUSINESS SERVICES LTD,IPINVELECT3_2059,"3,500.03",Purchase Invoice
BIS,Skills Funding Agency,01/06/2016,Temporary Staff,Funding & Programmes - Delivery & Performance,PARITY RESOURCES LTD,SPINVB_31482,"10,836.00",Purchase Invoice
BIS,Skills Funding Agency,01/06/2016,Temporary Staff,Funding & Programmes - Executive Office,CAPITA BUSINESS SERVICES LTD,IPINVELECT3_2059,"15,311.22",Purchase Invoice
BIS,Skills Funding Agency,01/06/2016,Temporary Staff,Operations ICT - Employer Digital Service,LA INTERNATIONAL,SPINVB_30987,"7,768.57",Purchase Invoice
BIS,Skills Funding Agency,01/06/2016,Temporary Staff,Operations ICT - Information & Communication Technology - Technical,CAPITA BUSINESS SERVICES LTD,IPINVELECT3_2059,"10,053.48",Purchase Invoice
BIS,Skills Funding Agency,01/06/2016,Temporary Staff,Operations ICT - Information & Communication Technology - Technical,HAYS SPECIALIST RECRUITMENT LTD,IPINVELECT3_2058,"1,860.00",Purchase Invoice
BIS,Skills Funding Agency,01/06/2016,Temporary Staff,Operations ICT - Information & Communication Technology - Technical,KELLY SERVICES UK LTD,SPINVB_31510,982.36,Purchase Invoice
BIS,Skills Funding Agency,01/06/2016,Temporary Staff,Operations ICT - Information & Communication Technology - Technical,NTT DATA UK LIMITED,SPINVB_31515,"19,530.00",Purchase Invoice
BIS,Skills Funding Agency,01/06/2016,Temporary Staff,Operations ICT - Information & Communication Technology - Technical,PARITY RESOURCES LTD,SPINVB_31483,"11,730.96",Purchase Invoice
BIS,Skills Funding Agency,01/06/2016,Temporary Staff,Operations ICT - Projects,CAPITA BUSINESS SERVICES LTD,IPINVELECT3_2059,"5,932.50",Purchase Invoice
BIS,Skills Funding Agency,01/06/2016,Temporary Staff,Operations ICT - Technical Design Authority,CAPITA BUSINESS SERVICES LTD,IPINVELECT3_2059,"3,112.74",Purchase Invoice
BIS,Skills Funding Agency,01/06/2016,Temporary Staff,Transformation & Corporate Strategy,PERTEMPS RECRUITMENT PARTNERSHIP LTD,SPINVB_30944,886.5,Purchase Invoice
BIS,Skills Funding Agency,01/06/2016,Temporary Staff,Transformation & Corporate Strategy,PERTEMPS RECRUITMENT PARTNERSHIP LTD,SPINVB_31375,868.78,Purchase Invoice
BIS,Skills Funding Agency,01/06/2016,Temporary Staff,Transformation & Corporate Strategy,PERTEMPS RECRUITMENT PARTNERSHIP LTD,SPINVB_31471,490.54,Purchase Invoice
BIS,Skills Funding Agency,01/06/2016,Wide Area Networks,Operations ICT - Technical Design Authority,LEVEL 3 COMMUNICATIONS UK LIMITED,SPINVB_31507,"10,347.60",Purchase Invoice
BIS,Skills Funding Agency,01/06/2016,Young People's Helpline,Main Funding,CLOUDREACH EUROPE LTD,SPINVB_31518,"5,247.00",Purchase Invoice
BIS,Skills Funding Agency,01/06/2016,Young People's Helpline,Main Funding,CLOUDREACH EUROPE LTD,SPINVB_31519,"5,247.00",Purchase Invoice
BIS,Skills Funding Agency,01/06/2016,Young People's Helpline,Main Funding,DST APPLIED ANALYTICS LIMITED,SPINVB_31520,"2,582.70",Purchase Invoice
BIS,Skills Funding Agency,01/06/2016,Young People's Helpline,Main Funding,EDUCATION AND EMPLOYERS TASKFORCE,SPINVB_31499,"49,625.00",Purchase Invoice
BIS,Skills Funding Agency,03/06/2016,Communications Team Expenditure,Chief Executive Office - Information Compliance & Security,PARITY RESOURCES LTD,SPINVB_31559,"2,744.40",Purchase Invoice
BIS,Skills Funding Agency,03/06/2016,Communications Team Expenditure,Chief Executive Office - Information Compliance & Security,PARITY RESOURCES LTD,SPINVB_31560,"6,861.00",Purchase Invoice
BIS,Skills Funding Agency,03/06/2016,Communications Team Expenditure,Operations Finance - Executive Office,PERTEMPS RECRUITMENT PARTNERSHIP LTD,SPINVB_31550,485.8,Purchase Invoice
BIS,Skills Funding Agency,03/06/2016,Conferences & Workshops,Central Delivery Service - European Social Fund - Audit Compliance,CAPITA TRAVEL AND EVENTS LTD,IPINVELECT3_2060,"6,330.00",Purchase Invoice
BIS,Skills Funding Agency,03/06/2016,Hosting,Funding & Programmes - Executive Office,CLAREMONT MARKETING COMMUNICATIONS LTD,SPINVB_31505,"7,350.00",Purchase Invoice
BIS,Skills Funding Agency,03/06/2016,Hosting,Operations ICT - Technical Design Authority,SPECIALIST COMPUTER CENTRES PLC,SPCRNB_1102,"-3,600.00",Purchase Credit Note
BIS,Skills Funding Agency,03/06/2016,Hosting,Operations ICT - Technical Design Authority,SPECIALIST COMPUTER CENTRES PLC,SPINVB_31469,360,Purchase Invoice
BIS,Skills Funding Agency,03/06/2016,Hosting,Operations ICT - Technical Design Authority,SPECIALIST COMPUTER CENTRES PLC,SPINVB_31498,858,Purchase Invoice
BIS,Skills Funding Agency,03/06/2016,Hosting,Operations ICT - Technical Design Authority,SPECIALIST COMPUTER CENTRES PLC,SPINVB_31508,"7,920.00",Purchase Invoice
BIS,Skills Funding Agency,03/06/2016,Licences,Operations ICT - Business IT - Agency Services,BOTTOMLINE TECHNOLOGIES EUROPE LTD,SPINVB_31252,632.26,Purchase Invoice
BIS,Skills Funding Agency,03/06/2016,Licences,Operations ICT - Business IT - Agency Services,BOTTOMLINE TECHNOLOGIES EUROPE LTD,SPINVB_31253,632.26,Purchase Invoice
BIS,Skills Funding Agency,03/06/2016,Managed IT Service,Data Science,CAPGEMINI UK PLC,SPINVB_31545,"15,744.00",Purchase Invoice
BIS,Skills Funding Agency,03/06/2016,Managed IT Service,Funding & Programmes - Executive Office,VALTECH LIMITED,SPINVB_31393,"55,800.00",Purchase Invoice
BIS,Skills Funding Agency,03/06/2016,Managed IT Service,Funding & Programmes - Executive Office,VALTECH LIMITED,SPINVB_31395,"1,728.00",Purchase Invoice
BIS,Skills Funding Agency,03/06/2016,Managed IT Service,Funding & Programmes - Funding Systems and Information,VALTECH LIMITED,SPINVB_31385,"2,268.00",Purchase Invoice
BIS,Skills Funding Agency,03/06/2016,Managed IT Service,Funding & Programmes - Funding Systems and Information,VALTECH LIMITED,SPINVB_31387,"54,360.00",Purchase Invoice
BIS,Skills Funding Agency,03/06/2016,Managed IT Service,Operations ICT - Provider Digital Service,CAPGEMINI UK PLC,SPINVB_31546,"19,680.00",Purchase Invoice
BIS,Skills Funding Agency,03/06/2016,Other Travel,Funding & Programmes - Provider Management & Intervention Central,Agency Staff Member,SCLAIM_45765,48.2,Staff Expenses Claim
BIS,Skills Funding Agency,03/06/2016,Petrol Car Mileage,Funding & Programmes - Provider Management & Intervention Central,Agency Staff Member,SCLAIM_45765,131.4,Staff Expenses Claim
BIS,Skills Funding Agency,03/06/2016,Postage,Chief Executive Office - Executive Office,ROYAL MAIL HOLDINGS PLC,SPINVNO_3841,"1,175.10",Purchase Invoice
BIS,Skills Funding Agency,03/06/2016,Professional Services - Single Assignments,Operations ICT - Projects,CAPGEMINI UK PLC,SPINVB_31542,"2,900.42",Purchase Invoice
BIS,Skills Funding Agency,03/06/2016,Professional Services,Funding & Programmes - Localism Policy Implementation,CAPGEMINI UK PLC,SPINVB_31544,"20,664.00",Purchase Invoice
BIS,Skills Funding Agency,03/06/2016,Professional Services,Operations ICT - Mission IT / Business As Usual Major Releases,BOTTOMLINE TECHNOLOGIES EUROPE LTD,SPINVB_31551,"7,117.44",Purchase Invoice
BIS,Skills Funding Agency,03/06/2016,Professional Services,Operations ICT - Mission IT / Business As Usual Major Releases,INFOR GLOBAL SOLUTIONS (MIDLANDS IV) LTD,SPINVB_31501,"24,030.00",Purchase Invoice
BIS,Skills Funding Agency,03/06/2016,Recruitment Advertising,Transformation & Corporate Strategy,UCAS MEDIA LTD,SPINVB_31573,"17,427.96",Purchase Invoice
BIS,Skills Funding Agency,03/06/2016,Software Upgrades,Operations ICT - Business IT - Agency Services,BOTTOMLINE TECHNOLOGIES EUROPE LTD,SPCRNNO_465,"-5,185.57",Purchase Credit Note
BIS,Skills Funding Agency,03/06/2016,Subsistence,Employer & Provider Services South East,ASPIRE LEARNING & DEVELOPMENT LTD,SPINVB_31572,114.5,Purchase Invoice
BIS,Skills Funding Agency,03/06/2016,Support Services,Data Science,LOCKHEED MARTIN BUSINESS TECHNOLOGY SOLUTIONS LIMITED,SPINVB_31524,"5,764.37",Purchase Invoice
BIS,Skills Funding Agency,03/06/2016,Support Services,Funding & Programmes - Delivery & Performance - Data Collections,LOCKHEED MARTIN BUSINESS TECHNOLOGY SOLUTIONS LIMITED,SPINVB_31415,170.66,Purchase Invoice
BIS,Skills Funding Agency,03/06/2016,Support Services,Funding & Programmes - Delivery & Performance - Data Collections,LOCKHEED MARTIN BUSINESS TECHNOLOGY SOLUTIONS LIMITED,SPINVB_31525,389.11,Purchase Invoice
BIS,Skills Funding Agency,03/06/2016,Temporary Staff,Apprenticeships & Delivery Services - Executive Office,CAPITA BUSINESS SERVICES LTD,IPINVELECT3_2061,"3,228.60",Purchase Invoice
BIS,Skills Funding Agency,03/06/2016,Temporary Staff,Funding & Programmes - Executive Office,CAPITA BUSINESS SERVICES LTD,IPINVELECT3_2061,"19,538.87",Purchase Invoice
BIS,Skills Funding Agency,03/06/2016,Temporary Staff,Operations Finance - Executive Office,PERTEMPS RECRUITMENT PARTNERSHIP LTD,SPINVB_31550,317.96,Purchase Invoice
BIS,Skills Funding Agency,03/06/2016,Temporary Staff,Operations ICT - Information & Communication Technology - Technical,CAPITA BUSINESS SERVICES LTD,IPINVELECT3_2061,"2,639.10",Purchase Invoice
BIS,Skills Funding Agency,03/06/2016,Temporary Staff,Operations ICT - Information & Communication Technology - Technical,PARITY RESOURCES LTD,SPINVB_31558,"11,012.38",Purchase Invoice
BIS,Skills Funding Agency,03/06/2016,Temporary Staff,Operations ICT - Project Delivery,PARITY RESOURCES LTD,SPINVB_31538,"5,296.80",Purchase Invoice
BIS,Skills Funding Agency,03/06/2016,Temporary Staff,Operations ICT - Projects,CAPITA BUSINESS SERVICES LTD,IPINVELECT3_2061,"23,486.58",Purchase Invoice
BIS,Skills Funding Agency,03/06/2016,Training Fees Staff,Employer & Provider Services South East,ASPIRE LEARNING & DEVELOPMENT LTD,SPINVB_31572,300,Purchase Invoice
BIS,Skills Funding Agency,07/06/2016,16-18 Apprenticeship Grant for Employers - Centralised Contract Management,Main Funding,BIRMINGHAM METROPOLITAN COLLEGE,AGEC_1630,"-12,000.00",Programme System File
BIS,Skills Funding Agency,07/06/2016,16-18 Apprenticeship Grant for Employers - Centralised Contract Management,Main Funding,BIRMINGHAM METROPOLITAN COLLEGE,AGER_4181,"22,500.00",Programme System File
BIS,Skills Funding Agency,07/06/2016,16-18 Apprenticeship Grant for Employers - Centralised Contract Management,Main Funding,BIRMINGHAM METROPOLITAN COLLEGE,AGER_4878,"12,000.00",Programme System File
BIS,Skills Funding Agency,07/06/2016,16-18 Apprenticeship Grant for Employers,Main Funding,BIRMINGHAM METROPOLITAN COLLEGE,NUPS16_3299,"-6,000.00",Programme Template
BIS,Skills Funding Agency,07/06/2016,19-24 Apprenticeship Grant for Employers - Centralised Contract Management,Main Funding,BIRMINGHAM METROPOLITAN COLLEGE,AGER_4182,"18,000.00",Programme System File
BIS,Skills Funding Agency,07/06/2016,19-24 Apprenticeship Grant for Employers - Centralised Contract Management,Main Funding,BIRMINGHAM METROPOLITAN COLLEGE,AGER_4879,"3,000.00",Programme System File
BIS,Skills Funding Agency,07/06/2016,19-24 Apprenticeship Grant for Employers,Main Funding,BIRMINGHAM METROPOLITAN COLLEGE,NUPS16_3435,"-10,500.00",Programme Template
BIS,Skills Funding Agency,07/06/2016,Community Learning - Centralised Contract Management,Main Funding,BIRMINGHAM METROPOLITAN COLLEGE,CLP_2857,"20,630.00",Programme System File
BIS,Skills Funding Agency,07/06/2016,Computer Consumables,Operations ICT - Business IT - Agency Services,THE PRESENTATION SOLUTIONS GROUP LTD,SPINVB_31582,"3,465.60",Purchase Invoice
BIS,Skills Funding Agency,07/06/2016,Computer Consumables,Operations ICT - Business IT - Agency Services,THE PRESENTATION SOLUTIONS GROUP LTD,SPINVB_31583,"2,100.00",Purchase Invoice
BIS,Skills Funding Agency,07/06/2016,Hosting,Operations ICT - Technical Design Authority,SPECIALIST COMPUTER CENTRES PLC,SPINVB_31534,"28,800.00",Purchase Invoice
BIS,Skills Funding Agency,07/06/2016,Hosting,Operations ICT - Technical Design Authority,SPECIALIST COMPUTER CENTRES PLC,SPINVB_31535,"19,999.99",Purchase Invoice
BIS,Skills Funding Agency,07/06/2016,Hosting,Operations ICT - Technical Design Authority,SPECIALIST COMPUTER CENTRES PLC,SPINVB_31540,"187,018.85",Purchase Invoice
BIS,Skills Funding Agency,07/06/2016,Hosting,Operations ICT - Technical Design Authority,SPECIALIST COMPUTER CENTRES PLC,SPINVB_31548,"2,307.24",Purchase Invoice
BIS,Skills Funding Agency,07/06/2016,Hosting,Operations ICT - Technical Design Authority,SPECIALIST COMPUTER CENTRES PLC,SPINVB_31563,"18,810.00",Purchase Invoice
BIS,Skills Funding Agency,07/06/2016,Hosting,Operations ICT - Technical Design Authority,SPECIALIST COMPUTER CENTRES PLC,SPINVB_31567,"5,428.50",Purchase Invoice
BIS,Skills Funding Agency,07/06/2016,Hosting,Operations ICT - Technical Design Authority,SPECIALIST COMPUTER CENTRES PLC,SPINVB_31576,"9,882.48",Purchase Invoice
BIS,Skills Funding Agency,07/06/2016,Information Technology Systems Development,Funding & Programmes - Executive Office,MATRAXIS LTD,SPINVB_31537,"1,695.60",Purchase Invoice
BIS,Skills Funding Agency,07/06/2016,Information Technology Systems Development,Funding & Programmes - Executive Office,PANLOGIC LTD,SPINVB_31555,"6,345.60",Purchase Invoice
BIS,Skills Funding Agency,07/06/2016,Landline Telephone Service,Operations ICT - Information & Communication Technology - Technical,IDN TELECOM LTD,IPINVELECT3_2062,464.77,Purchase Invoice
BIS,Skills Funding Agency,07/06/2016,Licences,Operations ICT - Business IT - Agency Services,SCARISTA LTD,SPINVB_31585,235.51,Purchase Invoice
BIS,Skills Funding Agency,07/06/2016,Licences,Operations ICT - Business IT - Agency Services,SERVICENOW NEDERLAND B.V.,SPINVB_31552,"1,168.68",Purchase Invoice
BIS,Skills Funding Agency,07/06/2016,Managed IT Service,Funding & Programmes - Executive Office,ANALYSE-CONCEPT LTD,SPINVB_31570,"33,600.00",Purchase Invoice
BIS,Skills Funding Agency,07/06/2016,Managed IT Service,Funding & Programmes - Executive Office,PANLOGIC LTD,SPINVB_31554,"11,104.80",Purchase Invoice
BIS,Skills Funding Agency,07/06/2016,Managed IT Service,Funding & Programmes - Executive Office,PANLOGIC LTD,SPINVB_31556,"15,864.00",Purchase Invoice
BIS,Skills Funding Agency,07/06/2016,Managed IT Service,Funding & Programmes - Funding Systems and Information,ANALYSE-CONCEPT LTD,SPINVB_31571,840,Purchase Invoice
BIS,Skills Funding Agency,07/06/2016,Managed IT Service,Operations ICT - Change Delivery,CAPGEMINI UK PLC,SPINVB_30973,"18,276.00",Purchase Invoice
BIS,Skills Funding Agency,07/06/2016,Managed IT Service,Operations ICT - Change Delivery,CAPGEMINI UK PLC,SPINVB_31281,"21,646.30",Purchase Invoice
BIS,Skills Funding Agency,07/06/2016,Managed IT Service,Operations ICT - Change Delivery,CAPGEMINI UK PLC,SPINVB_31282,"18,698.26",Purchase Invoice
BIS,Skills Funding Agency,07/06/2016,Managed IT Service,Operations ICT - Change Delivery,CAPGEMINI UK PLC,SPINVB_31283,"17,959.32",Purchase Invoice
BIS,Skills Funding Agency,07/06/2016,Next Step Development,Main Funding,TRIBAL EDUCATION LTD,SPINVB_31595,"77,575.20",Purchase Invoice
BIS,Skills Funding Agency,07/06/2016,Professional Services - Single Assignments,Operations ICT - Projects,CIBER UK LIMITED,SPCRNB_1119,-645.54,Purchase Credit Note
BIS,Skills Funding Agency,07/06/2016,Professional Services - Single Assignments,Operations ICT - Projects,CIBER UK LIMITED,SPINVB_31054,"6,764.05",Purchase Invoice
BIS,Skills Funding Agency,07/06/2016,Professional Services - Single Assignments,Operations ICT - Projects,CIBER UK LIMITED,SPINVB_31574,510,Purchase Invoice
BIS,Skills Funding Agency,07/06/2016,Professional Services,Operations Finance - Legal & Governance Services,IN�PLACE�OF�STRIFE,SPINVCHQ_578,"1,920.00",Purchase Invoice
BIS,Skills Funding Agency,07/06/2016,Professional Services,Operations ICT - Mission IT / Business As Usual Major Releases,CAPGEMINI UK PLC,SPINVB_31547,"88,128.00",Purchase Invoice
BIS,Skills Funding Agency,07/06/2016,Professional Services,Operations ICT - Projects,NCC GROUP SECURITY SERVICES LTD,SPINVB_31581,169.08,Purchase Invoice
BIS,Skills Funding Agency,07/06/2016,Software Maintenance & Repair,Operations ICT - Business IT - Agency Services,CAPGEMINI UK PLC,SPINVB_31528,"62,041.20",Purchase Invoice
BIS,Skills Funding Agency,07/06/2016,Software Maintenance & Repair,Operations ICT - Business IT - Agency Services,CAPGEMINI UK PLC,SPINVB_31529,"38,190.00",Purchase Invoice
BIS,Skills Funding Agency,07/06/2016,Software Maintenance & Repair,Operations ICT - Business IT - Agency Services,CAPGEMINI UK PLC,SPINVB_31530,"18,712.80",Purchase Invoice
BIS,Skills Funding Agency,07/06/2016,Software Maintenance & Repair,Operations ICT - Business IT - Agency Services,CAPGEMINI UK PLC,SPINVB_31532,"62,613.60",Purchase Invoice
BIS,Skills Funding Agency,07/06/2016,Software Maintenance & Repair,Operations ICT - Business IT - Agency Services,CGI IT UK LIMITED,SPINVB_31579,"187,384.80",Purchase Invoice
BIS,Skills Funding Agency,07/06/2016,Software Maintenance & Repair,Operations ICT - Business IT - Citizen Services,HOTCOURSES DATA LTD,SPINVB_31549,"17,648.40",Purchase Invoice
BIS,Skills Funding Agency,07/06/2016,Software Maintenance & Repair,Operations ICT - Business IT - Citizen Services,LOCKHEED MARTIN BUSINESS TECHNOLOGY SOLUTIONS LIMITED,SPINVB_31561,"118,643.86",Purchase Invoice
BIS,Skills Funding Agency,07/06/2016,Software Maintenance & Repair,Operations ICT - Mission IT / Business As Usual Major Releases,CAPGEMINI UK PLC,SPINVB_31526,"14,335.20",Purchase Invoice
BIS,Skills Funding Agency,07/06/2016,Software Maintenance & Repair,Operations ICT - Mission IT / Business As Usual Major Releases,CAPGEMINI UK PLC,SPINVB_31527,"15,933.02",Purchase Invoice
BIS,Skills Funding Agency,07/06/2016,Software Maintenance & Repair,Operations ICT - Project Delivery,BOTTOMLINE TECHNOLOGIES EUROPE LTD,SPINVB_31580,"2,100.00",Purchase Invoice
BIS,Skills Funding Agency,07/06/2016,Temporary Staff,Operations ICT - Information & Communication Technology - Technical,KELLY SERVICES UK LTD,SPINVB_31589,615.61,Purchase Invoice
BIS,Skills Funding Agency,07/06/2016,Young People's Helpline,Main Funding,IFF RESEARCH LTD,SPINVB_31584,"9,000.00",Purchase Invoice
BIS,Skills Funding Agency,08/06/2016,Diesel Car Mileage Passenger Supplement,Funding & Programmes - Localism Policy Implementation,Agency Staff Member,SCLAIM_45807,22.8,Staff Expenses Claim
BIS,Skills Funding Agency,08/06/2016,Diesel Car Mileage Passenger Supplement,Funding & Programmes - Provider Management & Intervention South,Agency Staff Member,SCLAIM_45809,8.5,Staff Expenses Claim
BIS,Skills Funding Agency,08/06/2016,Diesel Car Mileage,Apprenticeships & Delivery Services - Apprenticeships & Employer Policy Implementation,Agency Staff Member,SCLAIM_45785,26.1,Staff Expenses Claim
BIS,Skills Funding Agency,08/06/2016,Diesel Car Mileage,Apprenticeships & Delivery Services - Marketing,Agency Staff Member,SCLAIM_45767,153,Staff Expenses Claim
BIS,Skills Funding Agency,08/06/2016,Diesel Car Mileage,Central Delivery Service - European Social Fund - Audit Compliance,Agency Staff Member,SCLAIM_45756,715.5,Staff Expenses Claim
BIS,Skills Funding Agency,08/06/2016,Diesel Car Mileage,Central Delivery Service - European Social Fund - Audit Compliance,Agency Staff Member,SCLAIM_45766,32.4,Staff Expenses Claim
BIS,Skills Funding Agency,08/06/2016,Diesel Car Mileage,Central Delivery Service - European Social Fund - Audit Compliance,Agency Staff Member,SCLAIM_45782,72,Staff Expenses Claim
BIS,Skills Funding Agency,08/06/2016,Diesel Car Mileage,Central Delivery Service - European Social Fund - Audit Compliance,Agency Staff Member,SCLAIM_45797,345.6,Staff Expenses Claim
BIS,Skills Funding Agency,08/06/2016,Diesel Car Mileage,Central Delivery Service - European Social Fund - Audit Compliance,Agency Staff Member,SCLAIM_45798,299.25,Staff Expenses Claim
BIS,Skills Funding Agency,08/06/2016,Diesel Car Mileage,Central Delivery Service - European Social Fund - Audit Compliance,Agency Staff Member,SCLAIM_45823,37.8,Staff Expenses Claim
BIS,Skills Funding Agency,08/06/2016,Diesel Car Mileage,Central Delivery Service - European Social Fund - Audit Compliance,Agency Staff Member,SCLAIM_45829,59.85,Staff Expenses Claim
BIS,Skills Funding Agency,08/06/2016,Diesel Car Mileage,Central Delivery Service - European Social Fund - Audit Compliance,Agency Staff Member,SCLAIM_45830,143.1,Staff Expenses Claim
BIS,Skills Funding Agency,08/06/2016,Diesel Car Mileage,Employer & Provider Services North East & Yorkshire,Agency Staff Member,SCLAIM_45820,276.3,Staff Expenses Claim
BIS,Skills Funding Agency,08/06/2016,Diesel Car Mileage,Employer & Provider Services North East & Yorkshire,Agency Staff Member,SCLAIM_45826,-18,Staff Expenses Claim
BIS,Skills Funding Agency,08/06/2016,Diesel Car Mileage,Employer & Provider Services North West,Agency Staff Member,SCLAIM_45757,79.2,Staff Expenses Claim
BIS,Skills Funding Agency,08/06/2016,Diesel Car Mileage,Employer & Provider Services North West,Agency Staff Member,SCLAIM_45792,67.05,Staff Expenses Claim
BIS,Skills Funding Agency,08/06/2016,Diesel Car Mileage,Employer & Provider Services North West,Agency Staff Member,SCLAIM_45817,50.4,Staff Expenses Claim
BIS,Skills Funding Agency,08/06/2016,Diesel Car Mileage,Employer & Provider Services South East,Agency Staff Member,SCLAIM_45796,201.6,Staff Expenses Claim
BIS,Skills Funding Agency,08/06/2016,Diesel Car Mileage,Funding & Programmes - Localism Policy Implementation,Agency Staff Member,SCLAIM_45807,355.5,Staff Expenses Claim
BIS,Skills Funding Agency,08/06/2016,Diesel Car Mileage,Funding & Programmes - Provider Management & Intervention North,Agency Staff Member,SCLAIM_45770,156.6,Staff Expenses Claim
BIS,Skills Funding Agency,08/06/2016,Diesel Car Mileage,Funding & Programmes - Provider Management & Intervention North,Agency Staff Member,SCLAIM_45795,111.6,Staff Expenses Claim
BIS,Skills Funding Agency,08/06/2016,Diesel Car Mileage,Funding & Programmes - Provider Management & Intervention North,Agency Staff Member,SCLAIM_45806,101.25,Staff Expenses Claim
BIS,Skills Funding Agency,08/06/2016,Diesel Car Mileage,Funding & Programmes - Provider Management & Intervention South,Agency Staff Member,SCLAIM_45762,235.8,Staff Expenses Claim
BIS,Skills Funding Agency,08/06/2016,Diesel Car Mileage,Funding & Programmes - Provider Management & Intervention South,Agency Staff Member,SCLAIM_45793,190.8,Staff Expenses Claim
BIS,Skills Funding Agency,08/06/2016,Diesel Car Mileage,Funding & Programmes - Provider Management & Intervention South,Agency Staff Member,SCLAIM_45809,365.4,Staff Expenses Claim
BIS,Skills Funding Agency,08/06/2016,Diesel Car Mileage,National Careers & Learner Services,Agency Staff Member,SCLAIM_45760,156.6,Staff Expenses Claim
BIS,Skills Funding Agency,08/06/2016,Diesel Car Mileage,National Careers & Learner Services,Agency Staff Member,SCLAIM_45776,3.6,Staff Expenses Claim
BIS,Skills Funding Agency,08/06/2016,Diesel Car Mileage,National Careers & Learner Services,Agency Staff Member,SCLAIM_45790,72.9,Staff Expenses Claim
BIS,Skills Funding Agency,08/06/2016,Diesel Car Mileage,National Careers & Learner Services,Agency Staff Member,SCLAIM_45812,95.4,Staff Expenses Claim
BIS,Skills Funding Agency,08/06/2016,Diesel Car Mileage,Operations Finance - Executive Office,Agency Staff Member,SCLAIM_45789,254.7,Staff Expenses Claim
BIS,Skills Funding Agency,08/06/2016,Diesel Car Mileage,Operations Finance - Executive Office,Agency Staff Member,SCLAIM_45802,30.6,Staff Expenses Claim
BIS,Skills Funding Agency,08/06/2016,Diesel Car Mileage,Operations Finance - Financial Management,Agency Staff Member,SCLAIM_45819,111.6,Staff Expenses Claim
BIS,Skills Funding Agency,08/06/2016,Diesel Car Mileage,Southern Division,Agency Staff Member,SCLAIM_45771,127.8,Staff Expenses Claim
BIS,Skills Funding Agency,08/06/2016,Eye Tests,Employer & Provider Services London,Agency Staff Member,SCLAIM_45768,60,Staff Expenses Claim
BIS,Skills Funding Agency,08/06/2016,Facilities Management,"Operations Finance - Shared Service, ICT Finance & Capital",DEPARTMENT FOR BUSINESS INNOVATION & SKILLS (NEWPORT),SPINVB_31639,467.52,Purchase Invoice
BIS,Skills Funding Agency,08/06/2016,Hybrid Car Mileage,Employer & Provider Services North East & Yorkshire,Agency Staff Member,SCLAIM_45820,-13.5,Staff Expenses Claim
BIS,Skills Funding Agency,08/06/2016,Licences,Operations ICT - Technical Design Authority,INFOR GLOBAL SOLUTIONS MIDLANDS V CO,SPINVB_31575,"72,824.42",Purchase Invoice
BIS,Skills Funding Agency,08/06/2016,Managed IT Service,Apprenticeships & Delivery Services - Executive Office,ORANGE BUS LIMITED,SPINVB_31578,"37,337.13",Purchase Invoice
BIS,Skills Funding Agency,08/06/2016,Managed IT Service,Operations ICT - Projects,CIBER UK LIMITED,SPINVB_31596,325.2,Purchase Invoice
BIS,Skills Funding Agency,08/06/2016,Managed IT Service,Operations ICT - Projects,CIBER UK LIMITED,SPINVB_31597,146.35,Purchase Invoice
BIS,Skills Funding Agency,08/06/2016,Managed IT Service,Operations ICT - Projects,CIBER UK LIMITED,SPINVB_31598,"2,794.20",Purchase Invoice
BIS,Skills Funding Agency,08/06/2016,"National Apprenticeship Service - Business, Innovation & Skills - Non-Participation",Main Funding,BOSTOCK MARKETING GROUP LTD,SPINVB_31590,"22,536.00",Purchase Invoice
BIS,Skills Funding Agency,08/06/2016,Other Fuel Car Mileage,Central Delivery Service - European Social Fund - Audit Compliance,Agency Staff Member,SCLAIM_45788,-100,Staff Expenses Claim
BIS,Skills Funding Agency,08/06/2016,Other Fuel Car Mileage,Central Delivery Service - European Social Fund - Audit Compliance,Agency Staff Member,SCLAIM_45797,-78.4,Staff Expenses Claim
BIS,Skills Funding Agency,08/06/2016,Other Fuel Car Mileage,Central Delivery Service - European Social Fund - Audit Compliance,Agency Staff Member,SCLAIM_45798,-78.4,Staff Expenses Claim
BIS,Skills Funding Agency,08/06/2016,Other Fuel Car Mileage,Central Delivery Service - European Social Fund - Audit Compliance,Agency Staff Member,SCLAIM_45823,-8.9,Staff Expenses Claim
BIS,Skills Funding Agency,08/06/2016,Other Fuel Car Mileage,Employer & Provider Services North East & Yorkshire,Agency Staff Member,SCLAIM_45826,334.8,Staff Expenses Claim
BIS,Skills Funding Agency,08/06/2016,Other Fuel Car Mileage,Funding & Programmes - Localism Policy Implementation,Agency Staff Member,SCLAIM_45799,396.9,Staff Expenses Claim
BIS,Skills Funding Agency,08/06/2016,Other Fuel Car Mileage,Funding & Programmes - Localism Policy Implementation,Agency Staff Member,SCLAIM_45824,369,Staff Expenses Claim
BIS,Skills Funding Agency,08/06/2016,Other Travel,Apprenticeships & Delivery Services - Apprenticeships & Employer Policy Implementation,Agency Staff Member,SCLAIM_45825,16.5,Staff Expenses Claim
BIS,Skills Funding Agency,08/06/2016,Other Travel,Apprenticeships & Delivery Services - Marketing,Agency Staff Member,SCLAIM_45767,25.1,Staff Expenses Claim
BIS,Skills Funding Agency,08/06/2016,Other Travel,Central Delivery Service - European Social Fund - Audit Compliance,Agency Staff Member,SCLAIM_45766,4.2,Staff Expenses Claim
BIS,Skills Funding Agency,08/06/2016,Other Travel,Central Delivery Service - European Social Fund - Audit Compliance,Agency Staff Member,SCLAIM_45782,8.4,Staff Expenses Claim
BIS,Skills Funding Agency,08/06/2016,Other Travel,Central Delivery Service - European Social Fund - Audit Compliance,Agency Staff Member,SCLAIM_45787,29.6,Staff Expenses Claim
BIS,Skills Funding Agency,08/06/2016,Other Travel,Central Delivery Service - European Social Fund - Audit Compliance,Agency Staff Member,SCLAIM_45788,19.5,Staff Expenses Claim
BIS,Skills Funding Agency,08/06/2016,Other Travel,Central Delivery Service - European Social Fund - Audit Compliance,Agency Staff Member,SCLAIM_45797,3.5,Staff Expenses Claim
BIS,Skills Funding Agency,08/06/2016,Other Travel,Central Delivery Service - European Social Fund - Audit Compliance,Agency Staff Member,SCLAIM_45798,12,Staff Expenses Claim
BIS,Skills Funding Agency,08/06/2016,Other Travel,Central Delivery Service - European Social Fund - Audit Compliance,Agency Staff Member,SCLAIM_45805,8,Staff Expenses Claim
BIS,Skills Funding Agency,08/06/2016,Other Travel,Central Delivery Service - European Social Fund - Audit Compliance,Agency Staff Member,SCLAIM_45829,51,Staff Expenses Claim
BIS,Skills Funding Agency,08/06/2016,Other Travel,Employer & Provider Services North West,Agency Staff Member,SCLAIM_45763,6,Staff Expenses Claim
BIS,Skills Funding Agency,08/06/2016,Other Travel,Employer & Provider Services North West,Agency Staff Member,SCLAIM_45774,32.5,Staff Expenses Claim
BIS,Skills Funding Agency,08/06/2016,Other Travel,Employer & Provider Services North West,Agency Staff Member,SCLAIM_45781,4.2,Staff Expenses Claim
BIS,Skills Funding Agency,08/06/2016,Other Travel,Employer & Provider Services North West,Agency Staff Member,SCLAIM_45792,56.4,Staff Expenses Claim
BIS,Skills Funding Agency,08/06/2016,Other Travel,Employer & Provider Services North West,Agency Staff Member,SCLAIM_45816,23,Staff Expenses Claim
BIS,Skills Funding Agency,08/06/2016,Other Travel,Employer & Provider Services South East,Agency Staff Member,SCLAIM_45827,3.34,Staff Expenses Claim
BIS,Skills Funding Agency,08/06/2016,Other Travel,Employer & Provider Services South East,Agency Staff Member,SCLAIM_45828,25.7,Staff Expenses Claim
BIS,Skills Funding Agency,08/06/2016,Other Travel,Funding & Programmes - Funding Policy Implementation Programmes,Agency Staff Member,SCLAIM_45803,16,Staff Expenses Claim
BIS,Skills Funding Agency,08/06/2016,Other Travel,Funding & Programmes - Localism Policy Implementation,Agency Staff Member,SCLAIM_45799,33,Staff Expenses Claim
BIS,Skills Funding Agency,08/06/2016,Other Travel,Funding & Programmes - Localism Policy Implementation,Agency Staff Member,SCLAIM_45807,11,Staff Expenses Claim
BIS,Skills Funding Agency,08/06/2016,Other Travel,Funding & Programmes - Localism Policy Implementation,Agency Staff Member,SCLAIM_45824,55,Staff Expenses Claim
BIS,Skills Funding Agency,08/06/2016,Other Travel,Funding & Programmes - Provider Management & Intervention North,Agency Staff Member,SCLAIM_45770,38.8,Staff Expenses Claim
BIS,Skills Funding Agency,08/06/2016,Other Travel,Funding & Programmes - Provider Management & Intervention North,Agency Staff Member,SCLAIM_45795,36,Staff Expenses Claim
BIS,Skills Funding Agency,08/06/2016,Other Travel,Funding & Programmes - Provider Management & Intervention North,Agency Staff Member,SCLAIM_45806,62.8,Staff Expenses Claim
BIS,Skills Funding Agency,08/06/2016,Other Travel,Funding & Programmes - Provider Management & Intervention South,Agency Staff Member,SCLAIM_45762,12.7,Staff Expenses Claim
BIS,Skills Funding Agency,08/06/2016,Other Travel,Funding & Programmes - Provider Management & Intervention South,Agency Staff Member,SCLAIM_45793,25.8,Staff Expenses Claim
BIS,Skills Funding Agency,08/06/2016,Other Travel,National Careers & Learner Services,Agency Staff Member,SCLAIM_45760,84,Staff Expenses Claim
BIS,Skills Funding Agency,08/06/2016,Other Travel,National Careers & Learner Services,Agency Staff Member,SCLAIM_45776,26.3,Staff Expenses Claim
BIS,Skills Funding Agency,08/06/2016,Other Travel,National Careers & Learner Services,Agency Staff Member,SCLAIM_45790,47.5,Staff Expenses Claim
BIS,Skills Funding Agency,08/06/2016,Other Travel,National Careers & Learner Services,Agency Staff Member,SCLAIM_45812,26.2,Staff Expenses Claim
BIS,Skills Funding Agency,08/06/2016,Other Travel,Operations Finance - Accounting Services,Agency Staff Member,SCLAIM_45772,9,Staff Expenses Claim
BIS,Skills Funding Agency,08/06/2016,Other Travel,Operations Finance - Executive Office,Agency Staff Member,SCLAIM_45758,6,Staff Expenses Claim
BIS,Skills Funding Agency,08/06/2016,Other Travel,Operations Finance - Executive Office,Agency Staff Member,SCLAIM_45769,3.4,Staff Expenses Claim
BIS,Skills Funding Agency,08/06/2016,Other Travel,Operations Finance - Executive Office,Agency Staff Member,SCLAIM_45773,4.8,Staff Expenses Claim
BIS,Skills Funding Agency,08/06/2016,Other Travel,Operations Finance - Executive Office,Agency Staff Member,SCLAIM_45789,18.7,Staff Expenses Claim
BIS,Skills Funding Agency,08/06/2016,Other Travel,Operations Finance - Executive Office,Agency Staff Member,SCLAIM_45791,33,Staff Expenses Claim
BIS,Skills Funding Agency,08/06/2016,Other Travel,Operations Finance - Executive Office,Agency Staff Member,SCLAIM_45802,29.5,Staff Expenses Claim
BIS,Skills Funding Agency,08/06/2016,Other Travel,Operations Finance - Financial Management,Agency Staff Member,SCLAIM_45819,13.5,Staff Expenses Claim
BIS,Skills Funding Agency,08/06/2016,Other Travel,Operations ICT - Information & Communication Technology - Technical,Agency Staff Member,SCLAIM_45818,37.5,Staff Expenses Claim
BIS,Skills Funding Agency,08/06/2016,Petrol Car Mileage,Apprenticeships & Delivery Services - Apprenticeships & Employer Policy Implementation,Agency Staff Member,SCLAIM_45825,60.3,Staff Expenses Claim
BIS,Skills Funding Agency,08/06/2016,Petrol Car Mileage,Central Delivery Service - European Social Fund - Audit Compliance,Agency Staff Member,SCLAIM_45780,81,Staff Expenses Claim
BIS,Skills Funding Agency,08/06/2016,Petrol Car Mileage,Central Delivery Service - European Social Fund - Audit Compliance,Agency Staff Member,SCLAIM_45787,211.5,Staff Expenses Claim
BIS,Skills Funding Agency,08/06/2016,Petrol Car Mileage,Central Delivery Service - European Social Fund - Audit Compliance,Agency Staff Member,SCLAIM_45788,745.2,Staff Expenses Claim
BIS,Skills Funding Agency,08/06/2016,Petrol Car Mileage,Central Delivery Service - European Social Fund - Audit Compliance,Agency Staff Member,SCLAIM_45805,101.7,Staff Expenses Claim
BIS,Skills Funding Agency,08/06/2016,Petrol Car Mileage,Chief Executive Office - Communications,Agency Staff Member,SCLAIM_45813,19.8,Staff Expenses Claim
BIS,Skills Funding Agency,08/06/2016,Petrol Car Mileage,Chief Executive Office - Communications,Agency Staff Member,SCLAIM_45814,14.4,Staff Expenses Claim
BIS,Skills Funding Agency,08/06/2016,Petrol Car Mileage,Employer & Provider Services London,Agency Staff Member,SCLAIM_45775,27.9,Staff Expenses Claim
BIS,Skills Funding Agency,08/06/2016,Petrol Car Mileage,Employer & Provider Services North East & Yorkshire,Agency Staff Member,SCLAIM_45784,276.3,Staff Expenses Claim
BIS,Skills Funding Agency,08/06/2016,Petrol Car Mileage,Employer & Provider Services North East & Yorkshire,Agency Staff Member,SCLAIM_45800,54,Staff Expenses Claim
BIS,Skills Funding Agency,08/06/2016,Petrol Car Mileage,Employer & Provider Services North West,Agency Staff Member,SCLAIM_45774,112.5,Staff Expenses Claim
BIS,Skills Funding Agency,08/06/2016,Petrol Car Mileage,Employer & Provider Services North West,Agency Staff Member,SCLAIM_45781,68.4,Staff Expenses Claim
BIS,Skills Funding Agency,08/06/2016,Petrol Car Mileage,Employer & Provider Services South East,Agency Staff Member,SCLAIM_45827,98.1,Staff Expenses Claim
BIS,Skills Funding Agency,08/06/2016,Petrol Car Mileage,Intervention,Agency Staff Member,SCLAIM_45810,238.5,Staff Expenses Claim
BIS,Skills Funding Agency,08/06/2016,Petrol Car Mileage,National Careers & Learner Services,Agency Staff Member,SCLAIM_45777,71.1,Staff Expenses Claim
BIS,Skills Funding Agency,08/06/2016,Petrol Car Mileage,Operations Finance - Accounting Services,Agency Staff Member,SCLAIM_45772,48.6,Staff Expenses Claim
BIS,Skills Funding Agency,08/06/2016,Petrol Car Mileage,Operations Finance - Executive Office,Agency Staff Member,SCLAIM_45755,198,Staff Expenses Claim
BIS,Skills Funding Agency,08/06/2016,Petrol Car Mileage,Operations Finance - Executive Office,Agency Staff Member,SCLAIM_45758,24.3,Staff Expenses Claim
BIS,Skills Funding Agency,08/06/2016,Petrol Car Mileage,Operations Finance - Executive Office,Agency Staff Member,SCLAIM_45769,49.95,Staff Expenses Claim
BIS,Skills Funding Agency,08/06/2016,Professional Services - Single Assignments,Operations ICT - Projects,CIBER UK LIMITED,SPINVB_31599,"5,144.46",Purchase Invoice
BIS,Skills Funding Agency,08/06/2016,Professional Services,Operations ICT - Mission IT / Business As Usual Major Releases,UNIT 4 BUSINESS SOFTWARE LTD,SPINVB_31616,720,Purchase Invoice
BIS,Skills Funding Agency,08/06/2016,Rail Warrants & Tickets,Apprenticeships & Delivery Services - Apprenticeships & Employer Policy Implementation,Agency Staff Member,SCLAIM_45785,18.45,Staff Expenses Claim
BIS,Skills Funding Agency,08/06/2016,Rail Warrants & Tickets,Central Delivery Service - European Social Fund - Audit Compliance,Agency Staff Member,SCLAIM_45780,7.7,Staff Expenses Claim
BIS,Skills Funding Agency,08/06/2016,Rail Warrants & Tickets,Central Delivery Service - European Social Fund - Audit Compliance,Agency Staff Member,SCLAIM_45788,32.5,Staff Expenses Claim
BIS,Skills Funding Agency,08/06/2016,Rail Warrants & Tickets,Employer & Provider Services London,Agency Staff Member,SCLAIM_45759,16.6,Staff Expenses Claim
BIS,Skills Funding Agency,08/06/2016,Rail Warrants & Tickets,Funding & Programmes - Funding Policy Implementation Programmes,Agency Staff Member,SCLAIM_45801,20,Staff Expenses Claim
BIS,Skills Funding Agency,08/06/2016,Rail Warrants & Tickets,Funding & Programmes - Funding Policy Implementation Programmes,Agency Staff Member,SCLAIM_45803,34.7,Staff Expenses Claim
BIS,Skills Funding Agency,08/06/2016,Rail Warrants & Tickets,National Careers & Learner Services,Agency Staff Member,SCLAIM_45760,14.5,Staff Expenses Claim
BIS,Skills Funding Agency,08/06/2016,Rail Warrants & Tickets,National Careers & Learner Services,Agency Staff Member,SCLAIM_45790,9.6,Staff Expenses Claim
BIS,Skills Funding Agency,08/06/2016,Rail Warrants & Tickets,National Careers & Learner Services,Agency Staff Member,SCLAIM_45811,49.2,Staff Expenses Claim
BIS,Skills Funding Agency,08/06/2016,Rail Warrants & Tickets,National Careers & Learner Services,Agency Staff Member,SCLAIM_45812,75.1,Staff Expenses Claim
BIS,Skills Funding Agency,08/06/2016,Self-Drive Car Hire,Funding & Programmes - Provider Management & Intervention South,Agency Staff Member,SCLAIM_45793,60.61,Staff Expenses Claim
BIS,Skills Funding Agency,08/06/2016,Self-Drive Car Hire,National Careers & Learner Services,Agency Staff Member,SCLAIM_45776,30.11,Staff Expenses Claim
BIS,Skills Funding Agency,08/06/2016,Self-Drive Car Hire,Operations Finance - Executive Office,Agency Staff Member,SCLAIM_45791,29.3,Staff Expenses Claim
BIS,Skills Funding Agency,08/06/2016,Service Charges,Chief Executive Office - Executive Office,HOMES & COMMUNITIES AGENCY,SPINVB_31632,"28,702.17",Purchase Invoice
BIS,Skills Funding Agency,08/06/2016,Software Maintenance & Repair,Operations ICT - Business IT - Agency Services,ORACLE CORP UK LTD,SPINVB_31539,"2,822.63",Purchase Invoice
BIS,Skills Funding Agency,08/06/2016,Subsistence,Apprenticeships & Delivery Services - Apprenticeships & Employer Policy Implementation,Agency Staff Member,SCLAIM_45785,95,Staff Expenses Claim
BIS,Skills Funding Agency,08/06/2016,Subsistence,Central Delivery Service - European Social Fund - Audit Compliance,Agency Staff Member,SCLAIM_45779,10,Staff Expenses Claim
BIS,Skills Funding Agency,08/06/2016,Subsistence,Central Delivery Service - European Social Fund - Audit Compliance,Agency Staff Member,SCLAIM_45787,100,Staff Expenses Claim
BIS,Skills Funding Agency,08/06/2016,Subsistence,Central Delivery Service - European Social Fund - Audit Compliance,Agency Staff Member,SCLAIM_45797,10,Staff Expenses Claim
BIS,Skills Funding Agency,08/06/2016,Subsistence,Central Delivery Service - European Social Fund - Audit Compliance,Agency Staff Member,SCLAIM_45798,10,Staff Expenses Claim
BIS,Skills Funding Agency,08/06/2016,Subsistence,Central Delivery Service - European Social Fund - Audit Compliance,Agency Staff Member,SCLAIM_45805,45,Staff Expenses Claim
BIS,Skills Funding Agency,08/06/2016,Subsistence,Central Delivery Service - European Social Fund - Audit Compliance,Agency Staff Member,SCLAIM_45829,35,Staff Expenses Claim
BIS,Skills Funding Agency,08/06/2016,Subsistence,Chief Executive Office - Information Compliance & Security,Agency Staff Member,SCLAIM_45821,30,Staff Expenses Claim
BIS,Skills Funding Agency,08/06/2016,Subsistence,Data Science,Agency Staff Member,SCLAIM_45783,120,Staff Expenses Claim
BIS,Skills Funding Agency,08/06/2016,Subsistence,Employer & Provider Services North West,Agency Staff Member,SCLAIM_45774,10.65,Staff Expenses Claim
BIS,Skills Funding Agency,08/06/2016,Subsistence,Funding & Programmes - Funding Policy Implementation Programmes,Agency Staff Member,SCLAIM_45803,100,Staff Expenses Claim
BIS,Skills Funding Agency,08/06/2016,Subsistence,Funding & Programmes - Localism Policy Implementation,Agency Staff Member,SCLAIM_45807,20.9,Staff Expenses Claim
BIS,Skills Funding Agency,08/06/2016,Subsistence,Funding & Programmes - Provider Management & Intervention North,Agency Staff Member,SCLAIM_45795,20,Staff Expenses Claim
BIS,Skills Funding Agency,08/06/2016,Subsistence,Funding & Programmes - Provider Management & Intervention South,Agency Staff Member,SCLAIM_45793,20,Staff Expenses Claim
BIS,Skills Funding Agency,08/06/2016,Subsistence,National Careers & Learner Services,Agency Staff Member,SCLAIM_45776,70,Staff Expenses Claim
BIS,Skills Funding Agency,08/06/2016,Subsistence,National Careers & Learner Services,Agency Staff Member,SCLAIM_45790,10,Staff Expenses Claim
BIS,Skills Funding Agency,08/06/2016,Subsistence,National Careers & Learner Services,Agency Staff Member,SCLAIM_45794,80,Staff Expenses Claim
BIS,Skills Funding Agency,08/06/2016,Subsistence,National Careers & Learner Services,Agency Staff Member,SCLAIM_45811,25,Staff Expenses Claim
BIS,Skills Funding Agency,08/06/2016,Subsistence,National Careers & Learner Services,Agency Staff Member,SCLAIM_45812,125,Staff Expenses Claim
BIS,Skills Funding Agency,08/06/2016,Subsistence,Operations Finance - Executive Office,Agency Staff Member,SCLAIM_45769,75,Staff Expenses Claim
BIS,Skills Funding Agency,08/06/2016,Subsistence,Operations Finance - Executive Office,Agency Staff Member,SCLAIM_45773,59.24,Staff Expenses Claim
BIS,Skills Funding Agency,08/06/2016,Subsistence,Operations Finance - Financial Management,Agency Staff Member,SCLAIM_45819,10,Staff Expenses Claim
BIS,Skills Funding Agency,08/06/2016,Sundry Items,Chief Executive Office - Executive Office,Agency Staff Member,SCLAIM_45822,127.5,Staff Expenses Claim
BIS,Skills Funding Agency,08/06/2016,Sundry Items,Chief Executive Office - Information Compliance & Security,Agency Staff Member,SCLAIM_45821,-10,Staff Expenses Claim
BIS,Skills Funding Agency,08/06/2016,Sundry Items,Intervention,Agency Staff Member,SCLAIM_45810,-45,Staff Expenses Claim
BIS,Skills Funding Agency,08/06/2016,Sundry Items,National Careers & Learner Services,Agency Staff Member,SCLAIM_45815,21,Staff Expenses Claim
BIS,Skills Funding Agency,08/06/2016,Sundry Items,Operations Finance - Financial Management,Agency Staff Member,SCLAIM_45819,-41.5,Staff Expenses Claim
BIS,Skills Funding Agency,08/06/2016,Taxis,Apprenticeships & Delivery Services - Apprenticeships & Employer Policy Implementation,Agency Staff Member,SCLAIM_45786,12,Staff Expenses Claim
BIS,Skills Funding Agency,08/06/2016,Taxis,Central Delivery Service - European Social Fund - Audit Compliance,Agency Staff Member,SCLAIM_45788,32.2,Staff Expenses Claim
BIS,Skills Funding Agency,08/06/2016,Taxis,Central Delivery Service - European Social Fund - Audit Compliance,Agency Staff Member,SCLAIM_45804,5.6,Staff Expenses Claim
BIS,Skills Funding Agency,08/06/2016,Taxis,Central Delivery Service - European Social Fund - Audit Compliance,Agency Staff Member,SCLAIM_45805,20,Staff Expenses Claim
BIS,Skills Funding Agency,08/06/2016,Taxis,Data Science,Agency Staff Member,SCLAIM_45783,45,Staff Expenses Claim
BIS,Skills Funding Agency,08/06/2016,Taxis,Employer & Provider Services South East,Agency Staff Member,SCLAIM_45796,8,Staff Expenses Claim
BIS,Skills Funding Agency,08/06/2016,Taxis,Funding & Programmes - Funding Policy Implementation Programmes,Agency Staff Member,SCLAIM_45803,37.25,Staff Expenses Claim
BIS,Skills Funding Agency,08/06/2016,Taxis,Funding & Programmes - Provider Management & Intervention North,Agency Staff Member,SCLAIM_45795,7,Staff Expenses Claim
BIS,Skills Funding Agency,08/06/2016,Taxis,National Careers & Learner Services,Agency Staff Member,SCLAIM_45776,61,Staff Expenses Claim
BIS,Skills Funding Agency,08/06/2016,Taxis,National Careers & Learner Services,Agency Staff Member,SCLAIM_45794,40,Staff Expenses Claim
BIS,Skills Funding Agency,08/06/2016,Taxis,National Careers & Learner Services,Agency Staff Member,SCLAIM_45811,14.1,Staff Expenses Claim
BIS,Skills Funding Agency,08/06/2016,Taxis,National Careers & Learner Services,Agency Staff Member,SCLAIM_45812,21,Staff Expenses Claim
BIS,Skills Funding Agency,08/06/2016,Taxis,Operations Finance - Executive Office,Agency Staff Member,SCLAIM_45778,15.2,Staff Expenses Claim
BIS,Skills Funding Agency,08/06/2016,Taxis,Operations ICT - Information & Communication Technology - Technical,Agency Staff Member,SCLAIM_45761,22,Staff Expenses Claim
BIS,Skills Funding Agency,08/06/2016,Taxis,Operations ICT - Information & Communication Technology - Technical,Agency Staff Member,SCLAIM_45818,10,Staff Expenses Claim
BIS,Skills Funding Agency,08/06/2016,Temporary Staff,HR - Human Resources,SF RECRUITMENT LTD,SPINVB_31557,932.4,Purchase Invoice
BIS,Skills Funding Agency,08/06/2016,Temporary Staff,Operations ICT - Technical Design Authority,SMART SOURCING PLC,SPINVB_31602,"13,366.32",Purchase Invoice
BIS,Skills Funding Agency,08/06/2016,Training Materials,Data Science,Agency Staff Member,SCLAIM_45783,10,Staff Expenses Claim
BIS,Skills Funding Agency,10/06/2016,16-18 Apprenticeship Grant for Employers - Centralised Contract Management,Main Funding,5 E LTD,AGEC_1357,"-1,500.00",Programme System File
BIS,Skills Funding Agency,10/06/2016,16-18 Apprenticeship Grant for Employers - Centralised Contract Management,Main Funding,5 E LTD,AGER_4554,"1,500.00",Programme System File
BIS,Skills Funding Agency,10/06/2016,16-18 Apprenticeship Grant for Employers - Centralised Contract Management,Main Funding,ASPIRATION TRAINING LTD,AGER_3758,"1,500.00",Programme System File
BIS,Skills Funding Agency,10/06/2016,16-18 Apprenticeship Grant for Employers - Centralised Contract Management,Main Funding,ASPIRATION TRAINING LTD,AGER_4599,"-1,500.00",Programme System File
BIS,Skills Funding Agency,10/06/2016,16-18 Apprenticeship Grant for Employers - Centralised Contract Management,Main Funding,ASPIRE ACHIEVE ADVANCE LIMITED,AGER_5041,"-15,000.00",Programme System File
BIS,Skills Funding Agency,10/06/2016,16-18 Apprenticeship Grant for Employers - Centralised Contract Management,Main Funding,AYLESBURY COLLEGE,AGEC_1459,"-12,000.00",Programme System File
BIS,Skills Funding Agency,10/06/2016,16-18 Apprenticeship Grant for Employers - Centralised Contract Management,Main Funding,AYLESBURY COLLEGE,AGER_3876,"3,000.00",Programme System File
BIS,Skills Funding Agency,10/06/2016,16-18 Apprenticeship Grant for Employers - Centralised Contract Management,Main Funding,AYLESBURY COLLEGE,AGER_4623,"12,000.00",Programme System File
BIS,Skills Funding Agency,10/06/2016,16-18 Apprenticeship Grant for Employers - Centralised Contract Management,Main Funding,BESTLAND SOLUTIONS LTD,AGEC_1723,"-6,000.00",Programme System File
BIS,Skills Funding Agency,10/06/2016,16-18 Apprenticeship Grant for Employers - Centralised Contract Management,Main Funding,BESTLAND SOLUTIONS LTD,AGER_5004,"6,000.00",Programme System File
BIS,Skills Funding Agency,10/06/2016,16-18 Apprenticeship Grant for Employers - Centralised Contract Management,Main Funding,BEXHILL COLLEGE,AGER_3965,"1,500.00",Programme System File
BIS,Skills Funding Agency,10/06/2016,16-18 Apprenticeship Grant for Employers - Centralised Contract Management,Main Funding,CAPEL MANOR COLLEGE,AGER_4446,"1,500.00",Programme System File
BIS,Skills Funding Agency,10/06/2016,16-18 Apprenticeship Grant for Employers - Centralised Contract Management,Main Funding,CHILDRENS LINKS,AGER_4525,"-1,500.00",Programme System File
BIS,Skills Funding Agency,10/06/2016,16-18 Apprenticeship Grant for Employers - Centralised Contract Management,Main Funding,DERBYSHIRE COUNTY COUNCIL,AGEC_1419,"-4,500.00",Programme System File
BIS,Skills Funding Agency,10/06/2016,16-18 Apprenticeship Grant for Employers - Centralised Contract Management,Main Funding,DERBYSHIRE COUNTY COUNCIL,AGER_3792,"1,500.00",Programme System File
BIS,Skills Funding Agency,10/06/2016,16-18 Apprenticeship Grant for Employers - Centralised Contract Management,Main Funding,DERBYSHIRE COUNTY COUNCIL,AGER_4569,"4,500.00",Programme System File
BIS,Skills Funding Agency,10/06/2016,16-18 Apprenticeship Grant for Employers - Centralised Contract Management,Main Funding,EALING HAMMERSMITH & WEST LONDON COLLEGE,AGEC_1760,"-3,000.00",Programme System File
BIS,Skills Funding Agency,10/06/2016,16-18 Apprenticeship Grant for Employers - Centralised Contract Management,Main Funding,EALING HAMMERSMITH & WEST LONDON COLLEGE,AGER_5078,"3,000.00",Programme System File
BIS,Skills Funding Agency,10/06/2016,16-18 Apprenticeship Grant for Employers - Centralised Contract Management,Main Funding,EAST BERKSHIRE COLLEGE,AGER_3809,"4,500.00",Programme System File
BIS,Skills Funding Agency,10/06/2016,16-18 Apprenticeship Grant for Employers - Centralised Contract Management,Main Funding,EAST BERKSHIRE COLLEGE,AGER_4571,"-10,500.00",Programme System File
BIS,Skills Funding Agency,10/06/2016,16-18 Apprenticeship Grant for Employers - Centralised Contract Management,Main Funding,EDUCATION & TRAINING SKILLS LTD,AGEC_1433,"-1,500.00",Programme System File
BIS,Skills Funding Agency,10/06/2016,16-18 Apprenticeship Grant for Employers - Centralised Contract Management,Main Funding,EDUCATION & TRAINING SKILLS LTD,AGER_4586,"1,500.00",Programme System File
BIS,Skills Funding Agency,10/06/2016,16-18 Apprenticeship Grant for Employers - Centralised Contract Management,Main Funding,FOCUS TRAINING & DEVELOPMENT LTD,AGER_4987,"-3,000.00",Programme System File
BIS,Skills Funding Agency,10/06/2016,16-18 Apprenticeship Grant for Employers - Centralised Contract Management,Main Funding,GEN II ENGINEERING & TECHNOLOGY TRAINING LTD,AGEC_1447,"-6,000.00",Programme System File
BIS,Skills Funding Agency,10/06/2016,16-18 Apprenticeship Grant for Employers - Centralised Contract Management,Main Funding,GEN II ENGINEERING & TECHNOLOGY TRAINING LTD,AGER_4605,"6,000.00",Programme System File
BIS,Skills Funding Agency,10/06/2016,16-18 Apprenticeship Grant for Employers - Centralised Contract Management,Main Funding,GUILDFORD COLLEGE OF FURTHER & HIGHER EDUCATION,AGEC_1452,"-30,000.00",Programme System File
BIS,Skills Funding Agency,10/06/2016,16-18 Apprenticeship Grant for Employers - Centralised Contract Management,Main Funding,GUILDFORD COLLEGE OF FURTHER & HIGHER EDUCATION,AGER_3839,"6,000.00",Programme System File
BIS,Skills Funding Agency,10/06/2016,16-18 Apprenticeship Grant for Employers - Centralised Contract Management,Main Funding,GUILDFORD COLLEGE OF FURTHER & HIGHER EDUCATION,AGER_4610,"30,000.00",Programme System File
BIS,Skills Funding Agency,10/06/2016,16-18 Apprenticeship Grant for Employers - Centralised Contract Management,Main Funding,HARTLEPOOL BOROUGH COUNCIL,AGEC_1761,"-3,000.00",Programme System File
BIS,Skills Funding Agency,10/06/2016,16-18 Apprenticeship Grant for Employers - Centralised Contract Management,Main Funding,HARTLEPOOL BOROUGH COUNCIL,AGER_5079,"3,000.00",Programme System File
BIS,Skills Funding Agency,10/06/2016,16-18 Apprenticeship Grant for Employers - Centralised Contract Management,Main Funding,HENLEY COLLEGE COVENTRY,AGER_3867,"4,500.00",Programme System File
BIS,Skills Funding Agency,10/06/2016,16-18 Apprenticeship Grant for Employers - Centralised Contract Management,Main Funding,HENLEY COLLEGE COVENTRY,AGER_4626,"-3,000.00",Programme System File
BIS,Skills Funding Agency,10/06/2016,16-18 Apprenticeship Grant for Employers - Centralised Contract Management,Main Funding,HUMBER LEARNING CONSORTIUM,AGEC_1485,"-9,000.00",Programme System File
BIS,Skills Funding Agency,10/06/2016,16-18 Apprenticeship Grant for Employers - Centralised Contract Management,Main Funding,HUMBER LEARNING CONSORTIUM,AGER_4652,"9,000.00",Programme System File
BIS,Skills Funding Agency,10/06/2016,16-18 Apprenticeship Grant for Employers - Centralised Contract Management,Main Funding,INDEPENDENT TRAINING SERVICES LTD,AGEC_1479,"-1,500.00",Programme System File
BIS,Skills Funding Agency,10/06/2016,16-18 Apprenticeship Grant for Employers - Centralised Contract Management,Main Funding,INDEPENDENT TRAINING SERVICES LTD,AGER_4645,"1,500.00",Programme System File
BIS,Skills Funding Agency,10/06/2016,16-18 Apprenticeship Grant for Employers - Centralised Contract Management,Main Funding,ISLE OF WIGHT COLLEGE,AGEC_1491,"-16,500.00",Programme System File
BIS,Skills Funding Agency,10/06/2016,16-18 Apprenticeship Grant for Employers - Centralised Contract Management,Main Funding,ISLE OF WIGHT COLLEGE,AGER_3912,"1,500.00",Programme System File
BIS,Skills Funding Agency,10/06/2016,16-18 Apprenticeship Grant for Employers - Centralised Contract Management,Main Funding,ISLE OF WIGHT COLLEGE,AGER_4661,"16,500.00",Programme System File
BIS,Skills Funding Agency,10/06/2016,16-18 Apprenticeship Grant for Employers - Centralised Contract Management,Main Funding,JGA LTD,AGEC_1640,"-3,000.00",Programme System File
BIS,Skills Funding Agency,10/06/2016,16-18 Apprenticeship Grant for Employers - Centralised Contract Management,Main Funding,JGA LTD,AGER_4891,"3,000.00",Programme System File
BIS,Skills Funding Agency,10/06/2016,16-18 Apprenticeship Grant for Employers - Centralised Contract Management,Main Funding,JOHN LEGGOTT SIXTH FORM COLLEGE,AGEC_1766,"-1,500.00",Programme System File
BIS,Skills Funding Agency,10/06/2016,16-18 Apprenticeship Grant for Employers - Centralised Contract Management,Main Funding,JOHN LEGGOTT SIXTH FORM COLLEGE,AGER_5084,"1,500.00",Programme System File
BIS,Skills Funding Agency,10/06/2016,16-18 Apprenticeship Grant for Employers - Centralised Contract Management,Main Funding,JOINT LEARNING PARTNERSHIP LTD,AGER_3932,"1,500.00",Programme System File
BIS,Skills Funding Agency,10/06/2016,16-18 Apprenticeship Grant for Employers - Centralised Contract Management,Main Funding,JOINT LEARNING PARTNERSHIP LTD,AGER_4663,"-1,500.00",Programme System File
BIS,Skills Funding Agency,10/06/2016,16-18 Apprenticeship Grant for Employers - Centralised Contract Management,Main Funding,LAKES COLLEGE WEST CUMBRIA,AGEC_1133,"-9,000.00",Programme System File
BIS,Skills Funding Agency,10/06/2016,16-18 Apprenticeship Grant for Employers - Centralised Contract Management,Main Funding,LAKES COLLEGE WEST CUMBRIA,AGEC_1504,"-6,000.00",Programme System File
BIS,Skills Funding Agency,10/06/2016,16-18 Apprenticeship Grant for Employers - Centralised Contract Management,Main Funding,LAKES COLLEGE WEST CUMBRIA,AGER_3344,"12,000.00",Programme System File
BIS,Skills Funding Agency,10/06/2016,16-18 Apprenticeship Grant for Employers - Centralised Contract Management,Main Funding,LAKES COLLEGE WEST CUMBRIA,AGER_3939,"3,000.00",Programme System File
BIS,Skills Funding Agency,10/06/2016,16-18 Apprenticeship Grant for Employers - Centralised Contract Management,Main Funding,LAKES COLLEGE WEST CUMBRIA,AGER_4685,"6,000.00",Programme System File
BIS,Skills Funding Agency,10/06/2016,16-18 Apprenticeship Grant for Employers - Centralised Contract Management,Main Funding,LAWN TENNIS ASSOCIATION LTD,AGEC_1731,"-1,500.00",Programme System File
BIS,Skills Funding Agency,10/06/2016,16-18 Apprenticeship Grant for Employers - Centralised Contract Management,Main Funding,LAWN TENNIS ASSOCIATION LTD,AGER_5021,"1,500.00",Programme System File
BIS,Skills Funding Agency,10/06/2016,16-18 Apprenticeship Grant for Employers - Centralised Contract Management,Main Funding,LOWESTOFT COLLEGE,AGEC_1516,"-12,000.00",Programme System File
BIS,Skills Funding Agency,10/06/2016,16-18 Apprenticeship Grant for Employers - Centralised Contract Management,Main Funding,LOWESTOFT COLLEGE,AGER_4699,"12,000.00",Programme System File
BIS,Skills Funding Agency,10/06/2016,16-18 Apprenticeship Grant for Employers - Centralised Contract Management,Main Funding,MARDELL ASSOCIATES LTD,AGEC_1587,"-6,000.00",Programme System File
BIS,Skills Funding Agency,10/06/2016,16-18 Apprenticeship Grant for Employers - Centralised Contract Management,Main Funding,MARDELL ASSOCIATES LTD,AGER_4820,"6,000.00",Programme System File
BIS,Skills Funding Agency,10/06/2016,16-18 Apprenticeship Grant for Employers - Centralised Contract Management,Main Funding,MEADOWHALL TRAINING LIMITED,AGER_4990,"-1,500.00",Programme System File
BIS,Skills Funding Agency,10/06/2016,16-18 Apprenticeship Grant for Employers - Centralised Contract Management,Main Funding,MIDLAND GROUP TRAINING SERVICES LTD,AGEC_1528,"-1,500.00",Programme System File
BIS,Skills Funding Agency,10/06/2016,16-18 Apprenticeship Grant for Employers - Centralised Contract Management,Main Funding,MIDLAND GROUP TRAINING SERVICES LTD,AGER_4717,"1,500.00",Programme System File
BIS,Skills Funding Agency,10/06/2016,16-18 Apprenticeship Grant for Employers - Centralised Contract Management,Main Funding,NACRO,AGEC_1530,"-3,000.00",Programme System File
BIS,Skills Funding Agency,10/06/2016,16-18 Apprenticeship Grant for Employers - Centralised Contract Management,Main Funding,NACRO,AGER_4722,"3,000.00",Programme System File
BIS,Skills Funding Agency,10/06/2016,16-18 Apprenticeship Grant for Employers - Centralised Contract Management,Main Funding,NORTH LIVERPOOL REGENERATION COMPANY LTD,AGEC_1368,"-1,500.00",Programme System File
BIS,Skills Funding Agency,10/06/2016,16-18 Apprenticeship Grant for Employers - Centralised Contract Management,Main Funding,NORTH LIVERPOOL REGENERATION COMPANY LTD,AGER_4484,"1,500.00",Programme System File
BIS,Skills Funding Agency,10/06/2016,16-18 Apprenticeship Grant for Employers - Centralised Contract Management,Main Funding,NORTH WEST TRAINING COUNCIL,AGER_4755,"-1,500.00",Programme System File
BIS,Skills Funding Agency,10/06/2016,16-18 Apprenticeship Grant for Employers - Centralised Contract Management,Main Funding,NORTHUMBERLAND COUNTY COUNCIL,AGEC_1555,"-9,000.00",Programme System File
BIS,Skills Funding Agency,10/06/2016,16-18 Apprenticeship Grant for Employers - Centralised Contract Management,Main Funding,NORTHUMBERLAND COUNTY COUNCIL,AGER_4037,"1,500.00",Programme System File
BIS,Skills Funding Agency,10/06/2016,16-18 Apprenticeship Grant for Employers - Centralised Contract Management,Main Funding,NORTHUMBERLAND COUNTY COUNCIL,AGER_4761,"9,000.00",Programme System File
BIS,Skills Funding Agency,10/06/2016,16-18 Apprenticeship Grant for Employers - Centralised Contract Management,Main Funding,PARTNERSHIP DEVELOPMENT SOLUTIONS LTD,AGEC_1370,"-1,500.00",Programme System File
BIS,Skills Funding Agency,10/06/2016,16-18 Apprenticeship Grant for Employers - Centralised Contract Management,Main Funding,PARTNERSHIP DEVELOPMENT SOLUTIONS LTD,AGER_4486,"1,500.00",Programme System File
BIS,Skills Funding Agency,10/06/2016,16-18 Apprenticeship Grant for Employers - Centralised Contract Management,Main Funding,PERA TRAINING LTD,AGEC_1749,"-1,500.00",Programme System File
BIS,Skills Funding Agency,10/06/2016,16-18 Apprenticeship Grant for Employers - Centralised Contract Management,Main Funding,PERA TRAINING LTD,AGER_5062,"1,500.00",Programme System File
BIS,Skills Funding Agency,10/06/2016,16-18 Apprenticeship Grant for Employers - Centralised Contract Management,Main Funding,PETERBOROUGH CITY COUNCIL,AGER_4058,"1,500.00",Programme System File
BIS,Skills Funding Agency,10/06/2016,16-18 Apprenticeship Grant for Employers - Centralised Contract Management,Main Funding,QUBE QUALIFICATIONS AND DEVELOPMENT LTD,AGER_4086,"3,000.00",Programme System File
BIS,Skills Funding Agency,10/06/2016,16-18 Apprenticeship Grant for Employers - Centralised Contract Management,Main Funding,REDCAR & CLEVELAND COLLEGE,AGER_4097,"3,000.00",Programme System File
BIS,Skills Funding Agency,10/06/2016,16-18 Apprenticeship Grant for Employers - Centralised Contract Management,Main Funding,REDCAR & CLEVELAND COLLEGE,AGER_4787,"-3,000.00",Programme System File
BIS,Skills Funding Agency,10/06/2016,16-18 Apprenticeship Grant for Employers - Centralised Contract Management,Main Funding,ROCKET TRAINING LTD,AGEC_1570,"-4,500.00",Programme System File
BIS,Skills Funding Agency,10/06/2016,16-18 Apprenticeship Grant for Employers - Centralised Contract Management,Main Funding,ROCKET TRAINING LTD,AGER_4793,"4,500.00",Programme System File
BIS,Skills Funding Agency,10/06/2016,16-18 Apprenticeship Grant for Employers - Centralised Contract Management,Main Funding,ROYAL BOROUGH OF KINGSTON UPON THAMES COUNCIL,AGER_4103,"3,000.00",Programme System File
BIS,Skills Funding Agency,10/06/2016,16-18 Apprenticeship Grant for Employers - Centralised Contract Management,Main Funding,S & B AUTOMOTIVE ACADEMY LTD,AGER_4110,"6,000.00",Programme System File
BIS,Skills Funding Agency,10/06/2016,16-18 Apprenticeship Grant for Employers - Centralised Contract Management,Main Funding,S & B AUTOMOTIVE ACADEMY LTD,AGER_4804,"-1,500.00",Programme System File
BIS,Skills Funding Agency,10/06/2016,16-18 Apprenticeship Grant for Employers - Centralised Contract Management,Main Funding,SANDWELL TRAINING ASSOCIATION LTD,AGEC_1576,"-10,500.00",Programme System File
BIS,Skills Funding Agency,10/06/2016,16-18 Apprenticeship Grant for Employers - Centralised Contract Management,Main Funding,SANDWELL TRAINING ASSOCIATION LTD,AGER_4802,"10,500.00",Programme System File
BIS,Skills Funding Agency,10/06/2016,16-18 Apprenticeship Grant for Employers - Centralised Contract Management,Main Funding,SEETEC BUSINESS TECHNOLOGY CENTRE LTD,AGEC_1206,"-4,500.00",Programme System File
BIS,Skills Funding Agency,10/06/2016,16-18 Apprenticeship Grant for Employers - Centralised Contract Management,Main Funding,SEETEC BUSINESS TECHNOLOGY CENTRE LTD,AGEC_1578,"-4,500.00",Programme System File
BIS,Skills Funding Agency,10/06/2016,16-18 Apprenticeship Grant for Employers - Centralised Contract Management,Main Funding,SEETEC BUSINESS TECHNOLOGY CENTRE LTD,AGER_3503,"4,500.00",Programme System File
BIS,Skills Funding Agency,10/06/2016,16-18 Apprenticeship Grant for Employers - Centralised Contract Management,Main Funding,SEETEC BUSINESS TECHNOLOGY CENTRE LTD,AGER_4116,"1,500.00",Programme System File
BIS,Skills Funding Agency,10/06/2016,16-18 Apprenticeship Grant for Employers - Centralised Contract Management,Main Funding,SEETEC BUSINESS TECHNOLOGY CENTRE LTD,AGER_4806,"4,500.00",Programme System File
BIS,Skills Funding Agency,10/06/2016,16-18 Apprenticeship Grant for Employers - Centralised Contract Management,Main Funding,SERCO LTD,AGEC_1581,"-3,000.00",Programme System File
BIS,Skills Funding Agency,10/06/2016,16-18 Apprenticeship Grant for Employers - Centralised Contract Management,Main Funding,SERCO LTD,AGER_4813,"3,000.00",Programme System File
BIS,Skills Funding Agency,10/06/2016,16-18 Apprenticeship Grant for Employers - Centralised Contract Management,Main Funding,SKILLS FOR SECURITY LTD,AGEC_1712,"-13,500.00",Programme System File
BIS,Skills Funding Agency,10/06/2016,16-18 Apprenticeship Grant for Employers - Centralised Contract Management,Main Funding,SKILLS FOR SECURITY LTD,AGER_4989,"13,500.00",Programme System File
BIS,Skills Funding Agency,10/06/2016,16-18 Apprenticeship Grant for Employers - Centralised Contract Management,Main Funding,SOUTH WEST ASSOCIATION OF TRAINING PROVIDERS LIMITED,AGER_4396,"1,500.00",Programme System File
BIS,Skills Funding Agency,10/06/2016,16-18 Apprenticeship Grant for Employers - Centralised Contract Management,Main Funding,STOCKTON ON TEES BOROUGH COUNCIL,AGER_4168,"1,500.00",Programme System File
BIS,Skills Funding Agency,10/06/2016,16-18 Apprenticeship Grant for Employers - Centralised Contract Management,Main Funding,SUNDERLAND ENGINEERING TRAINING ASSOCIATION LTD,AGER_4874,"-1,500.00",Programme System File
BIS,Skills Funding Agency,10/06/2016,16-18 Apprenticeship Grant for Employers - Centralised Contract Management,Main Funding,THE CORNWALL COUNCIL,AGER_3774,"1,500.00",Programme System File
BIS,Skills Funding Agency,10/06/2016,16-18 Apprenticeship Grant for Employers - Centralised Contract Management,Main Funding,TRAINING 2000 LTD,AGEC_1643,"-13,500.00",Programme System File
BIS,Skills Funding Agency,10/06/2016,16-18 Apprenticeship Grant for Employers - Centralised Contract Management,Main Funding,TRAINING 2000 LTD,AGER_4894,"13,500.00",Programme System File
BIS,Skills Funding Agency,10/06/2016,16-18 Apprenticeship Grant for Employers - Centralised Contract Management,Main Funding,UNIVERSITY OF SHEFFIELD,AGEC_1367,"-1,500.00",Programme System File
BIS,Skills Funding Agency,10/06/2016,16-18 Apprenticeship Grant for Employers - Centralised Contract Management,Main Funding,UNIVERSITY OF SHEFFIELD,AGER_4483,"1,500.00",Programme System File
BIS,Skills Funding Agency,10/06/2016,16-18 Apprenticeship Grant for Employers - Centralised Contract Management,Main Funding,WAKEFIELD CITY COUNCIL,AGEC_1764,"-3,000.00",Programme System File
BIS,Skills Funding Agency,10/06/2016,16-18 Apprenticeship Grant for Employers - Centralised Contract Management,Main Funding,WAKEFIELD CITY COUNCIL,AGER_5081,"3,000.00",Programme System File
BIS,Skills Funding Agency,10/06/2016,16-18 Apprenticeship Grant for Employers - Centralised Contract Management,Main Funding,WEST THAMES COLLEGE,AGEC_1664,"-9,000.00",Programme System File
BIS,Skills Funding Agency,10/06/2016,16-18 Apprenticeship Grant for Employers - Centralised Contract Management,Main Funding,WEST THAMES COLLEGE,AGER_4925,"9,000.00",Programme System File
BIS,Skills Funding Agency,10/06/2016,16-18 Apprenticeship Grant for Employers - Centralised Contract Management,Main Funding,WIGAN METRO BOROUGH COUNCIL,AGEC_1676,"-4,500.00",Programme System File
BIS,Skills Funding Agency,10/06/2016,16-18 Apprenticeship Grant for Employers - Centralised Contract Management,Main Funding,WIGAN METRO BOROUGH COUNCIL,AGER_4939,"4,500.00",Programme System File
BIS,Skills Funding Agency,10/06/2016,16-18 Apprenticeship Grant for Employers - Centralised Contract Management,Main Funding,WORTHING COLLEGE,AGER_4254,"1,500.00",Programme System File
BIS,Skills Funding Agency,10/06/2016,16-18 Apprenticeship Grant for Employers,Main Funding,ACADEMY EDUCATION LTD,NUPS16_3165,"-1,500.00",Programme Template
BIS,Skills Funding Agency,10/06/2016,16-18 Apprenticeship Grant for Employers,Main Funding,AYLESBURY COLLEGE,NUPS15_19207,"-31,500.00",Programme Template
BIS,Skills Funding Agency,10/06/2016,16-18 Apprenticeship Grant for Employers,Main Funding,AYLESBURY COLLEGE,NUPS16_3168,"-3,000.00",Programme Template
BIS,Skills Funding Agency,10/06/2016,16-18 Apprenticeship Grant for Employers,Main Funding,BARNSLEY COLLEGE,NUPS16_3091,"1,500.00",Programme Template
BIS,Skills Funding Agency,10/06/2016,16-18 Apprenticeship Grant for Employers,Main Funding,BEXHILL COLLEGE,NUPS16_3175,"-1,500.00",Programme Template
BIS,Skills Funding Agency,10/06/2016,16-18 Apprenticeship Grant for Employers,Main Funding,CAPEL MANOR COLLEGE,NUPS16_3191,"-1,500.00",Programme Template
BIS,Skills Funding Agency,10/06/2016,16-18 Apprenticeship Grant for Employers,Main Funding,DERBYSHIRE COUNTY COUNCIL,NUPS16_3206,"-1,500.00",Programme Template
BIS,Skills Funding Agency,10/06/2016,16-18 Apprenticeship Grant for Employers,Main Funding,EAST BERKSHIRE COLLEGE,NUPS16_3209,"-4,500.00",Programme Template
BIS,Skills Funding Agency,10/06/2016,16-18 Apprenticeship Grant for Employers,Main Funding,GUILDFORD COLLEGE OF FURTHER & HIGHER EDUCATION,NUPS16_3219,"-3,000.00",Programme Template
BIS,Skills Funding Agency,10/06/2016,16-18 Apprenticeship Grant for Employers,Main Funding,HENLEY COLLEGE COVENTRY,NUPS16_3228,"-1,500.00",Programme Template
BIS,Skills Funding Agency,10/06/2016,16-18 Apprenticeship Grant for Employers,Main Funding,ISLE OF WIGHT COLLEGE,NUPS16_3237,"-1,500.00",Programme Template
BIS,Skills Funding Agency,10/06/2016,16-18 Apprenticeship Grant for Employers,Main Funding,JOINT LEARNING PARTNERSHIP LTD,NUPS16_3239,"-1,500.00",Programme Template
BIS,Skills Funding Agency,10/06/2016,16-18 Apprenticeship Grant for Employers,Main Funding,LAKES COLLEGE WEST CUMBRIA,NUPS16_3153,"1,500.00",Programme Template
BIS,Skills Funding Agency,10/06/2016,16-18 Apprenticeship Grant for Employers,Main Funding,LAKES COLLEGE WEST CUMBRIA,NUPS16_970,"-1,500.00",Programme Template
BIS,Skills Funding Agency,10/06/2016,16-18 Apprenticeship Grant for Employers,Main Funding,LOWESTOFT COLLEGE,NUPS15_19267,"-15,000.00",Programme Template
BIS,Skills Funding Agency,10/06/2016,16-18 Apprenticeship Grant for Employers,Main Funding,LOWESTOFT COLLEGE,NUPS16_3126,"-1,500.00",Programme Template
BIS,Skills Funding Agency,10/06/2016,16-18 Apprenticeship Grant for Employers,Main Funding,NORTHUMBERLAND COUNTY COUNCIL,NUPS16_3267,"-1,500.00",Programme Template
BIS,Skills Funding Agency,10/06/2016,16-18 Apprenticeship Grant for Employers,Main Funding,PETERBOROUGH CITY COUNCIL,NUPS16_3271,"-1,500.00",Programme Template
BIS,Skills Funding Agency,10/06/2016,16-18 Apprenticeship Grant for Employers,Main Funding,QUBE QUALIFICATIONS AND DEVELOPMENT LTD,NUPS16_3276,"-3,000.00",Programme Template
BIS,Skills Funding Agency,10/06/2016,16-18 Apprenticeship Grant for Employers,Main Funding,ROYAL BOROUGH OF KINGSTON UPON THAMES COUNCIL,NUPS16_3280,"-3,000.00",Programme Template
BIS,Skills Funding Agency,10/06/2016,16-18 Apprenticeship Grant for Employers,Main Funding,S & B AUTOMOTIVE ACADEMY LTD,NUPS16_3283,"-3,000.00",Programme Template
BIS,Skills Funding Agency,10/06/2016,16-18 Apprenticeship Grant for Employers,Main Funding,SOUTH WEST ASSOCIATION OF TRAINING PROVIDERS LIMITED,NUPS16_3335,"-1,500.00",Programme Template
BIS,Skills Funding Agency,10/06/2016,16-18 Apprenticeship Grant for Employers,Main Funding,STOCKPORT ENGINEERING TRAINING ASSOCIATION LTD,NUPS16_3082,"-3,000.00",Programme Template
BIS,Skills Funding Agency,10/06/2016,16-18 Apprenticeship Grant for Employers,Main Funding,STOCKTON ON TEES BOROUGH COUNCIL,NUPS16_3294,"-1,500.00",Programme Template
BIS,Skills Funding Agency,10/06/2016,16-18 Apprenticeship Grant for Employers,Main Funding,WORTHING COLLEGE,NUPS16_3310,"-1,500.00",Programme Template
BIS,Skills Funding Agency,10/06/2016,16-18 Apprenticeships - Centralised Contract Management,Main Funding,5 E LTD,AP16C_2447,"-19,522.83",Programme System File
BIS,Skills Funding Agency,10/06/2016,16-18 Apprenticeships - Centralised Contract Management,Main Funding,5 E LTD,AP16R_11557,"23,875.68",Programme System File
BIS,Skills Funding Agency,10/06/2016,16-18 Apprenticeships - Centralised Contract Management,Main Funding,A4E LTD,AP16R_11560,198.34,Programme System File
BIS,Skills Funding Agency,10/06/2016,16-18 Apprenticeships - Centralised Contract Management,Main Funding,ABINGDON & WITNEY COLLEGE,AP16R_10707,"44,443.09",Programme System File
BIS,Skills Funding Agency,10/06/2016,16-18 Apprenticeships - Centralised Contract Management,Main Funding,ACACIA TRAINING & DEVELOPMENT LTD,AP16R_11556,"31,581.66",Programme System File
BIS,Skills Funding Agency,10/06/2016,16-18 Apprenticeships - Centralised Contract Management,Main Funding,ACACIA TRAINING LTD,AP16R_11562,"7,624.60",Programme System File
BIS,Skills Funding Agency,10/06/2016,16-18 Apprenticeships - Centralised Contract Management,Main Funding,ACADEMIES ENTERPRISE,AP16C_2542,"-6,093.64",Programme System File
BIS,Skills Funding Agency,10/06/2016,16-18 Apprenticeships - Centralised Contract Management,Main Funding,ACADEMIES ENTERPRISE,AP16R_11962,"8,067.27",Programme System File
BIS,Skills Funding Agency,10/06/2016,16-18 Apprenticeships - Centralised Contract Management,Main Funding,ACADEMY EDUCATION LTD,AP16C_2449,"-19,807.57",Programme System File
BIS,Skills Funding Agency,10/06/2016,16-18 Apprenticeships - Centralised Contract Management,Main Funding,ACADEMY EDUCATION LTD,AP16R_11561,"51,999.91",Programme System File
BIS,Skills Funding Agency,10/06/2016,16-18 Apprenticeships - Centralised Contract Management,Main Funding,ACADEMY HAIR & BEAUTY LTD,AP16R_11772,"29,876.65",Programme System File
BIS,Skills Funding Agency,10/06/2016,16-18 Apprenticeships - Centralised Contract Management,Main Funding,ACADEMY TRANSFORMATION TRUST,AP16C_2551,"-8,629.82",Programme System File
BIS,Skills Funding Agency,10/06/2016,16-18 Apprenticeships - Centralised Contract Management,Main Funding,ACADEMY TRANSFORMATION TRUST,AP16R_11981,"11,823.35",Programme System File
BIS,Skills Funding Agency,10/06/2016,16-18 Apprenticeships - Centralised Contract Management,Main Funding,ACCESS TRAINING EAST MIDLANDS LTD,AP16R_11823,"88,655.05",Programme System File
BIS,Skills Funding Agency,10/06/2016,16-18 Apprenticeships - Centralised Contract Management,Main Funding,ACCESS TRAINING LTD,AP16R_11814,"75,271.83",Programme System File
BIS,Skills Funding Agency,10/06/2016,16-18 Apprenticeships - Centralised Contract Management,Main Funding,ACCRINGTON & ROSSENDALE COLLEGE,AP16R_11354,"68,747.00",Programme System File
BIS,Skills Funding Agency,10/06/2016,16-18 Apprenticeships - Centralised Contract Management,Main Funding,ACHIEVEMENT TRAINING LIMITED,AP16R_11558,"25,518.49",Programme System File
BIS,Skills Funding Agency,10/06/2016,16-18 Apprenticeships - Centralised Contract Management,Main Funding,ALDER TRAINING LTD,AP16R_11564,"45,752.92",Programme System File
BIS,Skills Funding Agency,10/06/2016,16-18 Apprenticeships - Centralised Contract Management,Main Funding,ALL TRADES TRAINING LIMITED,AP16R_11927,-59.23,Programme System File
BIS,Skills Funding Agency,10/06/2016,16-18 Apprenticeships - Centralised Contract Management,Main Funding,ALLIANCE LEARNING LTD,AP16R_11567,"91,529.14",Programme System File
BIS,Skills Funding Agency,10/06/2016,16-18 Apprenticeships - Centralised Contract Management,Main Funding,ALT VALLEY COMMUNITY TRUST LTD,AP16R_11601,"4,783.56",Programme System File
BIS,Skills Funding Agency,10/06/2016,16-18 Apprenticeships - Centralised Contract Management,Main Funding,AMERSHAM & WYCOMBE COLLEGE,AP16C_2455,"-51,551.92",Programme System File
BIS,Skills Funding Agency,10/06/2016,16-18 Apprenticeships - Centralised Contract Management,Main Funding,AMERSHAM & WYCOMBE COLLEGE,AP16R_11678,"72,142.70",Programme System File
BIS,Skills Funding Agency,10/06/2016,16-18 Apprenticeships - Centralised Contract Management,Main Funding,ANDERSON STOCKLEY ACCREDITED TRAINING LTD,AP16R_11906,"13,225.38",Programme System File
BIS,Skills Funding Agency,10/06/2016,16-18 Apprenticeships - Centralised Contract Management,Main Funding,ANDREW COLLINGE TRAINING LTD,AP16R_11563,"45,107.54",Programme System File
BIS,Skills Funding Agency,10/06/2016,16-18 Apprenticeships - Centralised Contract Management,Main Funding,ANNE CLARKE ASSOCIATES LTD,AP16R_11882,"10,612.37",Programme System File
BIS,Skills Funding Agency,10/06/2016,16-18 Apprenticeships - Centralised Contract Management,Main Funding,APPRENTICE FUNDING ASSISTANT LTD,AP16R_11933,"91,984.02",Programme System File
BIS,Skills Funding Agency,10/06/2016,16-18 Apprenticeships - Centralised Contract Management,Main Funding,APPRENTICE SCHOOL CHARITABLE TRUST,AP16C_2457,"-45,245.13",Programme System File
BIS,Skills Funding Agency,10/06/2016,16-18 Apprenticeships - Centralised Contract Management,Main Funding,APPRENTICE SCHOOL CHARITABLE TRUST,AP16R_11590,"85,898.18",Programme System File
BIS,Skills Funding Agency,10/06/2016,16-18 Apprenticeships - Centralised Contract Management,Main Funding,APPRENTICESHIPS & TRAINING SERVICES CONSORTIUM LIMITED,AP16C_2538,"-132,002.95",Programme System File
BIS,Skills Funding Agency,10/06/2016,16-18 Apprenticeships - Centralised Contract Management,Main Funding,APPRENTICESHIPS & TRAINING SERVICES CONSORTIUM LIMITED,AP16R_11954,"243,441.29",Programme System File
BIS,Skills Funding Agency,10/06/2016,16-18 Apprenticeships - Centralised Contract Management,Main Funding,APPRIS CHARITY LIMITED,AP16R_11585,"86,498.54",Programme System File
BIS,Skills Funding Agency,10/06/2016,16-18 Apprenticeships - Centralised Contract Management,Main Funding,ASHTON UNDER LYNE SIXTH FORM COLLEGE,AP16R_11950,262.49,Programme System File
BIS,Skills Funding Agency,10/06/2016,16-18 Apprenticeships - Centralised Contract Management,Main Funding,ASKHAM BRYAN COLLEGE,AP16C_2494,"-1,626.67",Programme System File
BIS,Skills Funding Agency,10/06/2016,16-18 Apprenticeships - Centralised Contract Management,Main Funding,ASKHAM BRYAN COLLEGE,AP16R_11861,"255,536.66",Programme System File
BIS,Skills Funding Agency,10/06/2016,16-18 Apprenticeships - Centralised Contract Management,Main Funding,ASPIRATION TRAINING LTD,AP16R_11566,"173,001.81",Programme System File
BIS,Skills Funding Agency,10/06/2016,16-18 Apprenticeships - Centralised Contract Management,Main Funding,ASPIRE ACHIEVE ADVANCE LIMITED,AP16R_11949,"4,405,789.52",Programme System File
BIS,Skills Funding Agency,10/06/2016,16-18 Apprenticeships - Centralised Contract Management,Main Funding,ASPIRE TRAINING TEAM,AP16R_11787,"37,262.55",Programme System File
BIS,Skills Funding Agency,10/06/2016,16-18 Apprenticeships - Centralised Contract Management,Main Funding,ASSET TRAINING & CONSULTANCY LTD,AP16R_11565,"38,844.02",Programme System File
BIS,Skills Funding Agency,10/06/2016,16-18 Apprenticeships - Centralised Contract Management,Main Funding,ASTUTE MINDS LTD,AP16R_11870,"132,544.11",Programme System File
BIS,Skills Funding Agency,10/06/2016,16-18 Apprenticeships - Centralised Contract Management,Main Funding,ATG TRAINING,AP16R_11574,"86,391.50",Programme System File
BIS,Skills Funding Agency,10/06/2016,16-18 Apprenticeships - Centralised Contract Management,Main Funding,AURELIA TRAINING LTD,AP16C_2451,"-12,922.56",Programme System File
BIS,Skills Funding Agency,10/06/2016,16-18 Apprenticeships - Centralised Contract Management,Main Funding,AURELIA TRAINING LTD,AP16R_11570,"18,411.13",Programme System File
BIS,Skills Funding Agency,10/06/2016,16-18 Apprenticeships - Centralised Contract Management,Main Funding,AVANT PARTNERSHIP LTD,AP16R_11892,"29,082.03",Programme System File
BIS,Skills Funding Agency,10/06/2016,16-18 Apprenticeships - Centralised Contract Management,Main Funding,AVANTA ENTERPRISE LTD,AP16C_2549,"-3,967.02",Programme System File
BIS,Skills Funding Agency,10/06/2016,16-18 Apprenticeships - Centralised Contract Management,Main Funding,AVANTA ENTERPRISE LTD,AP16R_11976,"259,870.52",Programme System File
BIS,Skills Funding Agency,10/06/2016,16-18 Apprenticeships - Centralised Contract Management,Main Funding,AXIA SOLUTIONS LTD,AP16R_11573,"25,003.62",Programme System File
BIS,Skills Funding Agency,10/06/2016,16-18 Apprenticeships - Centralised Contract Management,Main Funding,AYLESBURY COLLEGE,AP16C_2121,"-2,797.07",Programme System File
BIS,Skills Funding Agency,10/06/2016,16-18 Apprenticeships - Centralised Contract Management,Main Funding,AYLESBURY COLLEGE,AP16R_10886,"170,761.78",Programme System File
BIS,Skills Funding Agency,10/06/2016,16-18 Apprenticeships - Centralised Contract Management,Main Funding,B SKILL LTD,AP16R_11578,"55,202.67",Programme System File
BIS,Skills Funding Agency,10/06/2016,16-18 Apprenticeships - Centralised Contract Management,Main Funding,BABCOCK SKILLS DEVELOPMENT & TRAINING LTD,AP16C_2548,"-4,609.56",Programme System File
BIS,Skills Funding Agency,10/06/2016,16-18 Apprenticeships - Centralised Contract Management,Main Funding,BABCOCK SKILLS DEVELOPMENT & TRAINING LTD,AP16R_11975,"114,929.53",Programme System File
BIS,Skills Funding Agency,10/06/2016,16-18 Apprenticeships - Centralised Contract Management,Main Funding,BABCOCK TRAINING LTD,AP16R_11639,"683,055.78",Programme System File
BIS,Skills Funding Agency,10/06/2016,16-18 Apprenticeships - Centralised Contract Management,Main Funding,BABINGTON BUSINESS COLLEGE LTD,AP16R_11571,"242,929.48",Programme System File
BIS,Skills Funding Agency,10/06/2016,16-18 Apprenticeships - Centralised Contract Management,Main Funding,BAE SYSTEMS PLC,AP16C_2452,"-353,001.83",Programme System File
BIS,Skills Funding Agency,10/06/2016,16-18 Apprenticeships - Centralised Contract Management,Main Funding,BAE SYSTEMS PLC,AP16R_11572,"530,106.60",Programme System File
BIS,Skills Funding Agency,10/06/2016,16-18 Apprenticeships - Centralised Contract Management,Main Funding,BALTIC TRAINING SERVICES LTD,AP16R_11856,"377,699.77",Programme System File
BIS,Skills Funding Agency,10/06/2016,16-18 Apprenticeships - Centralised Contract Management,Main Funding,BARCHESTER HEALTHCARE LTD,AP16R_11575,"16,023.15",Programme System File
BIS,Skills Funding Agency,10/06/2016,16-18 Apprenticeships - Centralised Contract Management,Main Funding,BARKING & DAGENHAM COLLEGE,AP16R_11417,"105,329.70",Programme System File
BIS,Skills Funding Agency,10/06/2016,16-18 Apprenticeships - Centralised Contract Management,Main Funding,BARKING & DAGENHAM LONDON BOROUGH COUNCIL,AP16C_2388,"-2,384.60",Programme System File
BIS,Skills Funding Agency,10/06/2016,16-18 Apprenticeships - Centralised Contract Management,Main Funding,BARKING & DAGENHAM LONDON BOROUGH COUNCIL,AP16R_11506,"5,646.82",Programme System File
BIS,Skills Funding Agency,10/06/2016,16-18 Apprenticeships - Centralised Contract Management,Main Funding,BARNET AND SOUTHGATE COLLEGE,AP16R_10708,"182,250.20",Programme System File
BIS,Skills Funding Agency,10/06/2016,16-18 Apprenticeships - Centralised Contract Management,Main Funding,BARNFIELD COLLEGE,AP16C_2180,"-13,768.36",Programme System File
BIS,Skills Funding Agency,10/06/2016,16-18 Apprenticeships - Centralised Contract Management,Main Funding,BARNFIELD COLLEGE,AP16R_11041,"58,248.80",Programme System File
BIS,Skills Funding Agency,10/06/2016,16-18 Apprenticeships - Centralised Contract Management,Main Funding,BARNSLEY COLLEGE,AP16R_11425,"298,611.29",Programme System File
BIS,Skills Funding Agency,10/06/2016,16-18 Apprenticeships - Centralised Contract Management,Main Funding,BASINGSTOKE COLLEGE,AP16R_11267,"88,673.92",Programme System File
BIS,Skills Funding Agency,10/06/2016,16-18 Apprenticeships - Centralised Contract Management,Main Funding,BASINGSTOKE YOUTH ACTION TRUST LTD,AP16R_11579,"18,782.90",Programme System File
BIS,Skills Funding Agency,10/06/2016,16-18 Apprenticeships - Centralised Contract Management,Main Funding,BC ARCH LTD T/A ARCH APPRENTICES,AP16C_2554,"-428,588.05",Programme System File
BIS,Skills Funding Agency,10/06/2016,16-18 Apprenticeships - Centralised Contract Management,Main Funding,BC ARCH LTD T/A ARCH APPRENTICES,AP16R_11997,"616,913.44",Programme System File
BIS,Skills Funding Agency,10/06/2016,16-18 Apprenticeships - Centralised Contract Management,Main Funding,BCTG LIMITED,AP16C_2495,"-2,040.16",Programme System File
BIS,Skills Funding Agency,10/06/2016,16-18 Apprenticeships - Centralised Contract Management,Main Funding,BCTG LIMITED,AP16R_11774,"618,344.22",Programme System File
BIS,Skills Funding Agency,10/06/2016,16-18 Apprenticeships - Centralised Contract Management,Main Funding,BE TOTALLY YOU,AP16R_11859,"15,537.81",Programme System File
BIS,Skills Funding Agency,10/06/2016,16-18 Apprenticeships - Centralised Contract Management,Main Funding,BE WISER INSURANCE SERVICES LIMITED,AP16R_11993,"7,436.69",Programme System File
BIS,Skills Funding Agency,10/06/2016,16-18 Apprenticeships - Centralised Contract Management,Main Funding,BEDFORD COLLEGE,AP16C_2355,"-4,560.11",Programme System File
BIS,Skills Funding Agency,10/06/2016,16-18 Apprenticeships - Centralised Contract Management,Main Funding,BEDFORD COLLEGE,AP16R_11362,"386,733.51",Programme System File
BIS,Skills Funding Agency,10/06/2016,16-18 Apprenticeships - Centralised Contract Management,Main Funding,BERKSHIRE COLLEGE OF AGRICULTURE,AP16C_2249,"-3,840.03",Programme System File
BIS,Skills Funding Agency,10/06/2016,16-18 Apprenticeships - Centralised Contract Management,Main Funding,BERKSHIRE COLLEGE OF AGRICULTURE,AP16R_11187,"16,147.06",Programme System File
BIS,Skills Funding Agency,10/06/2016,16-18 Apprenticeships - Centralised Contract Management,Main Funding,BESTLAND SOLUTIONS LTD,AP16R_11867,"52,866.76",Programme System File
BIS,Skills Funding Agency,10/06/2016,16-18 Apprenticeships - Centralised Contract Management,Main Funding,BEXHILL COLLEGE,AP16C_2348,"-2,000.77",Programme System File
BIS,Skills Funding Agency,10/06/2016,16-18 Apprenticeships - Centralised Contract Management,Main Funding,BEXHILL COLLEGE,AP16R_11347,"7,179.56",Programme System File
BIS,Skills Funding Agency,10/06/2016,16-18 Apprenticeships - Centralised Contract Management,Main Funding,BEXLEY COLLEGE,AP16C_2361,"-47,183.29",Programme System File
BIS,Skills Funding Agency,10/06/2016,16-18 Apprenticeships - Centralised Contract Management,Main Funding,BEXLEY COLLEGE,AP16R_11378,"232,472.60",Programme System File
BIS,Skills Funding Agency,10/06/2016,16-18 Apprenticeships - Centralised Contract Management,Main Funding,BEXLEY LONDON BOROUGH COUNCIL,AP16C_2562,"-4,691.43",Programme System File
BIS,Skills Funding Agency,10/06/2016,16-18 Apprenticeships - Centralised Contract Management,Main Funding,BEXLEY LONDON BOROUGH COUNCIL,AP16R_12022,"5,864.29",Programme System File
BIS,Skills Funding Agency,10/06/2016,16-18 Apprenticeships - Centralised Contract Management,Main Funding,BEXLEY YOUTH TRAINING GROUP,AP16R_11580,"85,514.63",Programme System File
BIS,Skills Funding Agency,10/06/2016,16-18 Apprenticeships - Centralised Contract Management,Main Funding,BIRMINGHAM ELECTRICAL TRAINING LTD,AP16R_11582,"65,311.27",Programme System File
BIS,Skills Funding Agency,10/06/2016,16-18 Apprenticeships - Centralised Contract Management,Main Funding,BIRMINGHAM METROPOLITAN COLLEGE,AP16C_2409,"-58,411.04",Programme System File
BIS,Skills Funding Agency,10/06/2016,16-18 Apprenticeships - Centralised Contract Management,Main Funding,BIRMINGHAM METROPOLITAN COLLEGE,AP16R_11474,"242,255.26",Programme System File
BIS,Skills Funding Agency,10/06/2016,16-18 Apprenticeships - Centralised Contract Management,Main Funding,BISHOP AUCKLAND COLLEGE,AP16C_2389,"-6,235.50",Programme System File
BIS,Skills Funding Agency,10/06/2016,16-18 Apprenticeships - Centralised Contract Management,Main Funding,BISHOP AUCKLAND COLLEGE,AP16R_11438,"37,383.83",Programme System File
BIS,Skills Funding Agency,10/06/2016,16-18 Apprenticeships - Centralised Contract Management,Main Funding,BISHOP BURTON COLLEGE,AP16C_2396,"-28,451.46",Programme System File
BIS,Skills Funding Agency,10/06/2016,16-18 Apprenticeships - Centralised Contract Management,Main Funding,BISHOP BURTON COLLEGE,AP16R_11455,"70,618.49",Programme System File
BIS,Skills Funding Agency,10/06/2016,16-18 Apprenticeships - Centralised Contract Management,Main Funding,BL TRAINING LTD,AP16R_11576,"71,873.78",Programme System File
BIS,Skills Funding Agency,10/06/2016,16-18 Apprenticeships - Centralised Contract Management,Main Funding,BLACKBURN COLLEGE,AP16R_11484,"72,882.18",Programme System File
BIS,Skills Funding Agency,10/06/2016,16-18 Apprenticeships - Centralised Contract Management,Main Funding,BLACKPOOL & FLYDE COLLEGE,AP16R_11514,"94,985.83",Programme System File
BIS,Skills Funding Agency,10/06/2016,16-18 Apprenticeships - Centralised Contract Management,Main Funding,BOLTON COMMUNITY COLLEGE,AP16C_2376,"-12,317.26",Programme System File
BIS,Skills Funding Agency,10/06/2016,16-18 Apprenticeships - Centralised Contract Management,Main Funding,BOLTON COMMUNITY COLLEGE,AP16R_11408,"96,693.08",Programme System File
BIS,Skills Funding Agency,10/06/2016,16-18 Apprenticeships - Centralised Contract Management,Main Funding,BOROUGH OF POOLE,AP16R_11418,"6,151.56",Programme System File
BIS,Skills Funding Agency,10/06/2016,16-18 Apprenticeships - Centralised Contract Management,Main Funding,BOSCH AUTOMOTIVE SERVICE SOLUTIONS LTD,AP16R_11987,"336,503.12",Programme System File
BIS,Skills Funding Agency,10/06/2016,16-18 Apprenticeships - Centralised Contract Management,Main Funding,BOSTON COLLEGE,AP16R_11477,"66,630.66",Programme System File
BIS,Skills Funding Agency,10/06/2016,16-18 Apprenticeships - Centralised Contract Management,Main Funding,BOURNEMOUTH & POOLE COLLEGE,AP16C_2402,"-11,661.47",Programme System File
BIS,Skills Funding Agency,10/06/2016,16-18 Apprenticeships - Centralised Contract Management,Main Funding,BOURNEMOUTH & POOLE COLLEGE,AP16R_11469,"326,407.30",Programme System File
BIS,Skills Funding Agency,10/06/2016,16-18 Apprenticeships - Centralised Contract Management,Main Funding,BOURNVILLE COLLEGE OF HIGHER EDUCATION,AP16R_11492,"50,571.84",Programme System File
BIS,Skills Funding Agency,10/06/2016,16-18 Apprenticeships - Centralised Contract Management,Main Funding,BPP HOLDINGS PLC,AP16C_2458,"-203,118.34",Programme System File
BIS,Skills Funding Agency,10/06/2016,16-18 Apprenticeships - Centralised Contract Management,Main Funding,BPP HOLDINGS PLC,AP16R_11591,"767,496.08",Programme System File
BIS,Skills Funding Agency,10/06/2016,16-18 Apprenticeships - Centralised Contract Management,Main Funding,BRACKNELL & WOKINGHAM COLLEGE,AP16R_11522,"56,811.47",Programme System File
BIS,Skills Funding Agency,10/06/2016,16-18 Apprenticeships - Centralised Contract Management,Main Funding,BRADFORD CITY COUNCIL,AP16C_2436,-113.73,Programme System File
BIS,Skills Funding Agency,10/06/2016,16-18 Apprenticeships - Centralised Contract Management,Main Funding,BRADFORD CITY COUNCIL,AP16R_11537,"5,069.26",Programme System File
BIS,Skills Funding Agency,10/06/2016,16-18 Apprenticeships - Centralised Contract Management,Main Funding,BRADFORD COLLEGE,AP16C_2421,"-31,757.72",Programme System File
BIS,Skills Funding Agency,10/06/2016,16-18 Apprenticeships - Centralised Contract Management,Main Funding,BRADFORD COLLEGE,AP16R_11507,"213,773.14",Programme System File
BIS,Skills Funding Agency,10/06/2016,16-18 Apprenticeships - Centralised Contract Management,Main Funding,BRIDGWATER COLLEGE,AP16C_2442,"-19,649.21",Programme System File
BIS,Skills Funding Agency,10/06/2016,16-18 Apprenticeships - Centralised Contract Management,Main Funding,BRIDGWATER COLLEGE,AP16R_11552,"419,211.04",Programme System File
BIS,Skills Funding Agency,10/06/2016,16-18 Apprenticeships - Centralised Contract Management,Main Funding,BRIGHT HORIZONS FAMILY SOLUTIONS LTD,AP16R_11660,"12,348.99",Programme System File
BIS,Skills Funding Agency,10/06/2016,16-18 Apprenticeships - Centralised Contract Management,Main Funding,BRINSWORTH TRAINING LIMITED,AP16R_11887,"31,653.04",Programme System File
BIS,Skills Funding Agency,10/06/2016,16-18 Apprenticeships - Centralised Contract Management,Main Funding,BRISTOL CITY COUNCIL,AP16C_2453,"-50,184.67",Programme System File
BIS,Skills Funding Agency,10/06/2016,16-18 Apprenticeships - Centralised Contract Management,Main Funding,BRISTOL CITY COUNCIL,AP16R_11587,"121,654.68",Programme System File
BIS,Skills Funding Agency,10/06/2016,16-18 Apprenticeships - Centralised Contract Management,Main Funding,BRITISH ARMY,AP16R_11959,"848,063.11",Programme System File
BIS,Skills Funding Agency,10/06/2016,16-18 Apprenticeships - Centralised Contract Management,Main Funding,BRITISH GAS SERVICES LIMITED,AP16R_11581,"5,817.31",Programme System File
BIS,Skills Funding Agency,10/06/2016,16-18 Apprenticeships - Centralised Contract Management,Main Funding,BRITISH NUCLEAR FUELS PLC,AP16R_11824,"10,814.60",Programme System File
BIS,Skills Funding Agency,10/06/2016,16-18 Apprenticeships - Centralised Contract Management,Main Funding,BRITISH PRINTING INDUSTRIES FEDERATION LTD,AP16C_2454,"-3,775.23",Programme System File
BIS,Skills Funding Agency,10/06/2016,16-18 Apprenticeships - Centralised Contract Management,Main Funding,BRITISH PRINTING INDUSTRIES FEDERATION LTD,AP16R_11583,"76,343.98",Programme System File
BIS,Skills Funding Agency,10/06/2016,16-18 Apprenticeships - Centralised Contract Management,Main Funding,BRITISH TELECOM PLC,AP16C_2529,-70351.34,Programme System File
BIS,Skills Funding Agency,10/06/2016,16-18 Apprenticeships - Centralised Contract Management,Main Funding,BRITISH TELECOM PLC,AP16R_11926,"170,197.66",Programme System File
BIS,Skills Funding Agency,10/06/2016,16-18 Apprenticeships - Centralised Contract Management,Main Funding,BROADLAND DISTRICT COUNCIL,AP16R_11623,"41,003.45",Programme System File
BIS,Skills Funding Agency,10/06/2016,16-18 Apprenticeships - Centralised Contract Management,Main Funding,BROCKENHURST COLLEGE,AP16R_11603,"31,650.43",Programme System File
BIS,Skills Funding Agency,10/06/2016,16-18 Apprenticeships - Centralised Contract Management,Main Funding,BROMLEY COLLEGE OF FURTHER & HIGHER EDUCATION,AP16C_2448,"-4,086.57",Programme System File
BIS,Skills Funding Agency,10/06/2016,16-18 Apprenticeships - Centralised Contract Management,Main Funding,BROMLEY COLLEGE OF FURTHER & HIGHER EDUCATION,AP16R_11569,"127,586.63",Programme System File
BIS,Skills Funding Agency,10/06/2016,16-18 Apprenticeships - Centralised Contract Management,Main Funding,BROOKLANDS TECHNICAL COLLEGE,AP16R_11595,"239,267.72",Programme System File
BIS,Skills Funding Agency,10/06/2016,16-18 Apprenticeships - Centralised Contract Management,Main Funding,BROOKSBY MELTON COLLEGE,AP16R_11613,"24,404.06",Programme System File
BIS,Skills Funding Agency,10/06/2016,16-18 Apprenticeships - Centralised Contract Management,Main Funding,BUCKINGHAMSHIRE COUNTY COUNCIL,AP16R_11633,"13,067.18",Programme System File
BIS,Skills Funding Agency,10/06/2016,16-18 Apprenticeships - Centralised Contract Management,Main Funding,BUILDING CRAFTS COLLEGE,AP16C_2499,"-27,716.27",Programme System File
BIS,Skills Funding Agency,10/06/2016,16-18 Apprenticeships - Centralised Contract Management,Main Funding,BUILDING CRAFTS COLLEGE,AP16R_11816,"38,228.79",Programme System File
BIS,Skills Funding Agency,10/06/2016,16-18 Apprenticeships - Centralised Contract Management,Main Funding,BURNLEY COLLEGE,AP16C_2467,"-7,268.63",Programme System File
BIS,Skills Funding Agency,10/06/2016,16-18 Apprenticeships - Centralised Contract Management,Main Funding,BURNLEY COLLEGE,AP16R_11649,"474,003.06",Programme System File
BIS,Skills Funding Agency,10/06/2016,16-18 Apprenticeships - Centralised Contract Management,Main Funding,BURTON & SOUTH DERBYSHIRE COLLEGE,AP16C_2471,"-108,357.26",Programme System File
BIS,Skills Funding Agency,10/06/2016,16-18 Apprenticeships - Centralised Contract Management,Main Funding,BURTON & SOUTH DERBYSHIRE COLLEGE,AP16R_11668,"183,139.01",Programme System File
BIS,Skills Funding Agency,10/06/2016,16-18 Apprenticeships - Centralised Contract Management,Main Funding,BURY COLLEGE,AP16C_2475,"-159,183.67",Programme System File
BIS,Skills Funding Agency,10/06/2016,16-18 Apprenticeships - Centralised Contract Management,Main Funding,BURY COLLEGE,AP16R_11688,"276,088.26",Programme System File
BIS,Skills Funding Agency,10/06/2016,16-18 Apprenticeships - Centralised Contract Management,Main Funding,BUSINESS MANAGEMENT RESOURCES UK LTD,AP16R_11584,"7,621.29",Programme System File
BIS,Skills Funding Agency,10/06/2016,16-18 Apprenticeships - Centralised Contract Management,Main Funding,BUSY BEES NURSERIES,AP16C_2535,"-7,521.29",Programme System File
BIS,Skills Funding Agency,10/06/2016,16-18 Apprenticeships - Centralised Contract Management,Main Funding,BUSY BEES NURSERIES,AP16R_11947,"169,744.06",Programme System File
BIS,Skills Funding Agency,10/06/2016,16-18 Apprenticeships - Centralised Contract Management,Main Funding,CABLECOM TRAINING LTD,AP16R_11586,"5,433.53",Programme System File
BIS,Skills Funding Agency,10/06/2016,16-18 Apprenticeships - Centralised Contract Management,Main Funding,CALDERDALE COLLEGE,AP16R_11714,"200,177.78",Programme System File
BIS,Skills Funding Agency,10/06/2016,16-18 Apprenticeships - Centralised Contract Management,Main Funding,CAMBRIDGE REGIONAL COLLEGE,AP16R_11723,"301,061.00",Programme System File
BIS,Skills Funding Agency,10/06/2016,16-18 Apprenticeships - Centralised Contract Management,Main Funding,CANTERBURY COLLEGE,AP16C_2479,"-204,831.43",Programme System File
BIS,Skills Funding Agency,10/06/2016,16-18 Apprenticeships - Centralised Contract Management,Main Funding,CANTERBURY COLLEGE,AP16R_11705,"276,332.39",Programme System File
BIS,Skills Funding Agency,10/06/2016,16-18 Apprenticeships - Centralised Contract Management,Main Funding,CAPEL MANOR COLLEGE,AP16R_11733,"7,832.96",Programme System File
BIS,Skills Funding Agency,10/06/2016,16-18 Apprenticeships - Centralised Contract Management,Main Funding,CAPITA PLC,AP16R_11593,"138,289.65",Programme System File
BIS,Skills Funding Agency,10/06/2016,16-18 Apprenticeships - Centralised Contract Management,Main Funding,CAPITAL ENGINEERING GROUP HOLDINGS LTD,AP16R_11889,"37,464.98",Programme System File
BIS,Skills Funding Agency,10/06/2016,16-18 Apprenticeships - Centralised Contract Management,Main Funding,CARE LEARNING CENTRE ISLE OF WIGHT LTD,AP16R_11776,"8,532.85",Programme System File
BIS,Skills Funding Agency,10/06/2016,16-18 Apprenticeships - Centralised Contract Management,Main Funding,CARE TRAINING EAST MIDLANDS LIMITED,AP16R_11594,"38,383.22",Programme System File
BIS,Skills Funding Agency,10/06/2016,16-18 Apprenticeships - Centralised Contract Management,Main Funding,CARILLION CONSTRUCTION LTD,AP16C_2459,"-79,535.37",Programme System File
BIS,Skills Funding Agency,10/06/2016,16-18 Apprenticeships - Centralised Contract Management,Main Funding,CARILLION CONSTRUCTION LTD,AP16R_11597,"631,622.25",Programme System File
BIS,Skills Funding Agency,10/06/2016,16-18 Apprenticeships - Centralised Contract Management,Main Funding,CARLISLE COLLEGE,AP16R_11790,"71,042.47",Programme System File
BIS,Skills Funding Agency,10/06/2016,16-18 Apprenticeships - Centralised Contract Management,Main Funding,CARSHALTON COLLEGE,AP16C_2492,"-11,112.24",Programme System File
BIS,Skills Funding Agency,10/06/2016,16-18 Apprenticeships - Centralised Contract Management,Main Funding,CARSHALTON COLLEGE,AP16R_11770,"52,949.38",Programme System File
BIS,Skills Funding Agency,10/06/2016,16-18 Apprenticeships - Centralised Contract Management,Main Funding,CATCH 22 CHARITY LTD,AP16R_11919,"162,796.43",Programme System File
BIS,Skills Funding Agency,10/06/2016,16-18 Apprenticeships - Centralised Contract Management,Main Funding,CENTRAL BEDFORDSHIRE COLLEGE,AP16C_2144,"-92,191.54",Programme System File
BIS,Skills Funding Agency,10/06/2016,16-18 Apprenticeships - Centralised Contract Management,Main Funding,CENTRAL BEDFORDSHIRE COLLEGE,AP16R_10897,"117,318.42",Programme System File
BIS,Skills Funding Agency,10/06/2016,16-18 Apprenticeships - Centralised Contract Management,Main Funding,CENTRAL BEDFORDSHIRE COUNCIL,AP16C_2446,"-1,472.96",Programme System File
BIS,Skills Funding Agency,10/06/2016,16-18 Apprenticeships - Centralised Contract Management,Main Funding,CENTRAL BEDFORDSHIRE COUNCIL,AP16R_11553,"6,183.69",Programme System File
BIS,Skills Funding Agency,10/06/2016,16-18 Apprenticeships - Centralised Contract Management,Main Funding,CENTRAL COLLEGE NOTTINGHAM,AP16R_11449,"212,677.02",Programme System File
BIS,Skills Funding Agency,10/06/2016,16-18 Apprenticeships - Centralised Contract Management,Main Funding,CENTRAL SUSSEX COLLEGE,AP16C_2105,"-5,450.43",Programme System File
BIS,Skills Funding Agency,10/06/2016,16-18 Apprenticeships - Centralised Contract Management,Main Funding,CENTRAL SUSSEX COLLEGE,AP16R_10735,"101,725.55",Programme System File
BIS,Skills Funding Agency,10/06/2016,16-18 Apprenticeships - Centralised Contract Management,Main Funding,CENTRAL TRAINING ACADEMY LTD,AP16R_11592,"153,873.22",Programme System File
BIS,Skills Funding Agency,10/06/2016,16-18 Apprenticeships - Centralised Contract Management,Main Funding,CHAMBER TRAINING HUMBER LTD,AP16R_11599,"41,869.88",Programme System File
BIS,Skills Funding Agency,10/06/2016,16-18 Apprenticeships - Centralised Contract Management,Main Funding,CHAPMAN BENNETT ASSOCIATES LIMITED,AP16R_11915,"21,320.41",Programme System File
BIS,Skills Funding Agency,10/06/2016,16-18 Apprenticeships - Centralised Contract Management,Main Funding,CHELMSFORD COLLEGE,AP16C_2489,"-2,697.54",Programme System File
BIS,Skills Funding Agency,10/06/2016,16-18 Apprenticeships - Centralised Contract Management,Main Funding,CHELMSFORD COLLEGE,AP16R_11751,"63,377.06",Programme System File
BIS,Skills Funding Agency,10/06/2016,16-18 Apprenticeships - Centralised Contract Management,Main Funding,CHESTERFIELD COLLEGE,AP16R_11801,"236,663.22",Programme System File
BIS,Skills Funding Agency,10/06/2016,16-18 Apprenticeships - Centralised Contract Management,Main Funding,CHEYNES MANAGEMENT LTD,AP16C_2497,"-11,040.04",Programme System File
BIS,Skills Funding Agency,10/06/2016,16-18 Apprenticeships - Centralised Contract Management,Main Funding,CHEYNES MANAGEMENT LTD,AP16R_11807,"265,728.86",Programme System File
BIS,Skills Funding Agency,10/06/2016,16-18 Apprenticeships - Centralised Contract Management,Main Funding,CHICHESTER COLLEGE,AP16R_11531,"128,884.79",Programme System File
BIS,Skills Funding Agency,10/06/2016,16-18 Apprenticeships - Centralised Contract Management,Main Funding,CHILDRENS LINKS,AP16C_2460,"-5,361.63",Programme System File
BIS,Skills Funding Agency,10/06/2016,16-18 Apprenticeships - Centralised Contract Management,Main Funding,CHILDRENS LINKS,AP16R_11598,"28,379.23",Programme System File
BIS,Skills Funding Agency,10/06/2016,16-18 Apprenticeships - Centralised Contract Management,Main Funding,CHILTERN TRAINING LTD,AP16R_11600,"65,455.51",Programme System File
BIS,Skills Funding Agency,10/06/2016,16-18 Apprenticeships - Centralised Contract Management,Main Funding,CIRENCESTER TERTIARY COLLEGE,AP16C_2501,"-10,227.61",Programme System File
BIS,Skills Funding Agency,10/06/2016,16-18 Apprenticeships - Centralised Contract Management,Main Funding,CIRENCESTER TERTIARY COLLEGE,AP16R_11826,"22,743.15",Programme System File
BIS,Skills Funding Agency,10/06/2016,16-18 Apprenticeships - Centralised Contract Management,Main Funding,CITB CONSTRUCTIONSKILLS,AP16R_11606,"3,984,039.03",Programme System File
BIS,Skills Funding Agency,10/06/2016,16-18 Apprenticeships - Centralised Contract Management,Main Funding,CITROEN UK LTD,AP16R_11866,"61,915.46",Programme System File
BIS,Skills Funding Agency,10/06/2016,16-18 Apprenticeships - Centralised Contract Management,Main Funding,CITY AND ISLINGTON COLLEGE,AP16R_11811,"7,349.80",Programme System File
BIS,Skills Funding Agency,10/06/2016,16-18 Apprenticeships - Centralised Contract Management,Main Funding,CITY COLLEGE BRIGHTON & HOVE,AP16R_11834,"49,020.05",Programme System File
BIS,Skills Funding Agency,10/06/2016,16-18 Apprenticeships - Centralised Contract Management,Main Funding,CITY COLLEGE COVENTRY,AP16R_11845,"68,468.82",Programme System File
BIS,Skills Funding Agency,10/06/2016,16-18 Apprenticeships - Centralised Contract Management,Main Funding,CITY COLLEGE PLYMOUTH,AP16C_2380,"-3,415.44",Programme System File
BIS,Skills Funding Agency,10/06/2016,16-18 Apprenticeships - Centralised Contract Management,Main Funding,CITY COLLEGE PLYMOUTH,AP16R_11415,"239,600.77",Programme System File
BIS,Skills Funding Agency,10/06/2016,16-18 Apprenticeships - Centralised Contract Management,Main Funding,CITY GATEWAY LTD,AP16R_11860,"2,613.88",Programme System File
BIS,Skills Funding Agency,10/06/2016,16-18 Apprenticeships - Centralised Contract Management,Main Funding,CITY OF BATH COLLEGE,AP16R_11998,"61,121.56",Programme System File
BIS,Skills Funding Agency,10/06/2016,16-18 Apprenticeships - Centralised Contract Management,Main Funding,CITY OF BRISTOL COLLEGE,AP16C_2512,"-25,346.07",Programme System File
BIS,Skills Funding Agency,10/06/2016,16-18 Apprenticeships - Centralised Contract Management,Main Funding,CITY OF BRISTOL COLLEGE,AP16R_11862,"183,603.74",Programme System File
BIS,Skills Funding Agency,10/06/2016,16-18 Apprenticeships - Centralised Contract Management,Main Funding,CITY OF LONDON ADULT EDUCATION,AP16C_2439,"-1,147.99",Programme System File
BIS,Skills Funding Agency,10/06/2016,16-18 Apprenticeships - Centralised Contract Management,Main Funding,CITY OF LONDON ADULT EDUCATION,AP16R_11538,"12,019.50",Programme System File
BIS,Skills Funding Agency,10/06/2016,16-18 Apprenticeships - Centralised Contract Management,Main Funding,CITY OF SUNDERLAND COLLEGE,AP16R_11897,"75,788.60",Programme System File
BIS,Skills Funding Agency,10/06/2016,16-18 Apprenticeships - Centralised Contract Management,Main Funding,CITY OF WESTMINSTER COLLEGE,AP16R_11934,"37,983.38",Programme System File
BIS,Skills Funding Agency,10/06/2016,16-18 Apprenticeships - Centralised Contract Management,Main Funding,CITY OF WOLVERHAMPTON COLLEGE,AP16R_11520,"109,662.14",Programme System File
BIS,Skills Funding Agency,10/06/2016,16-18 Apprenticeships - Centralised Contract Management,Main Funding,CITY OF YORK COUNCIL,AP16R_11905,"5,973.79",Programme System File
BIS,Skills Funding Agency,10/06/2016,16-18 Apprenticeships - Centralised Contract Management,Main Funding,CLARKSON EVANS TRAINING LIMITED,AP16R_11918,"20,032.83",Programme System File
BIS,Skills Funding Agency,10/06/2016,16-18 Apprenticeships - Centralised Contract Management,Main Funding,CLEVELAND YOUTH ASSOCIATION,AP16C_2490,-103.3,Programme System File
BIS,Skills Funding Agency,10/06/2016,16-18 Apprenticeships - Centralised Contract Management,Main Funding,CLEVELAND YOUTH ASSOCIATION,AP16R_11749,"45,813.71",Programme System File
BIS,Skills Funding Agency,10/06/2016,16-18 Apprenticeships - Centralised Contract Management,Main Funding,COLCHESTER INSTITUTE,AP16C_2527,"-175,650.58",Programme System File
BIS,Skills Funding Agency,10/06/2016,16-18 Apprenticeships - Centralised Contract Management,Main Funding,COLCHESTER INSTITUTE,AP16R_11924,"374,252.96",Programme System File
BIS,Skills Funding Agency,10/06/2016,16-18 Apprenticeships - Centralised Contract Management,Main Funding,COLLEGE OF ANIMAL WELFARE LTD,AP16C_2461,"-29,180.53",Programme System File
BIS,Skills Funding Agency,10/06/2016,16-18 Apprenticeships - Centralised Contract Management,Main Funding,COLLEGE OF ANIMAL WELFARE LTD,AP16R_11602,"46,520.91",Programme System File
BIS,Skills Funding Agency,10/06/2016,16-18 Apprenticeships - Centralised Contract Management,Main Funding,COLLEGE OF NORTH EAST LONDON,AP16C_2533,"-1,477.93",Programme System File
BIS,Skills Funding Agency,10/06/2016,16-18 Apprenticeships - Centralised Contract Management,Main Funding,COLLEGE OF NORTH EAST LONDON,AP16R_11951,"65,436.50",Programme System File
BIS,Skills Funding Agency,10/06/2016,16-18 Apprenticeships - Centralised Contract Management,Main Funding,COLLEGE OF NORTH WEST LONDON,AP16C_2543,"-79,105.72",Programme System File
BIS,Skills Funding Agency,10/06/2016,16-18 Apprenticeships - Centralised Contract Management,Main Funding,COLLEGE OF NORTH WEST LONDON,AP16R_11973,"142,341.59",Programme System File
BIS,Skills Funding Agency,10/06/2016,16-18 Apprenticeships - Centralised Contract Management,Main Funding,COLLEGE OF RICHARD COLLYER,AP16R_12005,"1,542.78",Programme System File
BIS,Skills Funding Agency,10/06/2016,16-18 Apprenticeships - Centralised Contract Management,Main Funding,COLLEGE OF WEST ANGLIA,AP16R_11532,"125,054.90",Programme System File
BIS,Skills Funding Agency,10/06/2016,16-18 Apprenticeships - Centralised Contract Management,Main Funding,COMMUNITY TRAINING SERVICES LTD,AP16R_11608,"8,526.55",Programme System File
BIS,Skills Funding Agency,10/06/2016,16-18 Apprenticeships - Centralised Contract Management,Main Funding,COMPASS GROUP UK & IRELAND LTD,AP16R_11909,"5,422.04",Programme System File
BIS,Skills Funding Agency,10/06/2016,16-18 Apprenticeships - Centralised Contract Management,Main Funding,CONSORTIA TRAINING LIMITED,AP16C_2540,"-72,104.30",Programme System File
BIS,Skills Funding Agency,10/06/2016,16-18 Apprenticeships - Centralised Contract Management,Main Funding,CONSORTIA TRAINING LIMITED,AP16R_11956,"121,929.50",Programme System File
BIS,Skills Funding Agency,10/06/2016,16-18 Apprenticeships - Centralised Contract Management,Main Funding,CORNWALL COLLEGE,AP16C_2550,"-41,346.31",Programme System File
BIS,Skills Funding Agency,10/06/2016,16-18 Apprenticeships - Centralised Contract Management,Main Funding,CORNWALL COLLEGE,AP16R_11989,"403,465.70",Programme System File
BIS,Skills Funding Agency,10/06/2016,16-18 Apprenticeships - Centralised Contract Management,Main Funding,COVENTRY & WARWICKSHIRE CHAMBERS OF COMMERCE TRAINING LIMITED,AP16R_11596,"76,220.94",Programme System File
BIS,Skills Funding Agency,10/06/2016,16-18 Apprenticeships - Centralised Contract Management,Main Funding,COVET LTD,AP16R_11960,"44,131.63",Programme System File
BIS,Skills Funding Agency,10/06/2016,16-18 Apprenticeships - Centralised Contract Management,Main Funding,CRACKERJACK TRAINING LTD,AP16R_11605,"43,624.37",Programme System File
BIS,Skills Funding Agency,10/06/2016,16-18 Apprenticeships - Centralised Contract Management,Main Funding,CRAVEN COLLEGE,AP16R_12014,"171,268.06",Programme System File
BIS,Skills Funding Agency,10/06/2016,16-18 Apprenticeships - Centralised Contract Management,Main Funding,CREATIVE PROCESS,AP16R_11903,"25,803.15",Programme System File
BIS,Skills Funding Agency,10/06/2016,16-18 Apprenticeships - Centralised Contract Management,Main Funding,CROYDON COLLEGE,AP16C_2563,"-36,959.99",Programme System File
BIS,Skills Funding Agency,10/06/2016,16-18 Apprenticeships - Centralised Contract Management,Main Funding,CROYDON COLLEGE,AP16R_10709,"242,155.97",Programme System File
BIS,Skills Funding Agency,10/06/2016,16-18 Apprenticeships - Centralised Contract Management,Main Funding,CSM CONSULTING LTD,AP16C_2462,"-38,528.89",Programme System File
BIS,Skills Funding Agency,10/06/2016,16-18 Apprenticeships - Centralised Contract Management,Main Funding,CSM CONSULTING LTD,AP16R_11604,"127,087.14",Programme System File
BIS,Skills Funding Agency,10/06/2016,16-18 Apprenticeships - Centralised Contract Management,Main Funding,CUMBRIA COUNTY COUNCIL,AP16R_10719,318.07,Programme System File
BIS,Skills Funding Agency,10/06/2016,16-18 Apprenticeships - Centralised Contract Management,Main Funding,D M T BUSINESS SERVICES LTD,AP16R_11617,"2,528.59",Programme System File
BIS,Skills Funding Agency,10/06/2016,16-18 Apprenticeships - Centralised Contract Management,Main Funding,D MANTLE LIMITED,AP16R_11948,"2,931.67",Programme System File
BIS,Skills Funding Agency,10/06/2016,16-18 Apprenticeships - Centralised Contract Management,Main Funding,DAMAR LTD,AP16R_11610,"516,299.06",Programme System File
BIS,Skills Funding Agency,10/06/2016,16-18 Apprenticeships - Centralised Contract Management,Main Funding,DARLINGTON BOROUGH COUNCIL,AP16R_10761,"23,950.86",Programme System File
BIS,Skills Funding Agency,10/06/2016,16-18 Apprenticeships - Centralised Contract Management,Main Funding,DARLINGTON COLLEGE,AP16C_2115,"-287,173.16",Programme System File
BIS,Skills Funding Agency,10/06/2016,16-18 Apprenticeships - Centralised Contract Management,Main Funding,DARLINGTON COLLEGE,AP16R_10779,"354,975.01",Programme System File
BIS,Skills Funding Agency,10/06/2016,16-18 Apprenticeships - Centralised Contract Management,Main Funding,DART LTD,AP16R_11607,"61,549.84",Programme System File
BIS,Skills Funding Agency,10/06/2016,16-18 Apprenticeships - Centralised Contract Management,Main Funding,DAVIDSON TRAINING UK LIMITED,AP16R_11609,"9,290.27",Programme System File
BIS,Skills Funding Agency,10/06/2016,16-18 Apprenticeships - Centralised Contract Management,Main Funding,DAWN HODGE ASSOCIATES LTD,AP16R_11879,"24,738.84",Programme System File
BIS,Skills Funding Agency,10/06/2016,16-18 Apprenticeships - Centralised Contract Management,Main Funding,DEARNE VALLEY COLLEGE,AP16C_2128,"-11,063.91",Programme System File
BIS,Skills Funding Agency,10/06/2016,16-18 Apprenticeships - Centralised Contract Management,Main Funding,DEARNE VALLEY COLLEGE,AP16R_10832,"109,663.49",Programme System File
BIS,Skills Funding Agency,10/06/2016,16-18 Apprenticeships - Centralised Contract Management,Main Funding,DERBY CITY COUNCIL,AP16C_2109,"-15,335.64",Programme System File
BIS,Skills Funding Agency,10/06/2016,16-18 Apprenticeships - Centralised Contract Management,Main Funding,DERBY CITY COUNCIL,AP16R_10752,"31,232.70",Programme System File
BIS,Skills Funding Agency,10/06/2016,16-18 Apprenticeships - Centralised Contract Management,Main Funding,DERBY COLLEGE,AP16C_2119,"-157,816.51",Programme System File
BIS,Skills Funding Agency,10/06/2016,16-18 Apprenticeships - Centralised Contract Management,Main Funding,DERBY COLLEGE,AP16R_10798,"372,789.64",Programme System File
BIS,Skills Funding Agency,10/06/2016,16-18 Apprenticeships - Centralised Contract Management,Main Funding,DERBYSHIRE & NOTTINGHAMSHIRE CHAMBER OF COMMERCE & INDUSTRY,AP16R_11612,"30,895.24",Programme System File
BIS,Skills Funding Agency,10/06/2016,16-18 Apprenticeships - Centralised Contract Management,Main Funding,DERBYSHIRE COUNTY COUNCIL,AP16C_2123,"-43,332.94",Programme System File
BIS,Skills Funding Agency,10/06/2016,16-18 Apprenticeships - Centralised Contract Management,Main Funding,DERBYSHIRE COUNTY COUNCIL,AP16R_10816,"46,113.27",Programme System File
BIS,Skills Funding Agency,10/06/2016,16-18 Apprenticeships - Centralised Contract Management,Main Funding,DERBYSHIRE NETWORK,AP16C_2496,-397.27,Programme System File
BIS,Skills Funding Agency,10/06/2016,16-18 Apprenticeships - Centralised Contract Management,Main Funding,DERBYSHIRE NETWORK,AP16R_11782,"28,190.26",Programme System File
BIS,Skills Funding Agency,10/06/2016,16-18 Apprenticeships - Centralised Contract Management,Main Funding,DERWENTSIDE COLLEGE,AP16R_10857,"172,896.17",Programme System File
BIS,Skills Funding Agency,10/06/2016,16-18 Apprenticeships - Centralised Contract Management,Main Funding,DHL INTERNATIONAL UK LTD,AP16C_2528,"-78,702.10",Programme System File
BIS,Skills Funding Agency,10/06/2016,16-18 Apprenticeships - Centralised Contract Management,Main Funding,DHL INTERNATIONAL UK LTD,AP16R_11916,"81,485.84",Programme System File
BIS,Skills Funding Agency,10/06/2016,16-18 Apprenticeships - Centralised Contract Management,Main Funding,DIDAC LTD,AP16R_11614,"21,075.03",Programme System File
BIS,Skills Funding Agency,10/06/2016,16-18 Apprenticeships - Centralised Contract Management,Main Funding,DIMENSIONS TRAINING SOLUTIONS LTD,AP16R_11616,"22,260.06",Programme System File
BIS,Skills Funding Agency,10/06/2016,16-18 Apprenticeships - Centralised Contract Management,Main Funding,DONCASTER COLLEGE,AP16C_2134,"-1,686.05",Programme System File
BIS,Skills Funding Agency,10/06/2016,16-18 Apprenticeships - Centralised Contract Management,Main Funding,DONCASTER COLLEGE,AP16R_10850,"109,540.40",Programme System File
BIS,Skills Funding Agency,10/06/2016,16-18 Apprenticeships - Centralised Contract Management,Main Funding,DONCASTER METRO BOROUGH COUNCIL,AP16R_10868,"16,575.01",Programme System File
BIS,Skills Funding Agency,10/06/2016,16-18 Apprenticeships - Centralised Contract Management,Main Funding,DONCASTER ROTHERHAM & DISTRICT MOTOR TRADES GROUP TRAINING ASSOCIATION LTD,AP16R_11611,"56,033.16",Programme System File
BIS,Skills Funding Agency,10/06/2016,16-18 Apprenticeships - Centralised Contract Management,Main Funding,DOOSAN BABCOCK LTD,AP16R_11692,"42,354.80",Programme System File
BIS,Skills Funding Agency,10/06/2016,16-18 Apprenticeships - Centralised Contract Management,Main Funding,DUDLEY COLLEGE OF TECHNOLOGY,AP16R_11534,"787,911.80",Programme System File
BIS,Skills Funding Agency,10/06/2016,16-18 Apprenticeships - Centralised Contract Management,Main Funding,DURHAM COUNTY COUNCIL,AP16C_2154,"-10,805.77",Programme System File
BIS,Skills Funding Agency,10/06/2016,16-18 Apprenticeships - Centralised Contract Management,Main Funding,DURHAM COUNTY COUNCIL,AP16R_10927,"14,308.11",Programme System File
BIS,Skills Funding Agency,10/06/2016,16-18 Apprenticeships - Centralised Contract Management,Main Funding,E TRAINING LTD,AP16R_11618,"8,607.93",Programme System File
BIS,Skills Funding Agency,10/06/2016,16-18 Apprenticeships - Centralised Contract Management,Main Funding,EALING HAMMERSMITH & WEST LONDON COLLEGE,AP16R_11026,"20,831.94",Programme System File
BIS,Skills Funding Agency,10/06/2016,16-18 Apprenticeships - Centralised Contract Management,Main Funding,EAST BERKSHIRE COLLEGE,AP16R_10878,"68,361.57",Programme System File
BIS,Skills Funding Agency,10/06/2016,16-18 Apprenticeships - Centralised Contract Management,Main Funding,EAST DURHAM COLLEGE,AP16C_2147,"-26,442.30",Programme System File
BIS,Skills Funding Agency,10/06/2016,16-18 Apprenticeships - Centralised Contract Management,Main Funding,EAST DURHAM COLLEGE,AP16R_10913,"113,363.15",Programme System File
BIS,Skills Funding Agency,10/06/2016,16-18 Apprenticeships - Centralised Contract Management,Main Funding,EAST KENT COLLEGE,AP16R_11487,"48,031.54",Programme System File
BIS,Skills Funding Agency,10/06/2016,16-18 Apprenticeships - Centralised Contract Management,Main Funding,EAST LINDSEY INFORMATION TECHNOLOGY CENTRE,AP16R_11622,"34,493.18",Programme System File
BIS,Skills Funding Agency,10/06/2016,16-18 Apprenticeships - Centralised Contract Management,Main Funding,EAST RIDING COLLEGE,AP16C_2163,"-3,193.80",Programme System File
BIS,Skills Funding Agency,10/06/2016,16-18 Apprenticeships - Centralised Contract Management,Main Funding,EAST RIDING COLLEGE,AP16R_10940,"178,800.54",Programme System File
BIS,Skills Funding Agency,10/06/2016,16-18 Apprenticeships - Centralised Contract Management,Main Funding,EAST RIDING OF YORKSHIRE COUNCIL,AP16R_11542,"5,831.23",Programme System File
BIS,Skills Funding Agency,10/06/2016,16-18 Apprenticeships - Centralised Contract Management,Main Funding,EAST SURREY COLLEGE,AP16C_2171,"-16,869.87",Programme System File
BIS,Skills Funding Agency,10/06/2016,16-18 Apprenticeships - Centralised Contract Management,Main Funding,EAST SURREY COLLEGE,AP16R_10955,"204,952.97",Programme System File
BIS,Skills Funding Agency,10/06/2016,16-18 Apprenticeships - Centralised Contract Management,Main Funding,EASTLEIGH COLLEGE,AP16C_2183,"-108,083.25",Programme System File
BIS,Skills Funding Agency,10/06/2016,16-18 Apprenticeships - Centralised Contract Management,Main Funding,EASTLEIGH COLLEGE,AP16R_10977,"378,113.87",Programme System File
BIS,Skills Funding Agency,10/06/2016,16-18 Apprenticeships - Centralised Contract Management,Main Funding,EASTON & OTLEY COLLEGE,AP16C_2443,"-8,063.99",Programme System File
BIS,Skills Funding Agency,10/06/2016,16-18 Apprenticeships - Centralised Contract Management,Main Funding,EASTON & OTLEY COLLEGE,AP16R_11545,"67,425.16",Programme System File
BIS,Skills Funding Agency,10/06/2016,16-18 Apprenticeships - Centralised Contract Management,Main Funding,ECONOMIC SOLUTIONS LTD,AP16R_11686,"424,524.19",Programme System File
BIS,Skills Funding Agency,10/06/2016,16-18 Apprenticeships - Centralised Contract Management,Main Funding,EDEN TRAINING SOLUTIONS LTD,AP16R_11929,"34,002.75",Programme System File
BIS,Skills Funding Agency,10/06/2016,16-18 Apprenticeships - Centralised Contract Management,Main Funding,EDUCATION & TRAINING SKILLS LTD,AP16R_11620,"68,033.88",Programme System File
BIS,Skills Funding Agency,10/06/2016,16-18 Apprenticeships - Centralised Contract Management,Main Funding,EEF LTD,AP16R_11925,"125,834.00",Programme System File
BIS,Skills Funding Agency,10/06/2016,16-18 Apprenticeships - Centralised Contract Management,Main Funding,ELATT,AP16R_11615,"28,191.81",Programme System File
BIS,Skills Funding Agency,10/06/2016,16-18 Apprenticeships - Centralised Contract Management,Main Funding,ENGLAND & WALES CRICKET BOARD LTD,AP16C_2509,"-7,702.12",Programme System File
BIS,Skills Funding Agency,10/06/2016,16-18 Apprenticeships - Centralised Contract Management,Main Funding,ENGLAND & WALES CRICKET BOARD LTD,AP16R_11850,"27,228.28",Programme System File
BIS,Skills Funding Agency,10/06/2016,16-18 Apprenticeships - Centralised Contract Management,Main Funding,EON UK PLC,AP16C_2525,"-44,106.49",Programme System File
BIS,Skills Funding Agency,10/06/2016,16-18 Apprenticeships - Centralised Contract Management,Main Funding,EON UK PLC,AP16R_11902,"50,291.63",Programme System File
BIS,Skills Funding Agency,10/06/2016,16-18 Apprenticeships - Centralised Contract Management,Main Funding,EPPING FOREST COLLEGE,AP16C_2197,"-5,281.33",Programme System File
BIS,Skills Funding Agency,10/06/2016,16-18 Apprenticeships - Centralised Contract Management,Main Funding,EPPING FOREST COLLEGE,AP16R_11018,"68,437.88",Programme System File
BIS,Skills Funding Agency,10/06/2016,16-18 Apprenticeships - Centralised Contract Management,Main Funding,EQL SOLUTIONS LTD,AP16R_11996,"786,173.56",Programme System File
BIS,Skills Funding Agency,10/06/2016,16-18 Apprenticeships - Centralised Contract Management,Main Funding,ESG (SKILLS) LIMITED,AP16R_11970,"333,850.51",Programme System File
BIS,Skills Funding Agency,10/06/2016,16-18 Apprenticeships - Centralised Contract Management,Main Funding,ESSEX COUNTY COUNCIL,AP16R_11033,"11,139.61",Programme System File
BIS,Skills Funding Agency,10/06/2016,16-18 Apprenticeships - Centralised Contract Management,Main Funding,EXETER COLLEGE,AP16C_2194,"-64,325.50",Programme System File
BIS,Skills Funding Agency,10/06/2016,16-18 Apprenticeships - Centralised Contract Management,Main Funding,EXETER COLLEGE,AP16R_11001,"395,383.11",Programme System File
BIS,Skills Funding Agency,10/06/2016,16-18 Apprenticeships - Centralised Contract Management,Main Funding,EXPEDIENT TRAINING SERVICES LTD,AP16R_12023,774.97,Programme System File
BIS,Skills Funding Agency,10/06/2016,16-18 Apprenticeships - Centralised Contract Management,Main Funding,FAREHAM COLLEGE,AP16C_2437,"-1,219.43",Programme System File
BIS,Skills Funding Agency,10/06/2016,16-18 Apprenticeships - Centralised Contract Management,Main Funding,FAREHAM COLLEGE,AP16R_11533,"198,896.64",Programme System File
BIS,Skills Funding Agency,10/06/2016,16-18 Apprenticeships - Centralised Contract Management,Main Funding,FAREPORT TRAINING ORGANISATION LTD,AP16R_11625,"52,177.76",Programme System File
BIS,Skills Funding Agency,10/06/2016,16-18 Apprenticeships - Centralised Contract Management,Main Funding,FARNBOROUGH COLLEGE,AP16C_2211,"-5,499.10",Programme System File
BIS,Skills Funding Agency,10/06/2016,16-18 Apprenticeships - Centralised Contract Management,Main Funding,FARNBOROUGH COLLEGE,AP16R_11049,"93,993.08",Programme System File
BIS,Skills Funding Agency,10/06/2016,16-18 Apprenticeships - Centralised Contract Management,Main Funding,FASHION RETAIL ACADEMY,AP16R_11817,985.52,Programme System File
BIS,Skills Funding Agency,10/06/2016,16-18 Apprenticeships - Centralised Contract Management,Main Funding,FINMECCANICA UK LTD,AP16C_2514,-78.87,Programme System File
BIS,Skills Funding Agency,10/06/2016,16-18 Apprenticeships - Centralised Contract Management,Main Funding,FINMECCANICA UK LTD,AP16R_11864,"135,253.06",Programme System File
BIS,Skills Funding Agency,10/06/2016,16-18 Apprenticeships - Centralised Contract Management,Main Funding,FINNING (UK) LTD,AP16R_11621,"9,304.70",Programme System File
BIS,Skills Funding Agency,10/06/2016,16-18 Apprenticeships - Centralised Contract Management,Main Funding,FIRST CITY TRAINING LTD,AP16R_11827,998.39,Programme System File
BIS,Skills Funding Agency,10/06/2016,16-18 Apprenticeships - Centralised Contract Management,Main Funding,FIRST4SKILLS LIMITED,AP16R_11980,"309,175.47",Programme System File
BIS,Skills Funding Agency,10/06/2016,16-18 Apprenticeships - Centralised Contract Management,Main Funding,FNTC TRAINING & CONSULTANCY LTD,AP16R_11627,"30,455.16",Programme System File
BIS,Skills Funding Agency,10/06/2016,16-18 Apprenticeships - Centralised Contract Management,Main Funding,FOCUS TRAINING & DEVELOPMENT LTD,AP16R_11822,"14,029.95",Programme System File
BIS,Skills Funding Agency,10/06/2016,16-18 Apprenticeships - Centralised Contract Management,Main Funding,FOCUS TRAINING (SW) LTD,AP16R_11922,"156,110.26",Programme System File
BIS,Skills Funding Agency,10/06/2016,16-18 Apprenticeships - Centralised Contract Management,Main Funding,FOOTBALL ASSOCIATION PREMIER LEAGUE LTD,AP16C_2555,"-10,794.02",Programme System File
BIS,Skills Funding Agency,10/06/2016,16-18 Apprenticeships - Centralised Contract Management,Main Funding,FOOTBALL ASSOCIATION PREMIER LEAGUE LTD,AP16R_12000,"161,644.48",Programme System File
BIS,Skills Funding Agency,10/06/2016,16-18 Apprenticeships - Centralised Contract Management,Main Funding,FORSTER COMMUNITY COLLEGE,AP16R_11588,356.53,Programme System File
BIS,Skills Funding Agency,10/06/2016,16-18 Apprenticeships - Centralised Contract Management,Main Funding,FRANCESCO GROUP HOLDINGS LTD,AP16C_2463,"-1,161.20",Programme System File
BIS,Skills Funding Agency,10/06/2016,16-18 Apprenticeships - Centralised Contract Management,Main Funding,FRANCESCO GROUP HOLDINGS LTD,AP16R_11624,"91,967.90",Programme System File
BIS,Skills Funding Agency,10/06/2016,16-18 Apprenticeships - Centralised Contract Management,Main Funding,FRANKLIN COLLEGE,AP16R_11057,"19,758.34",Programme System File
BIS,Skills Funding Agency,10/06/2016,16-18 Apprenticeships - Centralised Contract Management,Main Funding,FURNESS COLLEGE,AP16R_11137,"44,362.27",Programme System File
BIS,Skills Funding Agency,10/06/2016,16-18 Apprenticeships - Centralised Contract Management,Main Funding,G B TRAINING UK LTD,AP16R_11629,21625.17,Programme System File
BIS,Skills Funding Agency,10/06/2016,16-18 Apprenticeships - Centralised Contract Management,Main Funding,GATESHEAD COLLEGE,AP16R_11084,"100,575.98",Programme System File
BIS,Skills Funding Agency,10/06/2016,16-18 Apprenticeships - Centralised Contract Management,Main Funding,GATESHEAD COUNCIL,AP16C_2227,"-55,958.84",Programme System File
BIS,Skills Funding Agency,10/06/2016,16-18 Apprenticeships - Centralised Contract Management,Main Funding,GATESHEAD COUNCIL,AP16R_11076,"154,866.51",Programme System File
BIS,Skills Funding Agency,10/06/2016,16-18 Apprenticeships - Centralised Contract Management,Main Funding,GEN II ENGINEERING & TECHNOLOGY TRAINING LTD,AP16C_2464,"-20,757.96",Programme System File
BIS,Skills Funding Agency,10/06/2016,16-18 Apprenticeships - Centralised Contract Management,Main Funding,GEN II ENGINEERING & TECHNOLOGY TRAINING LTD,AP16R_11628,"538,814.05",Programme System File
BIS,Skills Funding Agency,10/06/2016,16-18 Apprenticeships - Centralised Contract Management,Main Funding,GHQ TRAINING LTD,AP16R_11841,"26,079.42",Programme System File
BIS,Skills Funding Agency,10/06/2016,16-18 Apprenticeships - Centralised Contract Management,Main Funding,GI GROUP RECRUITMENT LTD,AP16R_11983,"12,237.61",Programme System File
BIS,Skills Funding Agency,10/06/2016,16-18 Apprenticeships - Centralised Contract Management,Main Funding,GLOUCESTERSHIRE COLLEGE OF ARTS & TECHNOLOGY,AP16C_2238,"-4,068.14",Programme System File
BIS,Skills Funding Agency,10/06/2016,16-18 Apprenticeships - Centralised Contract Management,Main Funding,GLOUCESTERSHIRE COLLEGE OF ARTS & TECHNOLOGY,AP16R_11099,"342,325.69",Programme System File
BIS,Skills Funding Agency,10/06/2016,16-18 Apprenticeships - Centralised Contract Management,Main Funding,GLOUCESTERSHIRE COUNTY COUNCIL,AP16R_11114,"2,599.14",Programme System File
BIS,Skills Funding Agency,10/06/2016,16-18 Apprenticeships - Centralised Contract Management,Main Funding,GLOUCESTERSHIRE ENGINEERING TRAINING LTD,AP16R_11630,"73,901.69",Programme System File
BIS,Skills Funding Agency,10/06/2016,16-18 Apprenticeships - Centralised Contract Management,Main Funding,GORDON FRANKS TRAINING LIMITED,AP16R_12019,"19,363.59",Programme System File
BIS,Skills Funding Agency,10/06/2016,16-18 Apprenticeships - Centralised Contract Management,Main Funding,GP STRATEGIES TRAINING LTD,AP16C_2547,"-384,384.61",Programme System File
BIS,Skills Funding Agency,10/06/2016,16-18 Apprenticeships - Centralised Contract Management,Main Funding,GP STRATEGIES TRAINING LTD,AP16R_11974,"621,148.81",Programme System File
BIS,Skills Funding Agency,10/06/2016,16-18 Apprenticeships - Centralised Contract Management,Main Funding,GR & MM BLACKLEDGE PLC,AP16C_2456,"-42,650.33",Programme System File
BIS,Skills Funding Agency,10/06/2016,16-18 Apprenticeships - Centralised Contract Management,Main Funding,GR & MM BLACKLEDGE PLC,AP16R_11589,"57,500.72",Programme System File
BIS,Skills Funding Agency,10/06/2016,16-18 Apprenticeships - Centralised Contract Management,Main Funding,GRANTHAM COLLEGE,AP16R_11145,"51,393.81",Programme System File
BIS,Skills Funding Agency,10/06/2016,16-18 Apprenticeships - Centralised Contract Management,Main Funding,GREAT YARMOUTH COLLEGE,AP16R_11205,"57,955.91",Programme System File
BIS,Skills Funding Agency,10/06/2016,16-18 Apprenticeships - Centralised Contract Management,Main Funding,GREENBANK SERVICES LTD,AP16R_11920,-5.84,Programme System File
BIS,Skills Funding Agency,10/06/2016,16-18 Apprenticeships - Centralised Contract Management,Main Funding,GREENWICH COMMUNITY COLLEGE AT PLUMSTEAD CENTRE,AP16R_11107,"5,449.69",Programme System File
BIS,Skills Funding Agency,10/06/2016,16-18 Apprenticeships - Centralised Contract Management,Main Funding,GRIMSBY INSTITUTE OF FURTHER & HIGHER EDUCATION,AP16R_11535,"116,679.56",Programme System File
BIS,Skills Funding Agency,10/06/2016,16-18 Apprenticeships - Centralised Contract Management,Main Funding,GUILDFORD COLLEGE OF FURTHER & HIGHER EDUCATION,AP16C_2255,"-65,047.83",Programme System File
BIS,Skills Funding Agency,10/06/2016,16-18 Apprenticeships - Centralised Contract Management,Main Funding,GUILDFORD COLLEGE OF FURTHER & HIGHER EDUCATION,AP16R_11127,"133,224.54",Programme System File
BIS,Skills Funding Agency,10/06/2016,16-18 Apprenticeships - Centralised Contract Management,Main Funding,HACKNEY COMMUNITY COLLEGE,AP16C_2274,"-469,198.43",Programme System File
BIS,Skills Funding Agency,10/06/2016,16-18 Apprenticeships - Centralised Contract Management,Main Funding,HACKNEY COMMUNITY COLLEGE,AP16R_11173,"546,204.57",Programme System File
BIS,Skills Funding Agency,10/06/2016,16-18 Apprenticeships - Centralised Contract Management,Main Funding,HADDON TRAINING LTD,AP16R_11637,"80,467.98",Programme System File
BIS,Skills Funding Agency,10/06/2016,16-18 Apprenticeships - Centralised Contract Management,Main Funding,HADLOW COLLEGE,AP16R_12011,"9,325.04",Programme System File
BIS,Skills Funding Agency,10/06/2016,16-18 Apprenticeships - Centralised Contract Management,Main Funding,HAIR & BEAUTY INDUSTRY TRAINING LTD,AP16R_11635,"16,435.41",Programme System File
BIS,Skills Funding Agency,10/06/2016,16-18 Apprenticeships - Centralised Contract Management,Main Funding,HAIR ACADEMY SOUTH WEST LIMITED,AP16R_11631,"47,102.10",Programme System File
BIS,Skills Funding Agency,10/06/2016,16-18 Apprenticeships - Centralised Contract Management,Main Funding,HALESOWEN COLLEGE,AP16R_11188,"15,510.75",Programme System File
BIS,Skills Funding Agency,10/06/2016,16-18 Apprenticeships - Centralised Contract Management,Main Funding,HALFORDS LTD,AP16C_2553,"-14,813.53",Programme System File
BIS,Skills Funding Agency,10/06/2016,16-18 Apprenticeships - Centralised Contract Management,Main Funding,HALFORDS LTD,AP16R_11995,"60,121.33",Programme System File
BIS,Skills Funding Agency,10/06/2016,16-18 Apprenticeships - Centralised Contract Management,Main Funding,HARLOW COLLEGE,AP16R_11196,"84,015.35",Programme System File
BIS,Skills Funding Agency,10/06/2016,16-18 Apprenticeships - Centralised Contract Management,Main Funding,HARROW COLLEGE,AP16R_11214,"30,197.50",Programme System File
BIS,Skills Funding Agency,10/06/2016,16-18 Apprenticeships - Centralised Contract Management,Main Funding,HARTLEPOOL BOROUGH COUNCIL,AP16R_11229,"1,076.48",Programme System File
BIS,Skills Funding Agency,10/06/2016,16-18 Apprenticeships - Centralised Contract Management,Main Funding,HARTLEPOOL COLLEGE OF HIGHER EDUCATION,AP16R_11222,"143,156.40",Programme System File
BIS,Skills Funding Agency,10/06/2016,16-18 Apprenticeships - Centralised Contract Management,Main Funding,HARTLEPOOL SIXTH FORM COLLEGE,AP16R_11237,"3,040.61",Programme System File
BIS,Skills Funding Agency,10/06/2016,16-18 Apprenticeships - Centralised Contract Management,Main Funding,HARTPURY COLLEGE,AP16C_2311,"-35,091.34",Programme System File
BIS,Skills Funding Agency,10/06/2016,16-18 Apprenticeships - Centralised Contract Management,Main Funding,HARTPURY COLLEGE,AP16R_11259,"51,767.01",Programme System File
BIS,Skills Funding Agency,10/06/2016,16-18 Apprenticeships - Centralised Contract Management,Main Funding,HAVANT COLLEGE,AP16C_2328,"-10,007.39",Programme System File
BIS,Skills Funding Agency,10/06/2016,16-18 Apprenticeships - Centralised Contract Management,Main Funding,HAVANT COLLEGE,AP16R_11309,"11,369.94",Programme System File
BIS,Skills Funding Agency,10/06/2016,16-18 Apprenticeships - Centralised Contract Management,Main Funding,HAVERING COLLEGE OF FURTHER & HIGHER EDUCATION,AP16R_11245,"167,030.56",Programme System File
BIS,Skills Funding Agency,10/06/2016,16-18 Apprenticeships - Centralised Contract Management,Main Funding,HAWK MANAGEMENT UK LTD,AP16C_2502,"-27,998.57",Programme System File
BIS,Skills Funding Agency,10/06/2016,16-18 Apprenticeships - Centralised Contract Management,Main Funding,HAWK MANAGEMENT UK LTD,AP16R_11819,"417,295.27",Programme System File
BIS,Skills Funding Agency,10/06/2016,16-18 Apprenticeships - Centralised Contract Management,Main Funding,HAYS TRAVEL LIMITED,AP16R_11940,"167,755.84",Programme System File
BIS,Skills Funding Agency,10/06/2016,16-18 Apprenticeships - Centralised Contract Management,Main Funding,HEADMASTERS PARTNERSHIP LTD,AP16C_2500,"-182,045.61",Programme System File
BIS,Skills Funding Agency,10/06/2016,16-18 Apprenticeships - Centralised Contract Management,Main Funding,HEADMASTERS PARTNERSHIP LTD,AP16R_11818,"227,983.68",Programme System File
BIS,Skills Funding Agency,10/06/2016,16-18 Apprenticeships - Centralised Contract Management,Main Funding,HEALTH & SAFETY TRAINING LTD,AP16R_11999,"2,588.96",Programme System File
BIS,Skills Funding Agency,10/06/2016,16-18 Apprenticeships - Centralised Contract Management,Main Funding,HEALTH EDUCATION NORTH EAST,AP16C_2552,"-32,806.31",Programme System File
BIS,Skills Funding Agency,10/06/2016,16-18 Apprenticeships - Centralised Contract Management,Main Funding,HEALTH EDUCATION NORTH EAST,AP16R_11986,"137,519.49",Programme System File
BIS,Skills Funding Agency,10/06/2016,16-18 Apprenticeships - Centralised Contract Management,Main Funding,HEART OF ENGLAND TRAINING LTD,AP16R_11634,"244,190.94",Programme System File
BIS,Skills Funding Agency,10/06/2016,16-18 Apprenticeships - Centralised Contract Management,Main Funding,HEATHERCROFT TRAINING SERVICES LTD,AP16R_11632,"19,173.93",Programme System File
BIS,Skills Funding Agency,10/06/2016,16-18 Apprenticeships - Centralised Contract Management,Main Funding,HENLEY COLLEGE COVENTRY,AP16R_11268,"52,075.80",Programme System File
BIS,Skills Funding Agency,10/06/2016,16-18 Apprenticeships - Centralised Contract Management,Main Funding,HENLEY COLLEGE,AP16C_2323,"-1,894.16",Programme System File
BIS,Skills Funding Agency,10/06/2016,16-18 Apprenticeships - Centralised Contract Management,Main Funding,HENLEY COLLEGE,AP16R_11293,"178,839.60",Programme System File
BIS,Skills Funding Agency,10/06/2016,16-18 Apprenticeships - Centralised Contract Management,Main Funding,HEREFORDSHIRE & LUDLOW COLLEGE,AP16C_2340,"-39,138.86",Programme System File
BIS,Skills Funding Agency,10/06/2016,16-18 Apprenticeships - Centralised Contract Management,Main Funding,HEREFORDSHIRE & LUDLOW COLLEGE,AP16R_11330,"147,552.46",Programme System File
BIS,Skills Funding Agency,10/06/2016,16-18 Apprenticeships - Centralised Contract Management,Main Funding,HEREFORDSHIRE GROUP TRAINING ASSOCIATION LTD,AP16R_11636,"86,212.29",Programme System File
BIS,Skills Funding Agency,10/06/2016,16-18 Apprenticeships - Centralised Contract Management,Main Funding,HEREWARD COLLEGE OF HIGHER EDUCATION,AP16R_11340,"2,585.08",Programme System File
BIS,Skills Funding Agency,10/06/2016,16-18 Apprenticeships - Centralised Contract Management,Main Funding,HERTFORD REGIONAL COLLEGE,AP16R_11316,"95,904.89",Programme System File
BIS,Skills Funding Agency,10/06/2016,16-18 Apprenticeships - Centralised Contract Management,Main Funding,HIGHBURY COLLEGE,AP16C_2440,"-11,138.17",Programme System File
BIS,Skills Funding Agency,10/06/2016,16-18 Apprenticeships - Centralised Contract Management,Main Funding,HIGHBURY COLLEGE,AP16R_11539,"420,980.05",Programme System File
BIS,Skills Funding Agency,10/06/2016,16-18 Apprenticeships - Centralised Contract Management,Main Funding,HILLINGDON TRAINING LTD,AP16C_2465,"-5,494.81",Programme System File
BIS,Skills Funding Agency,10/06/2016,16-18 Apprenticeships - Centralised Contract Management,Main Funding,HILLINGDON TRAINING LTD,AP16R_11638,"58,475.61",Programme System File
BIS,Skills Funding Agency,10/06/2016,16-18 Apprenticeships - Centralised Contract Management,Main Funding,HIT TRAINING LTD,AP16R_11842,"234,202.06",Programme System File
BIS,Skills Funding Agency,10/06/2016,16-18 Apprenticeships - Centralised Contract Management,Main Funding,HOB SALON LIMITED,AP16R_11991,"31,415.97",Programme System File
BIS,Skills Funding Agency,10/06/2016,16-18 Apprenticeships - Centralised Contract Management,Main Funding,HOLTS ACADEMY OF JEWELLERY LIMITED,AP16R_12024,"2,304.28",Programme System File
BIS,Skills Funding Agency,10/06/2016,16-18 Apprenticeships - Centralised Contract Management,Main Funding,HONDA MOTOR EUROPE LTD,AP16R_11840,"23,799.56",Programme System File
BIS,Skills Funding Agency,10/06/2016,16-18 Apprenticeships - Centralised Contract Management,Main Funding,HOOPLE LTD,AP16R_11977,"15,711.86",Programme System File
BIS,Skills Funding Agency,10/06/2016,16-18 Apprenticeships - Centralised Contract Management,Main Funding,HOPWOOD HALL COLLEGE,AP16C_2347,"-14,562.47",Programme System File
BIS,Skills Funding Agency,10/06/2016,16-18 Apprenticeships - Centralised Contract Management,Main Funding,HOPWOOD HALL COLLEGE,AP16R_11339,"54,918.57",Programme System File
BIS,Skills Funding Agency,10/06/2016,16-18 Apprenticeships - Centralised Contract Management,Main Funding,HOSPITALITY TRAINING PARTNERSHIP IOW LTD,AP16C_2466,-740.82,Programme System File
BIS,Skills Funding Agency,10/06/2016,16-18 Apprenticeships - Centralised Contract Management,Main Funding,HOSPITALITY TRAINING PARTNERSHIP IOW LTD,AP16R_11641,"86,430.62",Programme System File
BIS,Skills Funding Agency,10/06/2016,16-18 Apprenticeships - Centralised Contract Management,Main Funding,HOUSE OF CLIVE HAIR & BEAUTY LTD,AP16R_11731,"187,629.83",Programme System File
BIS,Skills Funding Agency,10/06/2016,16-18 Apprenticeships - Centralised Contract Management,Main Funding,HSBC BANK PLC,AP16R_11838,"43,728.87",Programme System File
BIS,Skills Funding Agency,10/06/2016,16-18 Apprenticeships - Centralised Contract Management,Main Funding,HUDDERSFIELD TEXTILE TRAINING LTD,AP16R_11642,"15,731.18",Programme System File
BIS,Skills Funding Agency,10/06/2016,16-18 Apprenticeships - Centralised Contract Management,Main Funding,HUDSON & HUGHES TRAINING LTD,AP16R_11645,"-3,320.33",Programme System File
BIS,Skills Funding Agency,10/06/2016,16-18 Apprenticeships - Centralised Contract Management,Main Funding,HUGH BAIRD COLLEGE,AP16R_11343,"50,739.43",Programme System File
BIS,Skills Funding Agency,10/06/2016,16-18 Apprenticeships - Centralised Contract Management,Main Funding,HULL BUSINESS TRAINING CENTRE LTD,AP16C_2469,"-3,746.26",Programme System File
BIS,Skills Funding Agency,10/06/2016,16-18 Apprenticeships - Centralised Contract Management,Main Funding,HULL BUSINESS TRAINING CENTRE LTD,AP16R_11647,"47,791.54",Programme System File
BIS,Skills Funding Agency,10/06/2016,16-18 Apprenticeships - Centralised Contract Management,Main Funding,HULL COLLEGE,AP16R_11342,"248,163.34",Programme System File
BIS,Skills Funding Agency,10/06/2016,16-18 Apprenticeships - Centralised Contract Management,Main Funding,HUMBER LEARNING CONSORTIUM,AP16R_11644,"68,354.88",Programme System File
BIS,Skills Funding Agency,10/06/2016,16-18 Apprenticeships - Centralised Contract Management,Main Funding,HUMBERSIDE ENGINEERING TRAINING ASSOCIATION LTD,AP16R_11640,"192,210.56",Programme System File
BIS,Skills Funding Agency,10/06/2016,16-18 Apprenticeships - Centralised Contract Management,Main Funding,HUNTINGDONSHIRE REGIONAL COLLEGE,AP16R_11543,"87,328.26",Programme System File
BIS,Skills Funding Agency,10/06/2016,16-18 Apprenticeships - Centralised Contract Management,Main Funding,ICON VOCATIONAL TRAINING LTD,AP16R_11643,"42,293.47",Programme System File
BIS,Skills Funding Agency,10/06/2016,16-18 Apprenticeships - Centralised Contract Management,Main Funding,IMPACT LEARNING & DATA SOLUTIONS LTD,AP16R_11894,"1,430.45",Programme System File
BIS,Skills Funding Agency,10/06/2016,16-18 Apprenticeships - Centralised Contract Management,Main Funding,IN TOUCH CARE LTD,AP16C_1484,"-3,938.32",Programme System File
BIS,Skills Funding Agency,10/06/2016,16-18 Apprenticeships - Centralised Contract Management,Main Funding,IN TOUCH CARE LTD,AP16C_2468,"-3,977.51",Programme System File
BIS,Skills Funding Agency,10/06/2016,16-18 Apprenticeships - Centralised Contract Management,Main Funding,IN TOUCH CARE LTD,AP16R_11646,"12,668.48",Programme System File
BIS,Skills Funding Agency,10/06/2016,16-18 Apprenticeships - Centralised Contract Management,Main Funding,IN TOUCH CARE LTD,AP16R_9468,"12,796.00",Programme System File
BIS,Skills Funding Agency,10/06/2016,16-18 Apprenticeships - Centralised Contract Management,Main Funding,IN-COMM TRAINING AND BUSINESS SERVICES LTD,AP16R_11651,"101,379.34",Programme System File
BIS,Skills Funding Agency,10/06/2016,16-18 Apprenticeships - Centralised Contract Management,Main Funding,INDEPENDENT TRAINING SERVICES LTD,AP16C_2470,-698.77,Programme System File
BIS,Skills Funding Agency,10/06/2016,16-18 Apprenticeships - Centralised Contract Management,Main Funding,INDEPENDENT TRAINING SERVICES LTD,AP16R_11650,"47,178.19",Programme System File
BIS,Skills Funding Agency,10/06/2016,16-18 Apprenticeships - Centralised Contract Management,Main Funding,INGEUS TRAINING LTD,AP16R_11804,"29,694.23",Programme System File
BIS,Skills Funding Agency,10/06/2016,16-18 Apprenticeships - Centralised Contract Management,Main Funding,INSPIRE TO INDEPENDENCE (i2i) LTD,AP16C_2506,"-17,707.35",Programme System File
BIS,Skills Funding Agency,10/06/2016,16-18 Apprenticeships - Centralised Contract Management,Main Funding,INSPIRE TO INDEPENDENCE (i2i) LTD,AP16R_11831,"25,925.97",Programme System File
BIS,Skills Funding Agency,10/06/2016,16-18 Apprenticeships - Centralised Contract Management,Main Funding,INTEC BUSINESS COLLEGES PLC,AP16R_11654,"55,853.94",Programme System File
BIS,Skills Funding Agency,10/06/2016,16-18 Apprenticeships - Centralised Contract Management,Main Funding,INTER TRAINING SERVICES LTD,AP16R_11657,"23,874.90",Programme System File
BIS,Skills Funding Agency,10/06/2016,16-18 Apprenticeships - Centralised Contract Management,Main Funding,INTERACTIVE DEVELOPMENT EDUCATION LTD,AP16R_11853,"4,613.82",Programme System File
BIS,Skills Funding Agency,10/06/2016,16-18 Apprenticeships - Centralised Contract Management,Main Funding,INTROTRAIN (ACE) LTD,AP16C_2544,"-18,353.57",Programme System File
BIS,Skills Funding Agency,10/06/2016,16-18 Apprenticeships - Centralised Contract Management,Main Funding,INTROTRAIN (ACE) LTD,AP16R_11966,"190,106.06",Programme System File
BIS,Skills Funding Agency,10/06/2016,16-18 Apprenticeships - Centralised Contract Management,Main Funding,INTUITIONS LTD,AP16R_11648,"31,166.55",Programme System File
BIS,Skills Funding Agency,10/06/2016,16-18 Apprenticeships - Centralised Contract Management,Main Funding,IPS INTERNATIONAL LTD,AP16R_11652,"70,242.24",Programme System File
BIS,Skills Funding Agency,10/06/2016,16-18 Apprenticeships - Centralised Contract Management,Main Funding,ISIS TRAINING SERVICES LTD,AP16R_11653,79788.18,Programme System File
BIS,Skills Funding Agency,10/06/2016,16-18 Apprenticeships - Centralised Contract Management,Main Funding,ISLE OF WIGHT COLLEGE,AP16R_11345,"45,816.34",Programme System File
BIS,Skills Funding Agency,10/06/2016,16-18 Apprenticeships - Centralised Contract Management,Main Funding,ITEC NORTH EAST LTD,AP16R_11655,"41,401.33",Programme System File
BIS,Skills Funding Agency,10/06/2016,16-18 Apprenticeships - Centralised Contract Management,Main Funding,ITS TRAINING LIMITED,AP16C_2545,"-9,163.91",Programme System File
BIS,Skills Funding Agency,10/06/2016,16-18 Apprenticeships - Centralised Contract Management,Main Funding,ITS TRAINING LIMITED,AP16R_11969,"24,061.09",Programme System File
BIS,Skills Funding Agency,10/06/2016,16-18 Apprenticeships - Centralised Contract Management,Main Funding,IXION GROUP CONTRACTS LTD,AP16R_11965,"61,328.07",Programme System File
BIS,Skills Funding Agency,10/06/2016,16-18 Apprenticeships - Centralised Contract Management,Main Funding,JAGUAR LAND ROVER HOLDINGS LTD,AP16C_2503,"-181,223.46",Programme System File
BIS,Skills Funding Agency,10/06/2016,16-18 Apprenticeships - Centralised Contract Management,Main Funding,JAGUAR LAND ROVER HOLDINGS LTD,AP16R_11820,"263,171.79",Programme System File
BIS,Skills Funding Agency,10/06/2016,16-18 Apprenticeships - Centralised Contract Management,Main Funding,JANARD TRAINING & ASSESSMENT CENTRE LTD,AP16R_11805,575.75,Programme System File
BIS,Skills Funding Agency,10/06/2016,16-18 Apprenticeships - Centralised Contract Management,Main Funding,JANARD TRAINING & ASSESSMENT CENTRE LTD,AP16R_9771,"-2,015.96",Programme System File
BIS,Skills Funding Agency,10/06/2016,16-18 Apprenticeships - Centralised Contract Management,Main Funding,JANCETT CHILDCARE & JACE TRAINING LIMITED,AP16R_11985,"31,707.50",Programme System File
BIS,Skills Funding Agency,10/06/2016,16-18 Apprenticeships - Centralised Contract Management,Main Funding,JARVIS TRAINING MANAGEMENT LTD,AP16R_11656,"72,752.34",Programme System File
BIS,Skills Funding Agency,10/06/2016,16-18 Apprenticeships - Centralised Contract Management,Main Funding,JBC COMPUTER TRAINING LIMITED,AP16R_11858,"53,422.78",Programme System File
BIS,Skills Funding Agency,10/06/2016,16-18 Apprenticeships - Centralised Contract Management,Main Funding,JGA LTD,AP16C_2493,"-22,877.70",Programme System File
BIS,Skills Funding Agency,10/06/2016,16-18 Apprenticeships - Centralised Contract Management,Main Funding,JGA LTD,AP16R_11771,"157,796.78",Programme System File
BIS,Skills Funding Agency,10/06/2016,16-18 Apprenticeships - Centralised Contract Management,Main Funding,JOBWISE TRAINING LTD,AP16R_11658,"17,418.59",Programme System File
BIS,Skills Funding Agency,10/06/2016,16-18 Apprenticeships - Centralised Contract Management,Main Funding,JOHN LAING TRAINING LTD,AP16R_11673,"15,541.01",Programme System File
BIS,Skills Funding Agency,10/06/2016,16-18 Apprenticeships - Centralised Contract Management,Main Funding,JOHN LEGGOTT SIXTH FORM COLLEGE,AP16C_2445,-95.43,Programme System File
BIS,Skills Funding Agency,10/06/2016,16-18 Apprenticeships - Centralised Contract Management,Main Funding,JOHN LEGGOTT SIXTH FORM COLLEGE,AP16R_11551,"6,181.84",Programme System File
BIS,Skills Funding Agency,10/06/2016,16-18 Apprenticeships - Centralised Contract Management,Main Funding,JOHN RUSKIN COLLEGE,AP16R_11348,"48,492.61",Programme System File
BIS,Skills Funding Agency,10/06/2016,16-18 Apprenticeships - Centralised Contract Management,Main Funding,JOINT LEARNING PARTNERSHIP LTD,AP16R_11659,"76,865.00",Programme System File
BIS,Skills Funding Agency,10/06/2016,16-18 Apprenticeships - Centralised Contract Management,Main Funding,JTL,AP16C_2472,"-410,969.01",Programme System File
BIS,Skills Funding Agency,10/06/2016,16-18 Apprenticeships - Centralised Contract Management,Main Funding,JTL,AP16R_11661,"1,588,543.60",Programme System File
BIS,Skills Funding Agency,10/06/2016,16-18 Apprenticeships - Centralised Contract Management,Main Funding,K & G HAIR LLP,AP16R_11964,"39,453.33",Programme System File
BIS,Skills Funding Agency,10/06/2016,16-18 Apprenticeships - Centralised Contract Management,Main Funding,KAPLAN FINANCIAL LIMITED,AP16C_2450,"-21,821.65",Programme System File
BIS,Skills Funding Agency,10/06/2016,16-18 Apprenticeships - Centralised Contract Management,Main Funding,KAPLAN FINANCIAL LIMITED,AP16R_11568,"474,281.84",Programme System File
BIS,Skills Funding Agency,10/06/2016,16-18 Apprenticeships - Centralised Contract Management,Main Funding,KEITS TRAINING SERVICES LTD,AP16R_11664,"268,488.36",Programme System File
BIS,Skills Funding Agency,10/06/2016,16-18 Apprenticeships - Centralised Contract Management,Main Funding,KENDAL COLLEGE,AP16C_2351,"-45,849.55",Programme System File
BIS,Skills Funding Agency,10/06/2016,16-18 Apprenticeships - Centralised Contract Management,Main Funding,KENDAL COLLEGE,AP16R_11349,"113,317.14",Programme System File
BIS,Skills Funding Agency,10/06/2016,16-18 Apprenticeships - Centralised Contract Management,Main Funding,KENSINGTON & CHELSEA COLLEGE,AP16C_2350,"-4,629.46",Programme System File
BIS,Skills Funding Agency,10/06/2016,16-18 Apprenticeships - Centralised Contract Management,Main Funding,KENSINGTON & CHELSEA COLLEGE,AP16R_11346,"9,545.56",Programme System File
BIS,Skills Funding Agency,10/06/2016,16-18 Apprenticeships - Centralised Contract Management,Main Funding,KENT COUNTY COUNCIL,AP16C_2352,"-16,300.38",Programme System File
BIS,Skills Funding Agency,10/06/2016,16-18 Apprenticeships - Centralised Contract Management,Main Funding,KENT COUNTY COUNCIL,AP16R_11350,"69,227.94",Programme System File
BIS,Skills Funding Agency,10/06/2016,16-18 Apprenticeships - Centralised Contract Management,Main Funding,KENTUCKY FRIED CHICKEN GREAT BRITAIN LTD,AP16C_2534,"-58,706.95",Programme System File
BIS,Skills Funding Agency,10/06/2016,16-18 Apprenticeships - Centralised Contract Management,Main Funding,KENTUCKY FRIED CHICKEN GREAT BRITAIN LTD,AP16R_11944,"61,758.13",Programme System File
BIS,Skills Funding Agency,10/06/2016,16-18 Apprenticeships - Centralised Contract Management,Main Funding,KEY TRAINING LTD,AP16R_11674,"256,134.60",Programme System File
BIS,Skills Funding Agency,10/06/2016,16-18 Apprenticeships - Centralised Contract Management,Main Funding,KINGSTON COLLEGE,AP16R_11351,"50,399.63",Programme System File
BIS,Skills Funding Agency,10/06/2016,16-18 Apprenticeships - Centralised Contract Management,Main Funding,KINGSTON MAURWARD COLLEGE,AP16C_2353,"-23,593.34",Programme System File
BIS,Skills Funding Agency,10/06/2016,16-18 Apprenticeships - Centralised Contract Management,Main Funding,KINGSTON MAURWARD COLLEGE,AP16R_11352,"71,475.60",Programme System File
BIS,Skills Funding Agency,10/06/2016,16-18 Apprenticeships - Centralised Contract Management,Main Funding,KINGSTON UPON HULL CITY COUNCIL,AP16R_11344,"132,201.17",Programme System File
BIS,Skills Funding Agency,10/06/2016,16-18 Apprenticeships - Centralised Contract Management,Main Funding,KIRKDALE INDUSTRIAL TRAINING SERVICES LTD,AP16R_11663,"131,458.05",Programme System File
BIS,Skills Funding Agency,10/06/2016,16-18 Apprenticeships - Centralised Contract Management,Main Funding,KIRKLEES COLLEGE,AP16C_2349,"-305,305.86",Programme System File
BIS,Skills Funding Agency,10/06/2016,16-18 Apprenticeships - Centralised Contract Management,Main Funding,KIRKLEES COLLEGE,AP16R_11341,"564,681.38",Programme System File
BIS,Skills Funding Agency,10/06/2016,16-18 Apprenticeships - Centralised Contract Management,Main Funding,KNOWSLEY COMMUNITY COLLEGE,AP16R_11355,"19,488.25",Programme System File
BIS,Skills Funding Agency,10/06/2016,16-18 Apprenticeships - Centralised Contract Management,Main Funding,KWIK FIT GB LTD,AP16R_11665,"110,072.57",Programme System File
BIS,Skills Funding Agency,10/06/2016,16-18 Apprenticeships - Centralised Contract Management,Main Funding,LAGAT LTD,AP16R_11666,"25,142.03",Programme System File
BIS,Skills Funding Agency,10/06/2016,16-18 Apprenticeships - Centralised Contract Management,Main Funding,LAKES COLLEGE WEST CUMBRIA,AP16R_10238,"70,751.17",Programme System File
BIS,Skills Funding Agency,10/06/2016,16-18 Apprenticeships - Centralised Contract Management,Main Funding,LAKES COLLEGE WEST CUMBRIA,AP16R_11356,"77,013.80",Programme System File
BIS,Skills Funding Agency,10/06/2016,16-18 Apprenticeships - Centralised Contract Management,Main Funding,LAMBETH COLLEGE AT CLAPHAM CENTRE,AP16C_2356,"-184,032.74",Programme System File
BIS,Skills Funding Agency,10/06/2016,16-18 Apprenticeships - Centralised Contract Management,Main Funding,LAMBETH COLLEGE AT CLAPHAM CENTRE,AP16R_11357,"434,900.45",Programme System File
BIS,Skills Funding Agency,10/06/2016,16-18 Apprenticeships - Centralised Contract Management,Main Funding,LANCASTER & MORECAMBE COLLEGE,AP16R_11359,"58,558.01",Programme System File
BIS,Skills Funding Agency,10/06/2016,16-18 Apprenticeships - Centralised Contract Management,Main Funding,LANCASTER TRAINING SERVICES LTD,AP16R_11670,"19,519.11",Programme System File
BIS,Skills Funding Agency,10/06/2016,16-18 Apprenticeships - Centralised Contract Management,Main Funding,LAWN TENNIS ASSOCIATION LTD,AP16R_11896,"29,969.99",Programme System File
BIS,Skills Funding Agency,10/06/2016,16-18 Apprenticeships - Centralised Contract Management,Main Funding,LEAGUE FOOTBALL EDUCATION,AP16R_12002,"542,489.25",Programme System File
BIS,Skills Funding Agency,10/06/2016,16-18 Apprenticeships - Centralised Contract Management,Main Funding,LEARNDIRECT LTD,AP16C_2474,"-19,155.40",Programme System File
BIS,Skills Funding Agency,10/06/2016,16-18 Apprenticeships - Centralised Contract Management,Main Funding,LEARNDIRECT LTD,AP16R_11672,"1,324,892.88",Programme System File
BIS,Skills Funding Agency,10/06/2016,16-18 Apprenticeships - Centralised Contract Management,Main Funding,LEARNING CURVE JAA LIMITED,AP16C_2498,"-209,494.26",Programme System File
BIS,Skills Funding Agency,10/06/2016,16-18 Apprenticeships - Centralised Contract Management,Main Funding,LEARNING CURVE JAA LIMITED,AP16R_11812,"702,947.56",Programme System File
BIS,Skills Funding Agency,10/06/2016,16-18 Apprenticeships - Centralised Contract Management,Main Funding,LEARNING CURVE,AP16R_11773,257.29,Programme System File
BIS,Skills Funding Agency,10/06/2016,16-18 Apprenticeships - Centralised Contract Management,Main Funding,LEARNING PARTNERSHIP FOR CORNWALL AND THE ISLES OF SCILLY LIMITED,AP16R_11775,"35,087.16",Programme System File
BIS,Skills Funding Agency,10/06/2016,16-18 Apprenticeships - Centralised Contract Management,Main Funding,LEARNING SKILLS PARTNERSHIP LIMITED,AP16C_2539,"-2,894.13",Programme System File
BIS,Skills Funding Agency,10/06/2016,16-18 Apprenticeships - Centralised Contract Management,Main Funding,LEARNING SKILLS PARTNERSHIP LIMITED,AP16R_11955,"274,562.65",Programme System File
BIS,Skills Funding Agency,10/06/2016,16-18 Apprenticeships - Centralised Contract Management,Main Funding,LEEDS CITY COLLEGE,AP16R_11548,"113,049.97",Programme System File
BIS,Skills Funding Agency,10/06/2016,16-18 Apprenticeships - Centralised Contract Management,Main Funding,LEEDS COLLEGE OF BUILDING,AP16C_2354,"-1,883.36",Programme System File
BIS,Skills Funding Agency,10/06/2016,16-18 Apprenticeships - Centralised Contract Management,Main Funding,LEEDS COLLEGE OF BUILDING,AP16R_11353,"465,015.78",Programme System File
BIS,Skills Funding Agency,10/06/2016,16-18 Apprenticeships - Centralised Contract Management,Main Funding,LEICESTER COLLEGE CO FREEMENS PARK CAMPUS,AP16C_2357,"-31,311.18",Programme System File
BIS,Skills Funding Agency,10/06/2016,16-18 Apprenticeships - Centralised Contract Management,Main Funding,LEICESTER COLLEGE CO FREEMENS PARK CAMPUS,AP16R_11358,"189,822.70",Programme System File
BIS,Skills Funding Agency,10/06/2016,16-18 Apprenticeships - Centralised Contract Management,Main Funding,LEICESTERSHIRE COUNTY COUNCIL,AP16R_11360,"6,419.20",Programme System File
BIS,Skills Funding Agency,10/06/2016,16-18 Apprenticeships - Centralised Contract Management,Main Funding,LESLIE FRANCES HAIR FASHIONS LTD,AP16R_11671,"39,189.98",Programme System File
BIS,Skills Funding Agency,10/06/2016,16-18 Apprenticeships - Centralised Contract Management,Main Funding,LESOCO,AP16R_11365,"30,403.72",Programme System File
BIS,Skills Funding Agency,10/06/2016,16-18 Apprenticeships - Centralised Contract Management,Main Funding,LIFESKILLS SOLUTIONS LTD,AP16R_11675,"46,911.55",Programme System File
BIS,Skills Funding Agency,10/06/2016,16-18 Apprenticeships - Centralised Contract Management,Main Funding,LIFETIME TRAINING GROUP LTD,AP16R_11680,"686,265.86",Programme System File
BIS,Skills Funding Agency,10/06/2016,16-18 Apprenticeships - Centralised Contract Management,Main Funding,LIGA (UK) LTD,AP16R_11967,"84,809.18",Programme System File
BIS,Skills Funding Agency,10/06/2016,16-18 Apprenticeships - Centralised Contract Management,Main Funding,LINCOLN COLLEGE,AP16R_11361,"173,885.93",Programme System File
BIS,Skills Funding Agency,10/06/2016,16-18 Apprenticeships - Centralised Contract Management,Main Funding,LITE STOCKPORT LTD,AP16R_11809,"14,365.13",Programme System File
BIS,Skills Funding Agency,10/06/2016,16-18 Apprenticeships - Centralised Contract Management,Main Funding,LITS LTD,AP16R_11669,"9,818.04",Programme System File
BIS,Skills Funding Agency,10/06/2016,16-18 Apprenticeships - Centralised Contract Management,Main Funding,LIVERPOOL CHAMBER TRAINING LTD,AP16C_2530,"-20,831.76",Programme System File
BIS,Skills Funding Agency,10/06/2016,16-18 Apprenticeships - Centralised Contract Management,Main Funding,LIVERPOOL CHAMBER TRAINING LTD,AP16R_11935,"112,746.28",Programme System File
BIS,Skills Funding Agency,10/06/2016,16-18 Apprenticeships - Centralised Contract Management,Main Funding,LOCOMOTIVATION LTD,AP16R_11682,"31,575.61",Programme System File
BIS,Skills Funding Agency,10/06/2016,16-18 Apprenticeships - Centralised Contract Management,Main Funding,LONDON BOROUGH OF WALTHAM FOREST,AP16R_11501,"5,887.56",Programme System File
BIS,Skills Funding Agency,10/06/2016,16-18 Apprenticeships - Centralised Contract Management,Main Funding,LONDON COLLEGE OF BEAUTY THERAPY LTD,AP16R_11676,"10,937.84",Programme System File
BIS,Skills Funding Agency,10/06/2016,16-18 Apprenticeships - Centralised Contract Management,Main Funding,LONDON LEARNING CONSORTIUM C.I.C.,AP16R_11874,"24,527.78",Programme System File
BIS,Skills Funding Agency,10/06/2016,16-18 Apprenticeships - Centralised Contract Management,Main Funding,LONDON SKILLS & DEVELOPMENT NETWORK LIMITED,AP16R_11893,"2,730.06",Programme System File
BIS,Skills Funding Agency,10/06/2016,16-18 Apprenticeships - Centralised Contract Management,Main Funding,LONDON VESTA COLLEGE LIMITED,AP16C_2560,"-18,785.75",Programme System File
BIS,Skills Funding Agency,10/06/2016,16-18 Apprenticeships - Centralised Contract Management,Main Funding,LONDON VESTA COLLEGE LIMITED,AP16R_12013,"51,165.01",Programme System File
BIS,Skills Funding Agency,10/06/2016,16-18 Apprenticeships - Centralised Contract Management,Main Funding,LOOKFANTASTIC TRAINING LIMITED,AP16R_11843,"48,061.49",Programme System File
BIS,Skills Funding Agency,10/06/2016,16-18 Apprenticeships - Centralised Contract Management,Main Funding,LOUGHBOROUGH COLLEGE,AP16C_2359,"-51,256.47",Programme System File
BIS,Skills Funding Agency,10/06/2016,16-18 Apprenticeships - Centralised Contract Management,Main Funding,LOUGHBOROUGH COLLEGE,AP16R_11364,"562,327.15",Programme System File
BIS,Skills Funding Agency,10/06/2016,16-18 Apprenticeships - Centralised Contract Management,Main Funding,LOWESTOFT COLLEGE,AP16R_11366,"67,427.90",Programme System File
BIS,Skills Funding Agency,10/06/2016,16-18 Apprenticeships - Centralised Contract Management,Main Funding,LUNN POLY LTD,AP16R_11681,"14,076.12",Programme System File
BIS,Skills Funding Agency,10/06/2016,16-18 Apprenticeships - Centralised Contract Management,Main Funding,LUTON BOROUGH COUNCIL,AP16R_11367,"23,757.87",Programme System File
BIS,Skills Funding Agency,10/06/2016,16-18 Apprenticeships - Centralised Contract Management,Main Funding,M I T SKILLS LIMITED,AP16C_2477,-709.96,Programme System File
BIS,Skills Funding Agency,10/06/2016,16-18 Apprenticeships - Centralised Contract Management,Main Funding,M I T SKILLS LIMITED,AP16R_11693,"136,193.77",Programme System File
BIS,Skills Funding Agency,10/06/2016,16-18 Apprenticeships - Centralised Contract Management,Main Funding,MACCLESFIELD COLLEGE,AP16C_2360,-443.94,Programme System File
BIS,Skills Funding Agency,10/06/2016,16-18 Apprenticeships - Centralised Contract Management,Main Funding,MACCLESFIELD COLLEGE,AP16R_11368,"29,182.02",Programme System File
BIS,Skills Funding Agency,10/06/2016,16-18 Apprenticeships - Centralised Contract Management,Main Funding,MAINSTREAM TRAINING LTD,AP16R_11833,"8,828.06",Programme System File
BIS,Skills Funding Agency,10/06/2016,16-18 Apprenticeships - Centralised Contract Management,Main Funding,MANCHESTER COLLEGE,AP16R_11544,"153,590.61",Programme System File
BIS,Skills Funding Agency,10/06/2016,16-18 Apprenticeships - Centralised Contract Management,Main Funding,MANCHESTER METRO UNIVERSITY,AP16R_11370,"115,774.39",Programme System File
BIS,Skills Funding Agency,10/06/2016,16-18 Apprenticeships - Centralised Contract Management,Main Funding,MANTRA LEARNING LTD,AP16R_11685,"24,882.88",Programme System File
BIS,Skills Funding Agency,10/06/2016,16-18 Apprenticeships - Centralised Contract Management,Main Funding,MARDELL ASSOCIATES LTD,AP16R_11758,"79,829.93",Programme System File
BIS,Skills Funding Agency,10/06/2016,16-18 Apprenticeships - Centralised Contract Management,Main Funding,MARITIME & ENGINEERING COLLEGE NORTH WEST,AP16R_11667,"88,637.45",Programme System File
BIS,Skills Funding Agency,10/06/2016,16-18 Apprenticeships - Centralised Contract Management,Main Funding,MARR CORPORTATION LIMITED,AP16R_11907,"107,973.48",Programme System File
BIS,Skills Funding Agency,10/06/2016,16-18 Apprenticeships - Centralised Contract Management,Main Funding,MATRIX TRAINING & DEVELOPMENT LTD,AP16C_2557,-841.09,Programme System File
BIS,Skills Funding Agency,10/06/2016,16-18 Apprenticeships - Centralised Contract Management,Main Funding,MATRIX TRAINING & DEVELOPMENT LTD,AP16R_12004,"57,408.50",Programme System File
BIS,Skills Funding Agency,10/06/2016,16-18 Apprenticeships - Centralised Contract Management,Main Funding,MCARTHUR DEAN TRAINING LTD,AP16R_11687,"41,518.35",Programme System File
BIS,Skills Funding Agency,10/06/2016,16-18 Apprenticeships - Centralised Contract Management,Main Funding,MCDONALD'S RESTAURANTS LTD,AP16R_11847,"99,416.34",Programme System File
BIS,Skills Funding Agency,10/06/2016,16-18 Apprenticeships - Centralised Contract Management,Main Funding,MEADOWHALL TRAINING LIMITED,AP16R_11830,"33,112.67",Programme System File
BIS,Skills Funding Agency,10/06/2016,16-18 Apprenticeships - Centralised Contract Management,Main Funding,MEDWAY COUNCIL,AP16R_11369,94.1,Programme System File
BIS,Skills Funding Agency,10/06/2016,16-18 Apprenticeships - Centralised Contract Management,Main Funding,MERCEDES-BENZ UK LTD,AP16R_11895,"193,178.68",Programme System File
BIS,Skills Funding Agency,10/06/2016,16-18 Apprenticeships - Centralised Contract Management,Main Funding,MERCIA PARTNERSHIP UK LTD,AP16R_11683,"8,103.52",Programme System File
BIS,Skills Funding Agency,10/06/2016,16-18 Apprenticeships - Centralised Contract Management,Main Funding,METSKILL LTD,AP16R_11684,"184,633.74",Programme System File
BIS,Skills Funding Agency,10/06/2016,16-18 Apprenticeships - Centralised Contract Management,Main Funding,MI COMPUTSOLUTIONS INCORPORATED,AP16R_11865,"15,444.41",Programme System File
BIS,Skills Funding Agency,10/06/2016,16-18 Apprenticeships - Centralised Contract Management,Main Funding,MICHAEL JOHN OF LIVERPOOL,AP16C_2510,"-40,806.39",Programme System File
BIS,Skills Funding Agency,10/06/2016,16-18 Apprenticeships - Centralised Contract Management,Main Funding,MICHAEL JOHN OF LIVERPOOL,AP16R_11851,"89,762.26",Programme System File
BIS,Skills Funding Agency,10/06/2016,16-18 Apprenticeships - Centralised Contract Management,Main Funding,MICHAELJOHN TRAINING,AP16R_11844,"47,355.80",Programme System File
BIS,Skills Funding Agency,10/06/2016,16-18 Apprenticeships - Centralised Contract Management,Main Funding,MID CHESHIRE COLLEGE,AP16R_11371,"49,416.76",Programme System File
BIS,Skills Funding Agency,10/06/2016,16-18 Apprenticeships - Centralised Contract Management,Main Funding,MID KENT COLLEGE,AP16C_2362,"-1,224.63",Programme System File
BIS,Skills Funding Agency,10/06/2016,16-18 Apprenticeships - Centralised Contract Management,Main Funding,MID KENT COLLEGE,AP16R_11373,"248,980.60",Programme System File
BIS,Skills Funding Agency,10/06/2016,16-18 Apprenticeships - Centralised Contract Management,Main Funding,MIDDLESBROUGH COLLEGE,AP16C_2364,"-9,260.03",Programme System File
BIS,Skills Funding Agency,10/06/2016,16-18 Apprenticeships - Centralised Contract Management,Main Funding,MIDDLESBROUGH COLLEGE,AP16R_11375,"111,042.85",Programme System File
BIS,Skills Funding Agency,10/06/2016,16-18 Apprenticeships - Centralised Contract Management,Main Funding,MIDDLESBROUGH COUNCIL,AP16R_11379,"14,558.06",Programme System File
BIS,Skills Funding Agency,10/06/2016,16-18 Apprenticeships - Centralised Contract Management,Main Funding,MIDLAND GROUP TRAINING SERVICES LTD,AP16C_2476,"-120,747.40",Programme System File
BIS,Skills Funding Agency,10/06/2016,16-18 Apprenticeships - Centralised Contract Management,Main Funding,MIDLAND GROUP TRAINING SERVICES LTD,AP16R_11689,"211,891.18",Programme System File
BIS,Skills Funding Agency,10/06/2016,16-18 Apprenticeships - Centralised Contract Management,Main Funding,MILLBROOK MANAGEMENT SERVICES LTD,AP16R_11737,"98,944.09",Programme System File
BIS,Skills Funding Agency,10/06/2016,16-18 Apprenticeships - Centralised Contract Management,Main Funding,MILTON KEYNES COLLEGE,AP16R_11372,"58,529.46",Programme System File
BIS,Skills Funding Agency,10/06/2016,16-18 Apprenticeships - Centralised Contract Management,Main Funding,MILTON KEYNES COUNCIL,AP16R_11377,932.69,Programme System File
BIS,Skills Funding Agency,10/06/2016,16-18 Apprenticeships - Centralised Contract Management,Main Funding,MINISTRY OF DEFENCE,AP16C_2537,"-130,242.76",Programme System File
BIS,Skills Funding Agency,10/06/2016,16-18 Apprenticeships - Centralised Contract Management,Main Funding,MINISTRY OF DEFENCE,AP16C_2541,"-460,407.61",Programme System File
BIS,Skills Funding Agency,10/06/2016,16-18 Apprenticeships - Centralised Contract Management,Main Funding,MINISTRY OF DEFENCE,AP16R_11836,"2,069.93",Programme System File
BIS,Skills Funding Agency,10/06/2016,16-18 Apprenticeships - Centralised Contract Management,Main Funding,MINISTRY OF DEFENCE,AP16R_11953,"226,193.03",Programme System File
BIS,Skills Funding Agency,10/06/2016,16-18 Apprenticeships - Centralised Contract Management,Main Funding,MINISTRY OF DEFENCE,AP16R_11961,"711,595.49",Programme System File
BIS,Skills Funding Agency,10/06/2016,16-18 Apprenticeships - Centralised Contract Management,Main Funding,MITIE GROUP PLC,AP16R_11910,"3,041.73",Programme System File
BIS,Skills Funding Agency,10/06/2016,16-18 Apprenticeships - Centralised Contract Management,Main Funding,MOBILE CARE QUALIFICATIONS LTD,AP16R_11690,"13,799.78",Programme System File
BIS,Skills Funding Agency,10/06/2016,16-18 Apprenticeships - Centralised Contract Management,Main Funding,MOMENTUM TRAINING & CONSULTANCY LTD,AP16R_11990,"14,998.52",Programme System File
BIS,Skills Funding Agency,10/06/2016,16-18 Apprenticeships - Centralised Contract Management,Main Funding,MOTOR INSURANCE REPAIR RESEARCH CENTRE,AP16R_11768,"37,024.94",Programme System File
BIS,Skills Funding Agency,10/06/2016,16-18 Apprenticeships - Centralised Contract Management,Main Funding,MOULTON COLLEGE,AP16C_2363,"-4,477.84",Programme System File
BIS,Skills Funding Agency,10/06/2016,16-18 Apprenticeships - Centralised Contract Management,Main Funding,MOULTON COLLEGE,AP16R_11374,"68,157.38",Programme System File
BIS,Skills Funding Agency,10/06/2016,16-18 Apprenticeships - Centralised Contract Management,Main Funding,MPOWER TRAINING SOLUTIONS LTD,AP16R_11901,"5,062.38",Programme System File
BIS,Skills Funding Agency,10/06/2016,16-18 Apprenticeships - Centralised Contract Management,Main Funding,MYERSCOUGH COLLEGE,AP16R_11376,"56,104.47",Programme System File
BIS,Skills Funding Agency,10/06/2016,16-18 Apprenticeships - Centralised Contract Management,Main Funding,N & B TRAINING CO LTD,AP16R_11695,"14,490.41",Programme System File
BIS,Skills Funding Agency,10/06/2016,16-18 Apprenticeships - Centralised Contract Management,Main Funding,NACRO,AP16C_2478,"-68,350.38",Programme System File
BIS,Skills Funding Agency,10/06/2016,16-18 Apprenticeships - Centralised Contract Management,Main Funding,NACRO,AP16R_11697,"83,391.57",Programme System File
BIS,Skills Funding Agency,10/06/2016,16-18 Apprenticeships - Centralised Contract Management,Main Funding,NATIONAL GRID PLC,AP16R_11694,"1,000.84",Programme System File
BIS,Skills Funding Agency,10/06/2016,16-18 Apprenticeships - Centralised Contract Management,Main Funding,NATIONAL TYRE SERVICE LTD,AP16R_12012,"8,970.40",Programme System File
BIS,Skills Funding Agency,10/06/2016,16-18 Apprenticeships - Centralised Contract Management,Main Funding,NELSON & COLNE COLLEGE,AP16R_11381,"123,561.16",Programme System File
BIS,Skills Funding Agency,10/06/2016,16-18 Apprenticeships - Centralised Contract Management,Main Funding,NESTOR PRIMECARE SERVICES LIMITED,AP16R_11923,"1,467.26",Programme System File
BIS,Skills Funding Agency,10/06/2016,16-18 Apprenticeships - Centralised Contract Management,Main Funding,NETA TRAINING TRUST,AP16R_11703,"80,400.87",Programme System File
BIS,Skills Funding Agency,10/06/2016,16-18 Apprenticeships - Centralised Contract Management,Main Funding,NEW COLLEGE DURHAM,AP16R_11384,"95,727.79",Programme System File
BIS,Skills Funding Agency,10/06/2016,16-18 Apprenticeships - Centralised Contract Management,Main Funding,NEW COLLEGE NOTTINGHAM,AP16R_11397,"121,494.99",Programme System File
BIS,Skills Funding Agency,10/06/2016,16-18 Apprenticeships - Centralised Contract Management,Main Funding,NEW COLLEGE STAMFORD,AP16C_2404,"-6,472.99",Programme System File
BIS,Skills Funding Agency,10/06/2016,16-18 Apprenticeships - Centralised Contract Management,Main Funding,NEW COLLEGE STAMFORD,AP16R_11464,"71,728.53",Programme System File
BIS,Skills Funding Agency,10/06/2016,16-18 Apprenticeships - Centralised Contract Management,Main Funding,NEW COLLEGE SWINDON,AP16C_2369,"-1,200.95",Programme System File
BIS,Skills Funding Agency,10/06/2016,16-18 Apprenticeships - Centralised Contract Management,Main Funding,NEW COLLEGE SWINDON,AP16R_11387,"37,282.37",Programme System File
BIS,Skills Funding Agency,10/06/2016,16-18 Apprenticeships - Centralised Contract Management,Main Funding,NEW COLLEGE TELFORD,AP16C_2370,"-39,629.13",Programme System File
BIS,Skills Funding Agency,10/06/2016,16-18 Apprenticeships - Centralised Contract Management,Main Funding,NEW COLLEGE TELFORD,AP16R_11389,"39,629.13",Programme System File
BIS,Skills Funding Agency,10/06/2016,16-18 Apprenticeships - Centralised Contract Management,Main Funding,NEWBURY COLLEGE,AP16R_11380,"24,388.66",Programme System File
BIS,Skills Funding Agency,10/06/2016,16-18 Apprenticeships - Centralised Contract Management,Main Funding,NEWCASTLE COLLEGE,AP16R_12017,"25,925.27",Programme System File
BIS,Skills Funding Agency,10/06/2016,16-18 Apprenticeships - Centralised Contract Management,Main Funding,NEWCASTLE COLLEGE,AP16R_12018,"50,215.95",Programme System File
BIS,Skills Funding Agency,10/06/2016,16-18 Apprenticeships - Centralised Contract Management,Main Funding,NEWCASTLE COLLEGE,AP16R_12020,"113,205.16",Programme System File
BIS,Skills Funding Agency,10/06/2016,16-18 Apprenticeships - Centralised Contract Management,Main Funding,NEWCASTLE UNDER LYME COLLEGE,AP16C_2365,"-11,440.03",Programme System File
BIS,Skills Funding Agency,10/06/2016,16-18 Apprenticeships - Centralised Contract Management,Main Funding,NEWCASTLE UNDER LYME COLLEGE,AP16R_11383,"407,420.20",Programme System File
BIS,Skills Funding Agency,10/06/2016,16-18 Apprenticeships - Centralised Contract Management,Main Funding,NEWCASTLE UPON TYNE CITY COUNCIL,AP16R_11382,"13,342.01",Programme System File
BIS,Skills Funding Agency,10/06/2016,16-18 Apprenticeships - Centralised Contract Management,Main Funding,NEWHAM COLLEGE OF HIGHER EDUCATION,AP16C_2366,"-43,415.82",Programme System File
BIS,Skills Funding Agency,10/06/2016,16-18 Apprenticeships - Centralised Contract Management,Main Funding,NEWHAM COLLEGE OF HIGHER EDUCATION,AP16R_11385,"170,287.32",Programme System File
BIS,Skills Funding Agency,10/06/2016,16-18 Apprenticeships - Centralised Contract Management,Main Funding,NEXT RETAIL LTD,AP16R_11984,"16,051.75",Programme System File
BIS,Skills Funding Agency,10/06/2016,16-18 Apprenticeships - Centralised Contract Management,Main Funding,NHTA LTD,AP16R_11704,"35,098.25",Programme System File
BIS,Skills Funding Agency,10/06/2016,16-18 Apprenticeships - Centralised Contract Management,Main Funding,NISSAN MOTOR MANUFACTURING (UK) LTD,AP16C_2559,"-48,788.10",Programme System File
BIS,Skills Funding Agency,10/06/2016,16-18 Apprenticeships - Centralised Contract Management,Main Funding,NISSAN MOTOR MANUFACTURING (UK) LTD,AP16R_12009,18841.12,Programme System File
BIS,Skills Funding Agency,10/06/2016,16-18 Apprenticeships - Centralised Contract Management,Main Funding,NLT TRAINING SERVICES LTD,AP16R_11706,"58,612.55",Programme System File
BIS,Skills Funding Agency,10/06/2016,16-18 Apprenticeships - Centralised Contract Management,Main Funding,NORFOLK COUNTY COUNCIL,AP16C_2367,"-23,520.03",Programme System File
BIS,Skills Funding Agency,10/06/2016,16-18 Apprenticeships - Centralised Contract Management,Main Funding,NORFOLK COUNTY COUNCIL,AP16R_11386,"32,640.88",Programme System File
BIS,Skills Funding Agency,10/06/2016,16-18 Apprenticeships - Centralised Contract Management,Main Funding,NORFOLK TRAINING SERVICES LTD,AP16R_11712,"54,623.76",Programme System File
BIS,Skills Funding Agency,10/06/2016,16-18 Apprenticeships - Centralised Contract Management,Main Funding,NORTH DEVON COLLEGE,AP16R_11388,"92,847.09",Programme System File
BIS,Skills Funding Agency,10/06/2016,16-18 Apprenticeships - Centralised Contract Management,Main Funding,"NORTH EAST CHAMBER OF COMMERCE, TRADE AND INDUSTRY",AP16R_11696,"97,516.60",Programme System File
BIS,Skills Funding Agency,10/06/2016,16-18 Apprenticeships - Centralised Contract Management,Main Funding,NORTH EAST EMPLOYMENT & TRAINING AGENCY LTD,AP16R_11698,"22,609.05",Programme System File
BIS,Skills Funding Agency,10/06/2016,16-18 Apprenticeships - Centralised Contract Management,Main Funding,NORTH EAST LINCOLNSHIRE COUNCIL,AP16R_11390,"9,490.73",Programme System File
BIS,Skills Funding Agency,10/06/2016,16-18 Apprenticeships - Centralised Contract Management,Main Funding,NORTH EAST SURREY COLLEGE OF TECHNOLOGY,AP16C_2372,"-181,625.60",Programme System File
BIS,Skills Funding Agency,10/06/2016,16-18 Apprenticeships - Centralised Contract Management,Main Funding,NORTH EAST SURREY COLLEGE OF TECHNOLOGY,AP16R_11393,"271,205.30",Programme System File
BIS,Skills Funding Agency,10/06/2016,16-18 Apprenticeships - Centralised Contract Management,Main Funding,NORTH EAST WORCESTERSHIRE COLLEGE,AP16C_2441,"-29,611.06",Programme System File
BIS,Skills Funding Agency,10/06/2016,16-18 Apprenticeships - Centralised Contract Management,Main Funding,NORTH EAST WORCESTERSHIRE COLLEGE,AP16R_11541,"580,811.44",Programme System File
BIS,Skills Funding Agency,10/06/2016,16-18 Apprenticeships - Centralised Contract Management,Main Funding,NORTH HERTFORDSHIRE COLLEGE,AP16C_2374,"-3,439.24",Programme System File
BIS,Skills Funding Agency,10/06/2016,16-18 Apprenticeships - Centralised Contract Management,Main Funding,NORTH HERTFORDSHIRE COLLEGE,AP16R_11395,"112,654.83",Programme System File
BIS,Skills Funding Agency,10/06/2016,16-18 Apprenticeships - Centralised Contract Management,Main Funding,NORTH LANCS TRAINING GROUP LTD,AP16R_11709,"193,844.92",Programme System File
BIS,Skills Funding Agency,10/06/2016,16-18 Apprenticeships - Centralised Contract Management,Main Funding,NORTH LINCOLNSHIRE COUNCIL,AP16C_2371,"-1,812.76",Programme System File
BIS,Skills Funding Agency,10/06/2016,16-18 Apprenticeships - Centralised Contract Management,Main Funding,NORTH LINCOLNSHIRE COUNCIL,AP16R_11391,"2,222.22",Programme System File
BIS,Skills Funding Agency,10/06/2016,16-18 Apprenticeships - Centralised Contract Management,Main Funding,NORTH LINDSEY COLLEGE,AP16C_2373,-706.55,Programme System File
BIS,Skills Funding Agency,10/06/2016,16-18 Apprenticeships - Centralised Contract Management,Main Funding,NORTH LINDSEY COLLEGE,AP16R_11394,"241,993.42",Programme System File
BIS,Skills Funding Agency,10/06/2016,16-18 Apprenticeships - Centralised Contract Management,Main Funding,NORTH LIVERPOOL REGENERATION COMPANY LTD,AP16R_11876,"105,421.42",Programme System File
BIS,Skills Funding Agency,10/06/2016,16-18 Apprenticeships - Centralised Contract Management,Main Funding,NORTH NOTTINGHAMSHIRE COLLEGE,AP16R_11396,"198,021.25",Programme System File
BIS,Skills Funding Agency,10/06/2016,16-18 Apprenticeships - Centralised Contract Management,Main Funding,NORTH TYNESIDE METRO BOROUGH COUNCIL,AP16R_11399,"8,546.78",Programme System File
BIS,Skills Funding Agency,10/06/2016,16-18 Apprenticeships - Centralised Contract Management,Main Funding,NORTH WARWICKSHIRE & HINCKLEY COLLEGE,AP16R_11401,"110,175.17",Programme System File
BIS,Skills Funding Agency,10/06/2016,16-18 Apprenticeships - Centralised Contract Management,Main Funding,NORTH WEST COMMUNITY SERVICES TRAINING LIMITED,AP16C_2480,"-9,896.13",Programme System File
BIS,Skills Funding Agency,10/06/2016,16-18 Apprenticeships - Centralised Contract Management,Main Funding,NORTH WEST COMMUNITY SERVICES TRAINING LIMITED,AP16R_11701,"24,435.29",Programme System File
BIS,Skills Funding Agency,10/06/2016,16-18 Apprenticeships - Centralised Contract Management,Main Funding,NORTH WEST KENT COLLEGE,AP16R_11398,"56,923.00",Programme System File
BIS,Skills Funding Agency,10/06/2016,16-18 Apprenticeships - Centralised Contract Management,Main Funding,NORTH WEST TRAINING COUNCIL,AP16C_2482,-947.04,Programme System File
BIS,Skills Funding Agency,10/06/2016,16-18 Apprenticeships - Centralised Contract Management,Main Funding,NORTH WEST TRAINING COUNCIL,AP16R_11707,"80,159.07",Programme System File
BIS,Skills Funding Agency,10/06/2016,16-18 Apprenticeships - Centralised Contract Management,Main Funding,NORTH YORKSHIRE COUNTY COUNCIL,AP16C_2375,"-1,229.28",Programme System File
BIS,Skills Funding Agency,10/06/2016,16-18 Apprenticeships - Centralised Contract Management,Main Funding,NORTH YORKSHIRE COUNTY COUNCIL,AP16R_11400,"19,057.96",Programme System File
BIS,Skills Funding Agency,10/06/2016,16-18 Apprenticeships - Centralised Contract Management,Main Funding,NORTHAMPTON COLLEGE,AP16R_11488,"123,644.15",Programme System File
BIS,Skills Funding Agency,10/06/2016,16-18 Apprenticeships - Centralised Contract Management,Main Funding,NORTHAMPTONSHIRE COUNTY COUNCIL,AP16R_11402,"7,080.73",Programme System File
BIS,Skills Funding Agency,10/06/2016,16-18 Apprenticeships - Centralised Contract Management,Main Funding,NORTHAMPTONSHIRE INDUSTRIAL TRAINING ASSOCIATION LTD,AP16R_11700,"82,772.05",Programme System File
BIS,Skills Funding Agency,10/06/2016,16-18 Apprenticeships - Centralised Contract Management,Main Funding,NORTHBROOK COLLEGE SUSSEX,AP16R_11405,"89,946.89",Programme System File
BIS,Skills Funding Agency,10/06/2016,16-18 Apprenticeships - Centralised Contract Management,Main Funding,NORTHERN CARE TRAINING LTD,AP16C_2511,"-4,147.78",Programme System File
BIS,Skills Funding Agency,10/06/2016,16-18 Apprenticeships - Centralised Contract Management,Main Funding,NORTHERN CARE TRAINING LTD,AP16R_11852,"25,140.63",Programme System File
BIS,Skills Funding Agency,10/06/2016,16-18 Apprenticeships - Centralised Contract Management,Main Funding,NORTHERN RACING COLLEGE,AP16R_11708,"21,385.01",Programme System File
BIS,Skills Funding Agency,10/06/2016,16-18 Apprenticeships - Centralised Contract Management,Main Funding,NORTHUMBERLAND COLLEGE,AP16R_11406,"87,706.61",Programme System File
BIS,Skills Funding Agency,10/06/2016,16-18 Apprenticeships - Centralised Contract Management,Main Funding,NORTHUMBERLAND COUNTY COUNCIL,AP16R_11403,"34,765.20",Programme System File
BIS,Skills Funding Agency,10/06/2016,16-18 Apprenticeships - Centralised Contract Management,Main Funding,NORWICH CITY COLLEGE,AP16C_2377,"-12,946.09",Programme System File
BIS,Skills Funding Agency,10/06/2016,16-18 Apprenticeships - Centralised Contract Management,Main Funding,NORWICH CITY COLLEGE,AP16R_11404,"145,457.48",Programme System File
BIS,Skills Funding Agency,10/06/2016,16-18 Apprenticeships - Centralised Contract Management,Main Funding,NOTTINGHAMSHIRE TRAINING NETWORK,AP16R_11713,"11,167.80",Programme System File
